Workbook

Sheet Form
C13: Pokud Vám Kalkulačku nelze spustit, je možné, že máte zakázaná makra. Makra povolíte, pokud se Vám v horní části obrazovky zobrazil žlutý panel s tlačítkem "Povolit obsah", stisknutím tohoto tlačítka. Pokud se Vám panel nezobrazil postupujte podle návodu zde:
C18: https://support.office.com/cs-cz/article/povolen%C3%AD-nebo-z%C3%A1kaz-maker-v-souborech-office-12b036fd-d140-4e74-b45e-16fed1a7e5c6

Sheet Protokol
B1: Položka | C1: Materiál | D1: Práce profi | E1: Svépomocí
B2: Přípravné práce
B3: Zakrytí podlah a oken | C3: =Výpočty!L77 -> 0 | D3: =Výpočty!L76 -> 0 | E3: =Výpočty!N76+Výpočty!L77 -> 0
B4: Olepování páskou | C4: =Výpočty!L80 -> 0 | D4: =Výpočty!L79 -> 0 | E4: =Výpočty!N79+Výpočty!L80 -> 0
B6: Demolice stávajícího podkladu
B7: Stržení tapet | C7: 0 | D7: =Výpočty!L23 -> 0 | E7: =Výpočty!N23 -> 0
B8: Odsekání obkladu | C8: 0 | D8: =Výpočty!L16 -> 0 | E8: =Výpočty!N16 -> 0
B9: Oškrábání malby, rozmývání | C9: 0 | D9: =Výpočty!L20+Výpočty!L21+Výpočty!L27 -> 0 | E9: =Výpočty!N20+Výpočty!N21+Výpočty!N27 -> 0
B11: Vyrovnání povrchu
B12: Nová štuková omítka | C12: =Výpočty!L30+Výpočty!L36 -> 0 | D12: =Výpočty!L29+Výpočty!L35 -> 0 | E12: =MAX(Výpočty!N29,Výpočty!N35)+Výpočty!L30+Výpočty!L36 -> 0
B13: Vyrovnání povrchu omítkou | C13: =Výpočty!L18+Výpočty!L25 -> 0 | D13: =Výpočty!L17+Výpočty!L24 -> 0 | E13: =MAX(Výpočty!N17,Výpočty!N24)+Výpočty!L18+Výpočty!L25 -> 0
B14: Vyrovnání povrchu stěrkou | C14: =Výpočty!L33+Výpočty!L39 -> 0 | D14: =Výpočty!L32+Výpočty!L38 -> 0 | E14: =MAX(Výpočty!N32,Výpočty!N38)+Výpočty!L33+Výpočty!L39 -> 0
B16: Příprava podkladu
B17: Broušení, oprášení | C17: =ROUNDUP(Výpočty!L41+Výpočty!L43+Výpočty!L45,0) -> 0 | D17: =Výpočty!L40+Výpočty!L42+Výpočty!L44 -> 0 | E17: =Výpočty!N40+Výpočty!N42+Výpočty!N44+ROUNDUP(Výpočty!L41+Výpočty!L43+Výpočty!L45,0) -> 0
B18: Ošetření proti plísni | C18: =Výpočty!L48 -> 0 | D18: =Výpočty!L47 -> 0 | E18: =Výpočty!N47+Výpočty!L48 -> 0
B19: Penetrace povrchu | C19: =Výpočty!L51+Výpočty!L53 -> 0 | D19: =Výpočty!L50+Výpočty!L52 -> 0 | E19: =MAX(Výpočty!N50,Výpočty!N52)+Výpočty!L51+Výpočty!L53 -> 0
B20: Akrylování detailů | C20: =Výpočty!L83 -> 0 | D20: =Výpočty!L82 -> 0 | E20: =Výpočty!N82+Výpočty!L83 -> 0
B21: Vyspravení trhlin | C21: =75*0.015*(Výpočty!L62+Výpočty!L65+Výpočty!L68+Výpočty!L71) -> 0 | D21: =200*0.015*(Výpočty!L62+Výpočty!L65+Výpočty!L68+Výpočty!L71) -> 0 | E21: =IF(C21>0,Svépomocí!B35,0)+75*0.015*(Výpočty!L62+Výpočty!L65+Výpočty!L68+Výpočty!L71) -> 0
B23: Malování
B24: Podkladová tapeta | C24: =Výpočty!L57+Výpočty!L60 -> 0 | D24: =Výpočty!L56+Výpočty!L59 -> 0 | E24: =MAX(Výpočty!N56,Výpočty!N59)+Výpočty!L57+Výpočty!L60 -> 0
B25: Běžná barva bílá | C25: =Výpočty!L64 -> 0 | D25: =Výpočty!L63 -> 0 | E25: =Výpočty!L64 -> 0
B26: Běžná barva barevná | C26: =Výpočty!L67 -> 0 | D26: =Výpočty!L66 -> 0 | E26: =Výpočty!L67 -> 0
B27: Vinylová barva bílá | C27: =Výpočty!L70 -> 0 | D27: =Výpočty!L69 -> 0 | E27: =Výpočty!L70 -> 0
B28: Vinylová barva barevná | C28: =Výpočty!L73 -> 0 | D28: =Výpočty!L72 -> 0 | E28: =Výpočty!L73 -> 0
B30: Úklid
B31: Finální úklid | C31: =Výpočty!L86 -> 0 | D31: =Výpočty!L85 -> 0 | E31: =Výpočty!N85+Výpočty!L86 -> 0
B33: Nářadí a pomůcky nezávislé na konkrétní činnosti (např. štafle) | E33: =Výpočty!L89+MAX(Výpočty!N63,Výpočty!N66,Výpočty!N69,Výpočty!N72) -> 0
B35: Celkem materiál bez DPH | C35: =SUM(C3:C31) -> 0
B36: Celkem práce profi s materiálem bez DPH | D36: =SUM(D3:D31) -> 0
B37: Celkem svépomocí vč. materiálu bez DPH | E37: =SUM(E3:E33) -> 0
B39: Pozn. 1: Položky, u nichž je uvedena cena, jsou práce doporučené k provedení na základě Vašich odpovědí. Pozn. 2: V ceně svépomocí je započten materiál a koupě potřebných pomůcek, nářadí a náčiní. Hodnotu svého času musíte zvážit sami. Pozn. 3: Veškeré ceny jsou orientační, ceny se mohou lišit v závislosti na dodavateli, ať již práce či materiálu, na lokalitě, apod.
B46: =IF(OR(Room01!E24>0,Room02!E24>0,Room03!E24>0,Room04!E24>0,Room05!E24>0,Room06!E24>0,Room07!E24>0,Room08!E24>0,Room09!E24>0,Room10!E24>0),Settings!A106,Settings!A112) -> 

Sheet Ceník (hidden)
A1: Položka | B1: Jednotka | C1: J. cena | D1: Materiál | E1: Stroje | F1: Mzdy a režie | H1: Materiál přímý | I1: Svépomocí dokoupit
A2: Lešení pomocné pro objekty pozemních staveb s lešeňovou podlahou v do 1,9 m zatížení do 150 kg/m2 | B2: m2 | C2: =SUM(D2:F2) -> 41.24 | D2: 14.69 | E2: 0 | F2: 26.55 | H2: lešení
A3: Lešení pomocné pro objekty pozemních staveb s lešeňovou podlahou v do 3,5 m zatížení do 150 kg/m2 | B3: m2 | C3: =SUM(D3:F3) -> 55.59 | D3: 23.73 | E3: 0 | F3: 31.86 | H3: lešení
A4: Zakrytí podlah fólií přilepenou lepící páskou | B4: m2 | C4: 22.87 | D4: 11.54 | E4: 0 | F4: 11.33 | H4: fólie, páska
A5: Oblepení rámů otvorů a keramických soklů lepící páskou | B5: m | C5: 4.26 | D5: 1.43 | E5: 0 | F5: 2.83 | H5: páska
A6: Obalení konstrukcí a prvků fólií přilepenou lepící páskou | B6: m2 | C6: 46 | D6: 23.34 | E6: 0 | F6: 22.66 | H6: fólie, páska
A7: Sádrová stěrka tl.do 3 mm vnitřních stěn | B7: m2 | C7: 115.59 | D7: 30.46 | E7: 0 | F7: 85.13 | H7: voda, brusný papír, směs na stěrku
A8: Sádrová stěrka tl.do 3 mm vnitřních rovných stropů | B8: m2 | C8: 142.85 | D8: 30.46 | E8: 0 | F8: 112.39 | H8: voda, brusný papír, směs na stěrku
A9: Potažení vnitřních stěn vápenným štukem tloušťky do 3 mm | B9: m2 | C9: 102.38 | D9: 14.2 | E9: 0.03 | F9: 88.15 | H9: voda, maltová směs, míchačka | I9: =Svépomocí!B27+Svépomocí!B3+Svépomocí!B5 -> 410.7438017
A10: Potažení vnitřních rovných stropů vápenným štukem tloušťky do 3 mm | B10: m2 | C10: 129.64 | D10: 14.2 | E10: 0.03 | F10: 115.41 | H10: voda, maltová směs, míchačka
A11: Vyčištění budov bytové a občanské výstavby při výšce podlaží do 4 m | B11: m2 | C11: 79.06 | D11: 1.18 | E11: 0 | F11: 77.88 | H11: voda, mýdlo, jar | I11: =Svépomocí!B38+Svépomocí!B39+Svépomocí!B40+Svépomocí!B41 -> 247.107438
A12: Vyčištění budov bytové a občanské výstavby při výšce podlaží přes 4 m | B12: m2 | C12: 90.69 | D12: 1.18 | E12: 0 | F12: 89.51 | H12: voda, mýdlo, jar
E13: 0
A14: Zakrytí vnitřních podlah včetně pozdějšího odkrytí | B14: m2 | C14: =SUM(D14:F14) -> 11.08 | D14: 7.09 | E14: 0 | F14: 3.99 | H14: fólie, páska
A15: Zakrytí vnitřních ploch stěn v místnostech výšky do 3,80 m | B15: m2 | C15: 12.4 | D15: 7.09 | E15: 0 | F15: 5.31 | H15: fólie, páska | I15: 0
A16: Zakrytí vnitřních ploch stěn v místnostech výšky do 5,00 m | B16: m2 | C16: 12.73 | D16: 7.09 | E16: 0 | F16: 5.64 | H16: fólie, páska
A17: Zakrytí vnitřních ploch stěn v místnostech výšky přes 5,00 m | B17: m2 | C17: 13.07 | D17: 7.09 | E17: 0 | F17: 5.98 | H17: fólie, páska
A18: Olepování vnitřních ploch páskou v místnostech výšky do 3,80 m | B18: m | C18: 9.01 | D18: 1.37 | E18: 0 | F18: 7.64 | H18: páska | I18: 0
A19: Olepování vnitřních ploch páskou v místnostech výšky do 5,00 m | B19: m | C19: 9.67 | D19: 1.37 | E19: 0 | F19: 8.3 | H19: páska
A20: Olepování vnitřních ploch páskou v místnostech výšky přes 5,00 m | B20: m | C20: 10.34 | D20: 1.37 | E20: 0 | F20: 8.97 | H20: páska
A21: Oprášení (ometení ) podkladu v místnostech výšky do 3,80 m | B21: m2 | C21: 3.98 | D21: 0 | E21: 0 | F21: 3.98 | H21: - | I21: =Svépomocí!B38+Svépomocí!B39 -> 143.8016529
A22: Oprášení (ometení ) podkladu v místnostech výšky do 5,00 m | B22: m2 | C22: 4.32 | D22: 0 | E22: 0 | F22: 4.32 | H22: -
A23: Oprášení (ometení ) podkladu v místnostech výšky přes 5,00 m | B23: m2 | C23: 4.65 | D23: 0 | E23: 0 | F23: 4.65 | H23: -
A24: Mydlení podkladu v místnostech výšky do 3,80 m | B24: m2 | C24: 13.97 | D24: 0.68 | E24: 0 | F24: 13.29 | H24: mýdlo
A25: Mydlení podkladu v místnostech výšky do 5,00 m | B25: m2 | C25: =SUM(D25:F25) -> 14.64 | D25: 0.68 | E25: 0 | F25: 13.96 | H25: mýdlo
A26: Mydlení podkladu v místnostech výšky přes 5,00 m | B26: m2 | C26: =SUM(D26:F26) -> 15.63 | D26: 0.68 | E26: 0 | F26: 14.95 | H26: mýdlo
A27: Oškrabání malby v mísnostech výšky do 3,80 m | B27: m2 | C27: =SUM(D27:F27) -> 24.63 | D27: 0.04 | E27: 0 | F27: 24.59 | H27: voda | I27: =Svépomocí!B13 -> 29.75206612
A28: Oškrabání malby v mísnostech výšky do 5,00 m | B28: m2 | C28: =SUM(D28:F28) -> 26.29 | D28: 0.04 | E28: 0 | F28: 26.25 | H28: voda
A29: Oškrabání malby v mísnostech výšky přes 5,00 m | B29: m2 | C29: 28.29 | D29: 0.04 | E29: 0 | F29: 28.25 | H29: voda
A30: Rozmývání podkladu po oškrabání malby v místnostech výšky do 3,80 m | B30: m2 | C30: =SUM(D30:F30) -> 12.4 | D30: 0.1 | E30: 0 | F30: 12.3 | H30: voda | I30: =Svépomocí!B14 -> 114.8760331
A31: Rozmývání podkladu po oškrabání malby v místnostech výšky do 5,00 m | B31: m2 | C31: 13.39 | D31: 0.1 | E31: 0 | F31: 13.29 | H31: voda
A32: Rozmývání podkladu po oškrabání malby v místnostech výšky přes 5,00 m | B32: m2 | C32: 14.39 | D32: 0.1 | E32: 0 | F32: 14.29 | H32: voda
A33: Odstranění lepených tapet s makulaturou ze stěn výšky do 3,80 m | B33: m2 | C33: 53.83 | D33: 0 | E33: 0 | F33: 53.83 | H33: - | I33: =Svépomocí!B13+Svépomocí!B17 -> 276.8595041
A34: Odstranění lepených tapet s makulaturou ze stropů nebo sloupů výšky do 3,80 m | B34: m2 | C34: 70.11 | D34: 0 | E34: 0 | F34: 70.11 | H34: -
A35: Odsekání a odebrání obkladů stěn z vnitřních obkládaček plochy do 1 m2 | B35: m2 | C35: 121.37 | D35: 0 | E35: 0 | F35: 121.37 | H35: - | I35: =Svépomocí!B11+Svépomocí!B12 -> 378.5123967
A36: Odsekání a odebrání obkladů stěn z vnitřních obkládaček plochy přes 1 m2 | B36: m2 | C36: 75.85 | D36: 0 | E36: 0 | F36: 75.85 | H36: -
A37: Vyrovnání podkladu vnitřních stěn maltou vápenocementovou tl do 10 mm | B37: m2 | C37: 203.87 | D37: 76.45 | E37: 0.53 | F37: 126.89 | H37: voda, malta, míchačka | I37: =Svépomocí!B2+Svépomocí!B3+Svépomocí!B9+Svépomocí!B10+Svépomocí!B8 -> 399.1735537
A38: Vyrovnání podkladu vnitřních stropů maltou vápenocementovou tl do 10 mm | B38: m2 | C38: 228.76 | D38: 76.45 | E38: 0.53 | F38: 151.78 | H38: voda, malta, míchačka
A39: Obroušení podkladu omítnutého v místnostech výšky do 3,80 m | B39: m2 | C39: =SUM(D39:F39) -> 11.79 | D39: 0.16 | E39: 0 | F39: 11.63 | H39: brusný papír | I39: =Svépomocí!B15 -> 30
A40: Obroušení podkladu omítnutého v místnostech výšky do 5,00 m | B40: m2 | C40: 12.46 | D40: 0.16 | E40: 0 | F40: 12.3 | H40: brusný papír
A41: Obroušení podkladu omítnutého v místnostech výšky přes 5,00 m | B41: m2 | C41: 13.45 | D41: 0.16 | E41: 0 | F41: 13.29 | H41: brusný papír
A42: Dvojnásobné pačokování v místnostech výšky do 3,80 m | B42: m2 | C42: 23.55 | D42: 3.61 | E42: 0 | F42: 19.94 | H42: voda, vápno | I42: =Svépomocí!B8+Svépomocí!B19 -> 111.5702479
A43: Dvojnásobné pačokování v místnostech výšky do 5,00 m | B43: m2 | C43: 24.88 | D43: 3.61 | E43: 0 | F43: 21.27 | H43: voda, vápno
A44: Dvojnásobné pačokování v místnostech výšky přes 5,00 m | B44: m2 | C44: 26.87 | D44: 3.61 | E44: 0 | F44: 23.26 | H44: voda, vápno
A45: Celoplošné vyhlazení podkladu sádrovou stěrkou v místnostech výšky do 3,80 m | B45: m2 | C45: 116.73 | D45: 79.51 | E45: 0 | F45: 37.22 | H45: voda, stěrka | I45: =Svépomocí!B8+Svépomocí!B9+Svépomocí!B10+Svépomocí!B7 -> 1955.950413
A46: Celoplošné vyhlazení podkladu sádrovou stěrkou v místnostech výšky do 5,00 m | B46: m2 | C46: 119.39 | D46: 79.51 | E46: 0 | F46: 39.88 | H46: voda, stěrka
A47: Celoplošné vyhlazení podkladu sádrovou stěrkou v místnostech výšky přes 5,00 m | B47: m2 | C47: 122.38 | D47: 79.51 | E47: 0 | F47: 42.87 | H47: voda, stěrka
A48: Obroušení podkladu ze stěrky v místnostech výšky do 3,80 m | B48: m2 | C48: 14.36 | D48: 0.4 | E48: 0 | F48: 13.96 | H48: brusný papír | I48: =Svépomocí!B15 -> 30
A49: Obroušení podkladu ze stěrky v místnostech výšky do 5,00 m | B49: m2 | C49: 15.35 | D49: 0.4 | E49: 0 | F49: 14.95 | H49: brusný papír
A50: Obroušení podkladu ze stěrky v místnostech výšky přes 5,00 m | B50: m2 | C50: 16.68 | D50: 0.4 | E50: 0 | F50: 16.28 | H50: brusný papír
A51: Ošetření plísní napadených ploch včetně odstranění plísní v místnostech výšky do 3,80 m | B51: m2 | C51: 46.05 | D51: 8.82 | E51: 0 | F51: 37.23 | H51: voda, roztok | I51: 0
A52: Ošetření plísní napadených ploch včetně odstranění plísní v místnostech výšky do 5,00 m | B52: m2 | C52: 48.57 | D52: 8.82 | E52: 0 | F52: 39.75 | H52: voda, roztok
A53: Ošetření plísní napadených ploch včetně odstranění plísní v místnostech výšky přes 5,00 m | B53: m2 | C53: 51.59 | D53: 8.82 | E53: 0 | F53: 42.77 | H53: voda, roztok
A54: SDK základní penetrační nátěr | B54: m2 | C54: 24.6 | D54: 9.77 | E54: 0 | F54: 14.83 | H54: penetrační nátěr | I54: =Svépomocí!B26 -> 81.81818182
A55: Hloubková jednonásobná penetrace podkladu v místnostech výšky do 3,80 m | B55: m2 | C55: 20.03 | D55: 9.06 | E55: 0 | F55: 10.97 | H55: voda, penetrace
A56: Hloubková jednonásobná penetrace podkladu v místnostech výšky do 5,00 m | B56: m2 | C56: 20.69 | D56: 9.06 | E56: 0 | F56: 11.63 | H56: voda, penetrace
A57: Hloubková jednonásobná penetrace podkladu v místnostech výšky přes 5,00 m | B57: m2 | C57: 21.69 | D57: 9.06 | E57: 0 | F57: 12.63 | H57: voda, penetrace
A58: Tmelení spar a rohů šířky do 3 mm akrylátovým tmelem v místnostech výšky do 3,80 m | B58: m | C58: 15.93 | D58: 1.64 | E58: 0 | F58: 14.29 | H58: tmel akrylátový | I58: =Svépomocí!B33+Svépomocí!B34 -> 115.7024793
A59: Tmelení spar a rohů šířky do 3 mm akrylátovým tmelem v místnostech výšky do 5,00 m | B59: m | C59: 16.93 | D59: 1.64 | E59: 0 | F59: 15.29 | H59: tmel akrylátový
A60: Tmelení spar a rohů šířky do 3 mm akrylátovým tmelem v místnostech výšky přes 5,00 m | B60: m | C60: 18.26 | D60: 1.64 | E60: 0 | F60: 16.62 | H60: tmel akrylátový
A61: Lepení papírových hladkých tapet na stěny výšky do 3,00 m | B61: m2 | C61: 170.68 | D61: 52.28 | E61: 0 | F61: 118.4 | H61: lepidlo, tapeta
A62: Lepení papírových vzorovaných tapet na stěny výšky do 3,00 m | B62: m2 | C62: 298.72 | D62: 168.48 | E62: 0 | F62: 130.24 | H62: lepidlo, tapeta | I62: =Svépomocí!B20+Svépomocí!B8+Svépomocí!B16+Svépomocí!B27+Svépomocí!B18 -> 1130.909091
A63: Lepení vinylových hladkých tapet na stěny výšky do 3,00 m | B63: m2 | C63: 245.98 | D63: 81.8 | E63: 0 | F63: 164.18 | H63: lepidlo, tapeta
A64: Lepení vinylových vzorovaných tapet na stěny výšky do 3,00 m | B64: m2 | C64: 428.63 | D64: 231.3 | E64: 0 | F64: 197.33 | H64: lepidlo, tapeta
A65: Příplatek k cenám lepení tapet za provádění ve výšce přes 3,0 m | B65: m2 | C65: 50.12 | D65: 0 | E65: 0 | F65: 50.12 | H65: - | I65: 0
A66: Příplatek k cenám lepení tapet za provádění stropů nebo sloupů | B66: m2 | C66: 77.75 | D66: 0 | E66: 0 | F66: 77.75 | H66: -
A67: Dvojnásobné bílé malby ze směsí za sucha dobře otěruvzdorných v místnostech do 3,80 m | B67: m2 | C67: 33.08 | D67: 11.81 | E67: 0 | F67: 21.27 | H67: malba primalex polar | I67: =Svépomocí!B22+Svépomocí!B24+Svépomocí!B26+Svépomocí!B29+Svépomocí!B30+Svépomocí!B31+Svépomocí!B32 -> 496.6942149
A68: Dvojnásobné bílé malby ze směsí za sucha dobře otěruvzdorných v místnostech do 5,00 m | B68: m2 | C68: 34.41 | D68: 11.81 | E68: 0 | F68: 22.6 | H68: malba primalex polar
A69: Dvojnásobné bílé malby ze směsí za sucha dobře otěruvzdorných v místnostech přes 5,00 m | B69: m2 | C69: 36.4 | D69: 11.81 | E69: 0 | F69: 24.59 | H69: malba primalex polar
A70: Příplatek k cenám 2x maleb za sucha otěruvzdorných za barevnou malbu tónovanou tónovacími přípravky | B70: m2 | C70: 3.61 | D70: 3.61 | E70: 0 | F70: 0 | H70: pigment | I70: 0
A71: Dvojnásobné bílé malby ze směsí za mokra výborně otěruvzdorných v místnostech výšky do 3,80 m | B71: m2 | C71: 62.68 | D71: 28.12 | E71: 0 | F71: 34.56 | H71: malba omyvatelná | I71: =Svépomocí!B22+Svépomocí!B24+Svépomocí!B26+Svépomocí!B29+Svépomocí!B30+Svépomocí!B31+Svépomocí!B32 -> 496.6942149
A72: Dvojnásobné bílé malby ze směsí za mokra výborně otěruvzdorných v místnostech výšky do 5,00 m | B72: m2 | C72: 65.01 | D72: 28.12 | E72: 0 | F72: 36.89 | H72: malba omyvatelná
A73: Dvojnásobné bílé malby ze směsí za mokra výborně otěruvzdorných v místnostech výšky přes 5,00 m | B73: m2 | C73: 67.67 | D73: 28.12 | E73: 0 | F73: 39.55 | H73: malba omyvatelná
A74: Příplatek k cenám 2x maleb ze směsí za mokra otěruvzdorných za barevnou malbu tónovanou přípravky | B74: m2 | C74: 8.43 | D74: 8.43 | E74: 0 | F74: 0 | H74: pigment | I74: 0
A75: Čištění vnitřních ploch podlah po provedení malířských prací | B75: m2 | C75: 2.19 | D75: 0.53 | E75: 0 | F75: 1.66 | H75: voda, jar | I75: =I11 -> 247.107438
A76: Čištění vnitřních ploch oken nebo balkonových dveří jednoduchých po provedení malířských prací | B76: m2 | C76: 8.6 | D76: 0.62 | E76: 0 | F76: 7.98 | H76: voda, jar, iron
A77: Čištění vnitřních ploch dveří nebo vrat po provedení malířských prací | B77: m2 | C77: 11.84 | D77: 0.54 | E77: 0 | F77: 11.3 | H77: voda, jar, iron
A79: Omytí podkladu v místnostech výšky do 3,80 m | B79: m2 | C79: =SUM(D79:F79) -> 27.98 | D79: 0.06 | E79: 0 | F79: 27.92 | H79: voda
A80: Omytí podkladu v místnostech výšky do 5,00 m | B80: m2 | C80: 29.97 | D80: 0.06 | E80: 0 | F80: 29.91 | H80: voda
A81: Omytí podkladu v místnostech výšky přes 5,00 m | B81: m2 | C81: 32.3 | D81: 0.06 | E81: 0 | F81: 32.24 | H81: voda
A82: Základní akrylátová jednonásobná penetrace podkladu v místnostech výšky do 3,80m | B82: m2 | C82: 13 | D82: 2.03 | E82: 0 | F82: 10.97 | H82: voda, penetrace akrylátová
A83: Základní akrylátová jednonásobná penetrace podkladu v místnostech výšky do 5,00m | B83: m2 | C83: 13.66 | D83: 2.03 | E83: 0 | F83: 11.63 | H83: voda, penetrace akrylátová
A84: Základní akrylátová jednonásobná penetrace podkladu v místnostech výšky přes 5,00 m | B84: m2 | C84: 14.66 | D84: 2.03 | E84: 0 | F84: 12.63 | H84: voda, penetrace akrylátová
A85: Základní silikátová jednonásobná penetrace podkladu v místnostech výšky do 3,80m | B85: m2 | C85: 18.43 | D85: 7.46 | E85: 0 | F85: 10.97 | H85: voda, penetrace silikátová
A86: Základní silikátová jednonásobná penetrace podkladu v místnostech výšky do 5,00m | B86: m2 | C86: 19.09 | D86: 7.46 | E86: 0 | F86: 11.63 | H86: voda, penetrace silikátová
A87: Základní silikátová jednonásobná penetrace podkladu v místnostech výšky přes 5,00 m | B87: m2 | C87: 20.09 | D87: 7.46 | E87: 0 | F87: 12.63 | H87: voda, penetrace silikátová
A88: Dvojnásobné bílé malby ze směsí za mokra velmi dobře otěruvzdorných v místnostech výšky do 3,80 m | B88: m2 | C88: 53.13 | D88: 19.57 | E88: 0 | F88: 33.56 | H88: malba vinylová
A89: Dvojnásobné bílé malby ze směsí za mokra velmi dobře otěruvzdorných v místnostech výšky do 5,00 m | B89: m2 | C89: 55.79 | D89: 19.57 | E89: 0 | F89: 36.22 | H89: malba vinylová
A90: Dvojnásobné bílé malby ze směsí za mokra velmi dobře otěruvzdorných v místnostech výšky přes 5,00 m | B90: m2 | C90: 58.45 | D90: 19.57 | E90: 0 | F90: 38.88 | H90: malba vinylová
A91: Dvojnásobné bílé malby ze směsí za mokra středně otěruvzdorných v místnostech výšky do 3,80 m | B91: m2 | C91: 47.59 | D91: 14.69 | E91: 0 | F91: 32.9 | H91: malba
A92: Dvojnásobné bílé malby ze směsí za mokra středně otěruvzdorných v místnostech výšky do 5,00 m | B92: m2 | C92: 49.58 | D92: 14.69 | E92: 0 | F92: 34.89 | H92: malba
A93: Dvojnásobné bílé malby ze směsí za mokra středně otěruvzdorných v místnostech výšky přes 5,00 m | B93: m2 | C93: 52.91 | D93: 14.69 | E93: 0 | F93: 38.22 | H93: malba
A94: Dvojnásobné bílé malby ze směsí za mokra minimálně otěruvzdorných v místnostech do 3,80 m | B94: m2 | C94: 42.15 | D94: 9.58 | E94: 0 | F94: 32.57 | H94: malba paropropustná
A95: Dvojnásobné bílé malby ze směsí za mokra minimálně otěruvzdorných v místnostech do 5,00 m | B95: m2 | C95: 44.14 | D95: 9.58 | E95: 0 | F95: 34.56 | H95: malba paropropustná
A96: Dvojnásobné bílé malby ze směsí za mokra minimálně otěruvzdorných v místnostech přes 5,00 m | B96: m2 | C96: 46.47 | D96: 9.58 | E96: 0 | F96: 36.89 | H96: malba paropropustná
A97: Dvojnásobné bílé malby ze směsí za sucha minimálně otěruvzdorných v místnostech do 3,80 m | B97: m2 | C97: 23.46 | D97: 3.52 | E97: 0 | F97: 19.94 | H97: malba primalex standard
A98: Dvojnásobné bílé malby ze směsí za sucha mimálně otěruvzdorných v místnostech do 5,00 m | B98: m2 | C98: 24.79 | D98: 3.52 | E98: 0 | F98: 21.27 | H98: malba primalex standard
A99: Dvojnásobné bílé malby ze směsí za sucha minimálně otěruvzdorných v místnostech přes 5,00 m | B99: m2 | C99: 26.78 | D99: 3.52 | E99: 0 | F99: 23.26 | H99: malba primalex standard
A100: Dvojnásobné bílé klihové malby v místnostech výšky do 3,80 m | B100: m2 | C100: 23.03 | D100: 5.08 | E100: 0 | F100: 17.95 | H100: malba hlinková
A101: Dvojnásobné bílé klihové malby v místnostech výšky do 5,00 m | B101: m2 | C101: 24.69 | D101: 5.08 | E101: 0 | F101: 19.61 | H101: malba hlinková
A102: Dvojnásobné bílé klihové malby v místnostech výšky přes 5,00 m | B102: m2 | C102: 25.68 | D102: 5.08 | E102: 0 | F102: 20.6 | H102: malba hlinková
A103: Dvojnásobné bílé protiplísňové malby v místnostech výšky do 3,80 m | B103: m2 | C103: =SUM(D103:F103) -> 45.65 | D103: 10.76 | E103: 0 | F103: 34.89 | H103: malba protiplísňová
A104: Dvojnásobné bílé protiplísňové malby v místnostech výšky do 5,00 m | B104: m2 | C104: =SUM(D104:F104) -> 48.31 | D104: 10.76 | E104: 0 | F104: 37.55 | H104: malba protiplísňová
A105: Dvojnásobné bílé protiplísňové malby v místnostech výšky přes 5,00 m | B105: m2 | C105: =SUM(D105:F105) -> 50.97 | D105: 10.76 | E105: 0 | F105: 40.21 | H105: malba protiplísňová
A106: Příplatek k cenám protiplísňových maleb za barevné malby tónované tónovacími prostředky | B106: m2 | C106: =SUM(D106:F106) -> 6.62 | D106: 6.62 | E106: 0 | F106: 0 | H106: pigment

Sheet Svépomocí (hidden)
A1: Položka | B1: Cena / (ks/sada/jednotka) Kč bez DPH | D1: zdroj/e
A2: dřevěná lať | B2: 23.96694215
A3: ocelové hladítko 480*130mm rovný okraj | B3: 189.2561983 | D3: https://www.promistry.cz/rovna-hladitka/hladitko-480-x-130-mm-rovne/
A4: ocelové hladítko se zubem 270*130mm | B4: 98.34710744 | D4: https://www.promistry.cz/zubata-hladitka-na-lepidlo/hladitko-nerezove-130x270mm-zub-8x8/
A5: plstěné hladítko 280 mm x 140 mm | B5: 139.6694215 | D5: https://www.obi.cz/zednicke-a-obkladacske-naradi-pokladka-podlah/lux-plstene-hladitko-280-mm-x-140-mm-classic/p/1491943
A6: dřevěné hladítko | B6: 147.9338843 | D6: https://www.obi.cz/zednicke-a-obkladacske-naradi-pokladka-podlah/hladitko-drevene-400-x-140-mm/p/4457453
A7: špachtle pro celoplošné tmelení | B7: 1770 | D7: https://www.izomat.cz/naradi-1/stavebni-a-malirske-potreby-pasky-uklid/lzice-naberacky-a-spachtle/spachtle-pro-celoplosne-tmeleni-60cm.html?gclid=Cj0KCQjw8svsBRDqARIsAHKVyqEyXnNlUedp2GWjCVS2TGt3_Hz0qWA2EIZnm96cFILqDDaXlTAhhQIaAueHEALw_wcB
A8: kýbl na maltu, … | B8: =70/1.21 -> 57.85123967
A9: fanka s rukojetí 215mm | B9: 78.51239669 | D9: https://www.hornbach.cz/shop/Fanka-s-rukojeti-215-mm/7671450/artikl.html
A10: zednická lžíce | B10: =60/1.21 -> 49.58677686
A11: kladívko zednické | B11: 247.107438 | D11: https://www.hornbach.cz/shop/Zednicke-kladivo-600g-2K-VPA/8396629/artikl.html?wt_mc=cz.paid.sea.google.alwayson_assortment..zzpla_produkty.697666290.36620686493.&wt_cc1=697666290&wt_cc2=36620686493&wt_cc3=162909013127&wt_cc4=&wt_cc6=8396629&wt_cc7=&gclid=EAIaIQobChMI7eifxNP75AIVSeJ3Ch0TMQGQEAQYBSABEgJ7efD_BwE https://www.obi.cz/sekery-a-kladiva/lux-kladivo-500-g-comfort/p/1324391
A12: majzlík plochý 100mm | B12: 131.4049587 | D12: https://www.obi.cz/pacidla-a-sekace/lux-sekac-na-dlazdice-plochy-100-mm-comfort/p/5408232
A13: škrabka malířská | B13: 29.75206612 | D13: https://www.hornbach.cz/shop/Malirska-skrabka-YORK-PH-100mm/5231158/artikl.html?wt_mc=cz.paid.sea.google.alwayson_assortment..zzpla_produkty.697666290.37319430152.&wt_cc1=697666290&wt_cc2=37319430152&wt_cc3=162904367431&wt_cc4=&wt_cc6=5231158&wt_cc7=&gclid=EAIaIQobChMIm6HyztD75AIVzeR3Ch1zcgluEAQYASABEgKHS_D_BwE
A14: houba syntetická jemná 165x 110x 60mm | B14: 114.8760331 | D14: https://www.hornbach.cz/shop/Houba-synteticka-jemna-165x-110x-60mm/7417604/artikl.html
A15: houba brusná | B15: 30
A16: řezací hrana | B16: 140 | D16: https://tapety-samolepky.cz/Mako/hrana-rezaci?limit=25
A17: tapetovací ostnatý válec 15 cm | B17: =299/1.21 -> 247.107438 | D17: https://www.obi.cz/odstranovace-tapet-a-podkladove-natery-pod-tapety/lux-tapetovaci-ostnaty-valec-15-cm/p/2200244
A18: vodováha 1,2 m | B18: =949/1.21 -> 784.2975207 | D18: https://www.hornbach.cz/shop/Elektrikarska-vodovaha-Stabila-16136-typ-70-delka-120-cm/7073002/artikl.html
A19: štětka zednická/malířská kulatá průměr 100mm | B19: 53.71900826 | D19: https://www.hornbach.cz/shop/Stetka-zednicka-C3015/4208600/artikl.html
A20: štětka malířská hranatá 636 170 x 75 mm | B20: 66.94214876 | D20: https://www.hornbach.cz/shop/Stetka-malirska-Spokar-hranata-6106-636-170-x-75-mm/4208597/artikl.html
A21: štetec malířský plochý 60mm | B21: 37.19008264 | D21: https://www.obi.cz/stetce/spokar-stetec-plochy-81215-2-5-/p/5263454
A22: štětec malířský plochý 100mm | B22: 53.71900826 | D22: https://malirske-naradi-doplnky.heureka.cz/stetec-natiraci-plochy-100mm-zltop-72348/#
A23: štětec plochý zárohák 1'' (š. 25mm) | B23: 37.19008264 | D23: https://www.hornbach.cz/shop/Stetec-plochy-zarohak-Profi-1-Spokar/4289910/artikl.html
A24: štětec plochý zárohák 3'' (š. 75mm) | B24: 81.81818182 | D24: https://www.hornbach.cz/shop/Stetec-zarohak-3-EVO-PROFI/6749710/artikl.html
A25: váleček mikroplyš šířka 18cm | B25: 61.98347107 | D25: https://www.obi.cz/valecky-na-barvu/valecek-vestan-s-drzakem-18-cm/p/1879105
A26: váleček mikroplyš šířka 25cm | B26: 81.81818182 | D26: odhad
A27: váleček pěnový 15cm | B27: 81.81818182 | D27: https://www.obi.cz/valecky-na-barvu/lux-penovy-valecek-15-cm/p/1489012
A28: váleček pěnový 10cm | B28: 40.49586777 | D28: https://www.obi.cz/valecky-na-barvu/lux-penovy-valecek-10-cm-1k/p/4379756
A29: teleskopická tyč na malování, L=200cm | B29: 95.04132231 | D29: https://www.hornbach.cz/shop/Tyc-prodluzovaci-teleskopicka-2m-ocelova/4200201/artikl.html
A30: nádoba na mřížku na malování | B30: 28.92561983 | D30: https://www.hornbach.cz/shop/Vanicka-na-barvu-26x-32cm-plast/3885366/artikl.html
A31: mřížka stírání barvy 270*290mm | B31: 15.70247934 | D31: https://www.hornbach.cz/shop/Mrizka-stiraci-27x-29cm-plast/8470439/artikl.html
A32: malířský kbelík obdélníkový, 14l | B32: 139.6694215 | D32: https://www.googleadservices.com/pagead/aclk?sa=L&ai=DChcSEwif0Zee3fvkAhWDQ9MKHWZwA5AYABAIGgJ3Yg&ohost=www.google.com&cid=CAASE-RoDWIVhPaS6Ry_sQZxaAjvslw&sig=AOD64_2c_475G6We-FEVhK-1tNR1zFnXNA&ctype=5&rct=j&q=&ved=0ahUKEwiwhJCe3fvkAhVTr3EKHbR-BnUQ9aACCEM&adurl=
A33: vytlačovací pistole na kartuše | B33: 78.51239669 | D33: https://www.hornbach.cz/shop/Strip-ROXOLID-Vytlacovaci-pistol-skelet/6153143/artikl.html
A34: stěrka gumová 180mm na hlazení spár | B34: 37.19008264 | D34: https://www.hornbach.cz/shop/Sterka-gumova-180mm-drevene-drzadlo/7417649/artikl.html
A35: malířská špachtle(škrabka) 40/60/80 mm | B35: 32.23140496 | D35: https://www.hornbach.cz/shop/Malirska-spachtle-sada-40-60-a-80-mm/3840067/artikl.html
A36: sádrový tmel 500ml | B36: 90.08264463 | D36: https://www.hornbach.cz/shop/Sadrovy-tmel-DEN-BRAVEN-Qualy-Fill-lehceny-500-ml/4214009/artikl.html
A37: šlehaný tmel 500ml | B37: 114.8760331 | D37: https://www.hornbach.cz/shop/Slehany-lehceny-tmel-Het-500-ml/7970326/artikl.html
A38: smetáček a lopatka | B38: 40.49586777 | D38: https://www.hornbach.cz/shop/SMetacek-a-lopatka-Spontex/10012926/artikl.html
A39: smeták s holí 120 cm | B39: 103.3057851 | D39: https://www.hornbach.cz/shop/Smetak-s-holi-120-cm/7600556/artikl.html
A40: odpadkové pytle 60l | B40: 49.58677686 | D40: https://www.eva.cz/zbozi/DRO46841/pytle-na-odpad-fino-eko-natura-60l-20ks-vazaci-rozlozitelne/
A41: kbelík s výlevkou 15l | B41: 53.71900826 | D41: https://www.eva.cz/zbozi/DOP16028/kbelik-s-vylevkou-15-l/
A42: dřevěné štafle na práci do 3,05m (LŠ 166,5+ PRV140) | B42: 1090.082645 | D42: https://www.zahrada-domacnost.cz/stafle-drevene-5-pricek
A43: dřevěné štafle na práci do 4,565m (LŠ 316,5+ PRV140) | B43: 2197.520661 | D43: https://www.zahrada-domacnost.cz/stafle-drevene-10-pricek
A44: míchadlo lepidel a malty a barev | B44: 1652.066116 | D44: https://www.hornbach.cz/shop/Michadlo-lepidel-a-malty-Einhell-TC-MX-1400-2-E/6013411/artikl.html
A45: hřídel se spirálou - míchací na barvu/lepidlo 10kg | B45: 180.9917355 | D45: https://www.hornbach.cz/shop/Michadlo-na-smesi-spirala-140-x-590-x-10-mm/5908367/artikl.html

Sheet Výpočty (hidden)
A1: Parametr/ č.místnosti | B1: 01 | C1: 02 | D1: 03 | E1: 04 | F1: 05 | G1: 06 | H1: 07 | I1: 08 | J1: 09 | K1: 10 | L1: Celkem | N1: Svépomocí
A2: Plocha stěn [m2] (nebude přeci jen lepší obvod???) | B2: =Room01!F10 -> 0 | C2: =Room02!F10 -> 0 | D2: =Room03!F10 -> 0 | E2: =Room04!F10 -> 0 | F2: =Room05!F10 -> 0 | G2: =Room06!F10 -> 0 | H2: =Room07!F10 -> 0 | I2: =Room08!F10 -> 0 | J2: =Room09!F10 -> 0 | K2: =Room10!F10 -> 0 | L2: =SUM(B2:K2) -> 0
A3: Plocha [m2] | B3: =Room01!F11 -> 0 | C3: =Room02!F11 -> 0 | D3: =Room03!F11 -> 0 | E3: =Room04!F11 -> 0 | F3: =Room05!F11 -> 0 | G3: =Room06!F11 -> 0 | H3: =Room07!F11 -> 0 | I3: =Room08!F11 -> 0 | J3: =Room09!F11 -> 0 | K3: =Room10!F11 -> 0 | L3: =SUM(B3:K3) -> 0
A4: Plocha otvorů [m2] | B4: =Room01!F12 -> 0 | C4: =Room02!F12 -> 0 | D4: =Room03!F12 -> 0 | E4: =Room04!F12 -> 0 | F4: =Room05!F12 -> 0 | G4: =Room06!F12 -> 0 | H4: =Room07!F12 -> 0 | I4: =Room08!F12 -> 0 | J4: =Room09!F12 -> 0 | K4: =Room10!F12 -> 0 | L4: 0
A5: Výška místnosti [m] | B5: =Room01!F13 -> 0 | C5: =Room02!F13 -> 0 | D5: =Room03!F13 -> 0 | E5: =Room04!F13 -> 0 | F5: =Room05!F13 -> 0 | G5: =Room06!F13 -> 0 | H5: =Room07!F13 -> 0 | I5: =Room08!F13 -> 0 | J5: =Room09!F13 -> 0 | K5: =Room10!F13 -> 0
A6: Obvod místnosti [m] | B6: =IF(B5=0,0,B2/B5) -> 0 | C6: =IF(C5=0,0,C2/C5) -> 0 | D6: =IF(D5=0,0,D2/D5) -> 0 | E6: 0 | F6: 0 | G6: 0 | H6: 0 | I6: 0 | J6: 0 | K6: 0 | L6: 0
A9: keramický obklad | B9: =Room01!E19 -> 0 | C9: =Room02!E19 -> 0 | D9: =Room03!E19 -> 0 | E9: =Room04!E19 -> 0 | F9: =Room05!E19 -> 0 | G9: =Room06!E19 -> 0 | H9: =Room07!E19 -> 0 | I9: =Room08!E19 -> 0 | J9: =Room09!E19 -> 0 | K9: =Room10!E19 -> 0 | L9: 0
A10: stará malba | B10: =Room01!E20 -> 0 | C10: =Room02!E20 -> 0 | D10: =Room03!E20 -> 0 | E10: =Room04!E20 -> 0 | F10: =Room05!E20 -> 0 | G10: =Room06!E20 -> 0 | H10: =Room07!E20 -> 0 | I10: =Room08!E20 -> 0 | J10: =Room09!E20 -> 0 | K10: =Room10!E20 -> 0 | L10: 0
A11: tapety | B11: =Room01!E21 -> 0 | C11: =Room02!E21 -> 0 | D11: =Room03!E21 -> 0 | E11: =Room04!E21 -> 0 | F11: =Room05!E21 -> 0 | G11: =Room06!E21 -> 0 | H11: =Room07!E21 -> 0 | I11: =Room08!E21 -> 0 | J11: =Room09!E21 -> 0 | K11: =Room10!E21 -> 0 | L11: 0
A12: nová omítka | B12: =Room01!E22 -> 0 | C12: =Room02!E22 -> 0 | D12: =Room03!E22 -> 0 | E12: =Room04!E22 -> 0 | F12: =Room05!E22 -> 0 | G12: =Room06!E22 -> 0 | H12: =Room07!E22 -> 0 | I12: =Room08!E22 -> 0 | J12: =Room09!E22 -> 0 | K12: =Room10!E22 -> 0 | L12: 0
A13: SDK deska | B13: =Room01!E23 -> 0 | C13: =Room02!E23 -> 0 | D13: =Room03!E23 -> 0 | E13: =Room04!E23 -> 0 | F13: =Room05!E23 -> 0 | G13: =Room06!E23 -> 0 | H13: =Room07!E23 -> 0 | I13: =Room08!E23 -> 0 | J13: =Room09!E23 -> 0 | K13: =Room10!E23 -> 0 | L13: =SUM(B13:K13) -> 0
A14: hrubá konstrukce | B14: =Room01!E24 -> 0 | C14: =Room02!E24 -> 0 | D14: =Room03!E24 -> 0 | E14: =Room04!E24 -> 0 | F14: =Room05!E24 -> 0 | G14: =Room06!E24 -> 0 | H14: =Room07!E24 -> 0 | I14: =Room08!E24 -> 0 | J14: =Room09!E24 -> 0 | K14: =Room10!E24 -> 0 | L14: 0
A16: Odsekání obkladu | B16: =IF(B9<1,Ceník!$C$35,Ceník!$C$36)*B9 -> 0 | C16: =IF(C9<1,Ceník!$C$35,Ceník!$C$36)*C9 -> 0 | D16: =IF(D9<1,Ceník!$C$35,Ceník!$C$36)*D9 -> 0 | E16: =IF(E9<1,Ceník!$C$35,Ceník!$C$36)*E9 -> 0 | F16: =IF(F9<1,Ceník!$C$35,Ceník!$C$36)*F9 -> 0 | G16: =IF(G9<1,Ceník!$C$35,Ceník!$C$36)*G9 -> 0 | H16: =IF(H9<1,Ceník!$C$35,Ceník!$C$36)*H9 -> 0 | I16: =IF(I9<1,Ceník!$C$35,Ceník!$C$36)*I9 -> 0 | J16: =IF(J9<1,Ceník!$C$35,Ceník!$C$36)*J9 -> 0 | K16: =IF(K9<1,Ceník!$C$35,Ceník!$C$36)*K9 -> 0 | L16: =SUM(B16:K16) -> 0 | N16: =IF(L16>0,Ceník!I35,0) -> 0
A17: vyrovnání podkladu omítkou pod obkladem | B17: =B$9*(Ceník!$C$37+IF(B$5<3.8,Ceník!$C$42,IF(B$5<5,Ceník!$C$43,IF(B$5>5,Ceník!$C$44)))) -> 0 | C17: =C$9*(Ceník!$C$37+IF(C$5<3.8,Ceník!$C$42,IF(C$5<5,Ceník!$C$43,IF(C$5>5,Ceník!$C$44)))) -> 0 | D17: =D$9*(Ceník!$C$37+IF(D$5<3.8,Ceník!$C$42,IF(D$5<5,Ceník!$C$43,IF(D$5>5,Ceník!$C$44)))) -> 0 | E17: =E$9*(Ceník!$C$37+IF(E$5<3.8,Ceník!$C$42,IF(E$5<5,Ceník!$C$43,IF(E$5>5,Ceník!$C$44)))) -> 0 | F17: =F$9*(Ceník!$C$37+IF(F$5<3.8,Ceník!$C$42,IF(F$5<5,Ceník!$C$43,IF(F$5>5,Ceník!$C$44)))) -> 0 | G17: =G$9*(Ceník!$C$37+IF(G$5<3.8,Ceník!$C$42,IF(G$5<5,Ceník!$C$43,IF(G$5>5,Ceník!$C$44)))) -> 0 | H17: =H$9*(Ceník!$C$37+IF(H$5<3.8,Ceník!$C$42,IF(H$5<5,Ceník!$C$43,IF(H$5>5,Ceník!$C$44)))) -> 0 | I17: =I$9*(Ceník!$C$37+IF(I$5<3.8,Ceník!$C$42,IF(I$5<5,Ceník!$C$43,IF(I$5>5,Ceník!$C$44)))) -> 0 | J17: =J$9*(Ceník!$C$37+IF(J$5<3.8,Ceník!$C$42,IF(J$5<5,Ceník!$C$43,IF(J$5>5,Ceník!$C$44)))) -> 0 | K17: =K$9*(Ceník!$C$37+IF(K$5<3.8,Ceník!$C$42,IF(K$5<5,Ceník!$C$43,IF(K$5>5,Ceník!$C$44)))) -> 0 | L17: 0 | N17: =IF(L17>0,Ceník!I42,0) -> 0
A18: materiál | B18: =B$9*(Ceník!$D$37+IF(B$5<3.8,Ceník!$D$42,IF(B$5<5,Ceník!$D$43,IF(B$5>5,Ceník!$D$44)))) -> 0 | C18: =C$9*(Ceník!$D$37+IF(C$5<3.8,Ceník!$D$42,IF(C$5<5,Ceník!$D$43,IF(C$5>5,Ceník!$D$44)))) -> 0 | D18: =D$9*(Ceník!$D$37+IF(D$5<3.8,Ceník!$D$42,IF(D$5<5,Ceník!$D$43,IF(D$5>5,Ceník!$D$44)))) -> 0 | E18: =E$9*(Ceník!$D$37+IF(E$5<3.8,Ceník!$D$42,IF(E$5<5,Ceník!$D$43,IF(E$5>5,Ceník!$D$44)))) -> 0 | F18: =F$9*(Ceník!$D$37+IF(F$5<3.8,Ceník!$D$42,IF(F$5<5,Ceník!$D$43,IF(F$5>5,Ceník!$D$44)))) -> 0 | G18: =G$9*(Ceník!$D$37+IF(G$5<3.8,Ceník!$D$42,IF(G$5<5,Ceník!$D$43,IF(G$5>5,Ceník!$D$44)))) -> 0 | H18: =H$9*(Ceník!$D$37+IF(H$5<3.8,Ceník!$D$42,IF(H$5<5,Ceník!$D$43,IF(H$5>5,Ceník!$D$44)))) -> 0 | I18: =I$9*(Ceník!$D$37+IF(I$5<3.8,Ceník!$D$42,IF(I$5<5,Ceník!$D$43,IF(I$5>5,Ceník!$D$44)))) -> 0 | J18: =J$9*(Ceník!$D$37+IF(J$5<3.8,Ceník!$D$42,IF(J$5<5,Ceník!$D$43,IF(J$5>5,Ceník!$D$44)))) -> 0 | K18: =K$9*(Ceník!$D$37+IF(K$5<3.8,Ceník!$D$42,IF(K$5<5,Ceník!$D$43,IF(K$5>5,Ceník!$D$44)))) -> 0 | L18: 0
A19: malba oškrábat | B19: =IF(OR(Room01!A27=TRUE,Room01!B30=TRUE,Room01!C34=TRUE,Room01!D38=TRUE,Room01!D39=TRUE,Room01!D40=TRUE),Výpočty!B10,0) -> 0 | C19: =IF(OR(Room02!A27=TRUE,Room02!B30=TRUE,Room02!C34=TRUE,Room02!D38=TRUE,Room02!D39=TRUE,Room02!D40=TRUE),Výpočty!C10,0) -> 0 | D19: =IF(OR(Room03!A27=TRUE,Room03!B30=TRUE,Room03!C34=TRUE,Room03!D38=TRUE,Room03!D39=TRUE,Room03!D40=TRUE),Výpočty!D10,0) -> 0 | E19: =IF(OR(Room04!A27=TRUE,Room04!B30=TRUE,Room04!C34=TRUE,Room04!D38=TRUE,Room04!D39=TRUE,Room04!D40=TRUE),Výpočty!E10,0) -> 0 | F19: =IF(OR(Room05!A27=TRUE,Room05!B30=TRUE,Room05!C34=TRUE,Room05!D38=TRUE,Room05!D39=TRUE,Room05!D40=TRUE),Výpočty!F10,0) -> 0 | G19: =IF(OR(Room06!A27=TRUE,Room06!B30=TRUE,Room06!C34=TRUE,Room06!D38=TRUE,Room06!D39=TRUE,Room06!D40=TRUE),Výpočty!G10,0) -> 0 | H19: =IF(OR(Room07!A27=TRUE,Room07!B30=TRUE,Room07!C34=TRUE,Room07!D38=TRUE,Room07!D39=TRUE,Room07!D40=TRUE),Výpočty!H10,0) -> 0 | I19: =IF(OR(Room08!A27=TRUE,Room08!B30=TRUE,Room08!C34=TRUE,Room08!D38=TRUE,Room08!D39=TRUE,Room08!D40=TRUE),Výpočty!I10,0) -> 0 | J19: =IF(OR(Room09!A27=TRUE,Room09!B30=TRUE,Room09!C34=TRUE,Room09!D38=TRUE,Room09!D39=TRUE,Room09!D40=TRUE),Výpočty!J10,0) -> 0 | K19: =IF(OR(Room10!A27=TRUE,Room10!B30=TRUE,Room10!C34=TRUE,Room10!D38=TRUE,Room10!D39=TRUE,Room10!D40=TRUE),Výpočty!K10,0) -> 0 | L19: 0
B20: =IF(B$5<3.8,Ceník!$C$27,IF(B$5<5,Ceník!$C$28,IF(B$5>5,Ceník!$C$29)))*B19 -> 0 | C20: =IF(C$5<3.8,Ceník!$C$27,IF(C$5<5,Ceník!$C$28,IF(C$5>5,Ceník!$C$29)))*C19 -> 0 | D20: =IF(D$5<3.8,Ceník!$C$27,IF(D$5<5,Ceník!$C$28,IF(D$5>5,Ceník!$C$29)))*D19 -> 0 | E20: =IF(E$5<3.8,Ceník!$C$27,IF(E$5<5,Ceník!$C$28,IF(E$5>5,Ceník!$C$29)))*E19 -> 0 | F20: =IF(F$5<3.8,Ceník!$C$27,IF(F$5<5,Ceník!$C$28,IF(F$5>5,Ceník!$C$29)))*F19 -> 0 | G20: =IF(G$5<3.8,Ceník!$C$27,IF(G$5<5,Ceník!$C$28,IF(G$5>5,Ceník!$C$29)))*G19 -> 0 | H20: =IF(H$5<3.8,Ceník!$C$27,IF(H$5<5,Ceník!$C$28,IF(H$5>5,Ceník!$C$29)))*H19 -> 0 | I20: =IF(I$5<3.8,Ceník!$C$27,IF(I$5<5,Ceník!$C$28,IF(I$5>5,Ceník!$C$29)))*I19 -> 0 | J20: =IF(J$5<3.8,Ceník!$C$27,IF(J$5<5,Ceník!$C$28,IF(J$5>5,Ceník!$C$29)))*J19 -> 0 | K20: =IF(K$5<3.8,Ceník!$C$27,IF(K$5<5,Ceník!$C$28,IF(K$5>5,Ceník!$C$29)))*K19 -> 0 | L20: =SUM(B20:K20) -> 0 | N20: =IF(L20>0,Ceník!I27,0) -> 0
A21: rozmývání | B21: =IF(B$5<3.8,Ceník!$C$30,IF(B$5<5,Ceník!$C$31,IF(B$5>5,Ceník!$C$32)))*B19 -> 0 | C21: =IF(C$5<3.8,Ceník!$C$30,IF(C$5<5,Ceník!$C$31,IF(C$5>5,Ceník!$C$32)))*C19 -> 0 | D21: =IF(D$5<3.8,Ceník!$C$30,IF(D$5<5,Ceník!$C$31,IF(D$5>5,Ceník!$C$32)))*D19 -> 0 | E21: =IF(E$5<3.8,Ceník!$C$30,IF(E$5<5,Ceník!$C$31,IF(E$5>5,Ceník!$C$32)))*E19 -> 0 | F21: =IF(F$5<3.8,Ceník!$C$30,IF(F$5<5,Ceník!$C$31,IF(F$5>5,Ceník!$C$32)))*F19 -> 0 | G21: =IF(G$5<3.8,Ceník!$C$30,IF(G$5<5,Ceník!$C$31,IF(G$5>5,Ceník!$C$32)))*G19 -> 0 | H21: =IF(H$5<3.8,Ceník!$C$30,IF(H$5<5,Ceník!$C$31,IF(H$5>5,Ceník!$C$32)))*H19 -> 0 | I21: =IF(I$5<3.8,Ceník!$C$30,IF(I$5<5,Ceník!$C$31,IF(I$5>5,Ceník!$C$32)))*I19 -> 0 | J21: =IF(J$5<3.8,Ceník!$C$30,IF(J$5<5,Ceník!$C$31,IF(J$5>5,Ceník!$C$32)))*J19 -> 0 | K21: =IF(K$5<3.8,Ceník!$C$30,IF(K$5<5,Ceník!$C$31,IF(K$5>5,Ceník!$C$32)))*K19 -> 0 | L21: =SUM(B21:K21) -> 0 | N21: =IF(L21>0,Ceník!I30,0) -> 0
A22: tapety strhnout | B22: =IF(OR(Room01!A44=TRUE,Room01!B47=TRUE,Room01!C51=TRUE),Výpočty!B11,0) -> 0 | C22: =IF(OR(Room02!A44=TRUE,Room02!B47=TRUE,Room02!C51=TRUE),Výpočty!C11,0) -> 0 | D22: =IF(OR(Room03!A44=TRUE,Room03!B47=TRUE,Room03!C51=TRUE),Výpočty!D11,0) -> 0 | E22: =IF(OR(Room04!A44=TRUE,Room04!B47=TRUE,Room04!C51=TRUE),Výpočty!E11,0) -> 0 | F22: =IF(OR(Room05!A44=TRUE,Room05!B47=TRUE,Room05!C51=TRUE),Výpočty!F11,0) -> 0 | G22: =IF(OR(Room06!A44=TRUE,Room06!B47=TRUE,Room06!C51=TRUE),Výpočty!G11,0) -> 0 | H22: =IF(OR(Room07!A44=TRUE,Room07!B47=TRUE,Room07!C51=TRUE),Výpočty!H11,0) -> 0 | I22: =IF(OR(Room08!A44=TRUE,Room08!B47=TRUE,Room08!C51=TRUE),Výpočty!I11,0) -> 0 | J22: =IF(OR(Room09!A44=TRUE,Room09!B47=TRUE,Room09!C51=TRUE),Výpočty!J11,0) -> 0 | K22: =IF(OR(Room10!A44=TRUE,Room10!B47=TRUE,Room10!C51=TRUE),Výpočty!K11,0) -> 0 | L22: 0
B23: =B22*Ceník!$C$33 -> 0 | C23: =C22*Ceník!$C$33 -> 0 | D23: =D22*Ceník!$C$33 -> 0 | E23: =E22*Ceník!$C$33 -> 0 | F23: =F22*Ceník!$C$33 -> 0 | G23: =G22*Ceník!$C$33 -> 0 | H23: =H22*Ceník!$C$33 -> 0 | I23: =I22*Ceník!$C$33 -> 0 | J23: =J22*Ceník!$C$33 -> 0 | K23: =K22*Ceník!$C$33 -> 0 | L23: =SUM(B23:K23) -> 0 | N23: =IF(L23>0,Ceník!I33,0) -> 0
A24: vyrovnání podkladu omítkou pod tapetou | B24: =B$22*(Ceník!$C$37+IF(B$5<3.8,Ceník!$C$42,IF(B$5<5,Ceník!$C$43,IF(B$5>5,Ceník!$C$44)))) -> 0 | C24: =C$22*(Ceník!$C$37+IF(C$5<3.8,Ceník!$C$42,IF(C$5<5,Ceník!$C$43,IF(C$5>5,Ceník!$C$44)))) -> 0 | D24: =D$22*(Ceník!$C$37+IF(D$5<3.8,Ceník!$C$42,IF(D$5<5,Ceník!$C$43,IF(D$5>5,Ceník!$C$44)))) -> 0 | E24: =E$22*(Ceník!$C$37+IF(E$5<3.8,Ceník!$C$42,IF(E$5<5,Ceník!$C$43,IF(E$5>5,Ceník!$C$44)))) -> 0 | F24: =F$22*(Ceník!$C$37+IF(F$5<3.8,Ceník!$C$42,IF(F$5<5,Ceník!$C$43,IF(F$5>5,Ceník!$C$44)))) -> 0 | G24: =G$22*(Ceník!$C$37+IF(G$5<3.8,Ceník!$C$42,IF(G$5<5,Ceník!$C$43,IF(G$5>5,Ceník!$C$44)))) -> 0 | H24: =H$22*(Ceník!$C$37+IF(H$5<3.8,Ceník!$C$42,IF(H$5<5,Ceník!$C$43,IF(H$5>5,Ceník!$C$44)))) -> 0 | I24: =I$22*(Ceník!$C$37+IF(I$5<3.8,Ceník!$C$42,IF(I$5<5,Ceník!$C$43,IF(I$5>5,Ceník!$C$44)))) -> 0 | J24: =J$22*(Ceník!$C$37+IF(J$5<3.8,Ceník!$C$42,IF(J$5<5,Ceník!$C$43,IF(J$5>5,Ceník!$C$44)))) -> 0 | K24: =K$22*(Ceník!$C$37+IF(K$5<3.8,Ceník!$C$42,IF(K$5<5,Ceník!$C$43,IF(K$5>5,Ceník!$C$44)))) -> 0 | L24: =SUM(B24:K24) -> 0 | N24: =IF(L24>0,Ceník!I35,0) -> 0
A25: materiál | B25: =B$22*(Ceník!$D$37+IF(B$5<3.8,Ceník!$D$42,IF(B$5<5,Ceník!$D$43,IF(B$5>5,Ceník!$D$44)))) -> 0 | C25: =C$22*(Ceník!$D$37+IF(C$5<3.8,Ceník!$D$42,IF(C$5<5,Ceník!$D$43,IF(C$5>5,Ceník!$D$44)))) -> 0 | D25: =D$22*(Ceník!$D$37+IF(D$5<3.8,Ceník!$D$42,IF(D$5<5,Ceník!$D$43,IF(D$5>5,Ceník!$D$44)))) -> 0 | E25: =E$22*(Ceník!$D$37+IF(E$5<3.8,Ceník!$D$42,IF(E$5<5,Ceník!$D$43,IF(E$5>5,Ceník!$D$44)))) -> 0 | F25: =F$22*(Ceník!$D$37+IF(F$5<3.8,Ceník!$D$42,IF(F$5<5,Ceník!$D$43,IF(F$5>5,Ceník!$D$44)))) -> 0 | G25: =G$22*(Ceník!$D$37+IF(G$5<3.8,Ceník!$D$42,IF(G$5<5,Ceník!$D$43,IF(G$5>5,Ceník!$D$44)))) -> 0 | H25: =H$22*(Ceník!$D$37+IF(H$5<3.8,Ceník!$D$42,IF(H$5<5,Ceník!$D$43,IF(H$5>5,Ceník!$D$44)))) -> 0 | I25: =I$22*(Ceník!$D$37+IF(I$5<3.8,Ceník!$D$42,IF(I$5<5,Ceník!$D$43,IF(I$5>5,Ceník!$D$44)))) -> 0 | J25: =J$22*(Ceník!$D$37+IF(J$5<3.8,Ceník!$D$42,IF(J$5<5,Ceník!$D$43,IF(J$5>5,Ceník!$D$44)))) -> 0 | K25: =K$22*(Ceník!$D$37+IF(K$5<3.8,Ceník!$D$42,IF(K$5<5,Ceník!$D$43,IF(K$5>5,Ceník!$D$44)))) -> 0 | L25: 0
A26: tapety oškrábat | B26: =IF(OR(Room01!E58=TRUE,Room01!E59=TRUE,Room01!E60=TRUE),Výpočty!B11,0) -> 0 | C26: =IF(OR(Room02!E58=TRUE,Room02!E59=TRUE,Room02!E60=TRUE),Výpočty!C11,0) -> 0 | D26: =IF(OR(Room03!E58=TRUE,Room03!E59=TRUE,Room03!E60=TRUE),Výpočty!D11,0) -> 0 | E26: =IF(OR(Room04!E58=TRUE,Room04!E59=TRUE,Room04!E60=TRUE),Výpočty!E11,0) -> 0 | F26: =IF(OR(Room05!E58=TRUE,Room05!E59=TRUE,Room05!E60=TRUE),Výpočty!F11,0) -> 0 | G26: =IF(OR(Room06!E58=TRUE,Room06!E59=TRUE,Room06!E60=TRUE),Výpočty!G11,0) -> 0 | H26: =IF(OR(Room07!E58=TRUE,Room07!E59=TRUE,Room07!E60=TRUE),Výpočty!H11,0) -> 0 | I26: =IF(OR(Room08!E58=TRUE,Room08!E59=TRUE,Room08!E60=TRUE),Výpočty!I11,0) -> 0 | J26: =IF(OR(Room09!E58=TRUE,Room09!E59=TRUE,Room09!E60=TRUE),Výpočty!J11,0) -> 0 | K26: =IF(OR(Room10!E58=TRUE,Room10!E59=TRUE,Room10!E60=TRUE),Výpočty!K11,0) -> 0 | L26: =SUM(B26:K26) -> 0
B27: =IF(B$5<3.8,Ceník!$C$27,IF(B$5<5,Ceník!$C$28,IF(B$5>5,Ceník!$C$29)))*B26 -> 0 | C27: =IF(C$5<3.8,Ceník!$C$27,IF(C$5<5,Ceník!$C$28,IF(C$5>5,Ceník!$C$29)))*C26 -> 0 | D27: =IF(D$5<3.8,Ceník!$C$27,IF(D$5<5,Ceník!$C$28,IF(D$5>5,Ceník!$C$29)))*D26 -> 0 | E27: =IF(E$5<3.8,Ceník!$C$27,IF(E$5<5,Ceník!$C$28,IF(E$5>5,Ceník!$C$29)))*E26 -> 0 | F27: =IF(F$5<3.8,Ceník!$C$27,IF(F$5<5,Ceník!$C$28,IF(F$5>5,Ceník!$C$29)))*F26 -> 0 | G27: =IF(G$5<3.8,Ceník!$C$27,IF(G$5<5,Ceník!$C$28,IF(G$5>5,Ceník!$C$29)))*G26 -> 0 | H27: =IF(H$5<3.8,Ceník!$C$27,IF(H$5<5,Ceník!$C$28,IF(H$5>5,Ceník!$C$29)))*H26 -> 0 | I27: =IF(I$5<3.8,Ceník!$C$27,IF(I$5<5,Ceník!$C$28,IF(I$5>5,Ceník!$C$29)))*I26 -> 0 | J27: =IF(J$5<3.8,Ceník!$C$27,IF(J$5<5,Ceník!$C$28,IF(J$5>5,Ceník!$C$29)))*J26 -> 0 | K27: =IF(K$5<3.8,Ceník!$C$27,IF(K$5<5,Ceník!$C$28,IF(K$5>5,Ceník!$C$29)))*K26 -> 0 | L27: =SUM(B27:K27) -> 0 | N27: =IF(L27>0,Ceník!I33,0) -> 0
A28: nová omítka | B28: =IF(Room01!B66=TRUE,Room01!$I$64,0) -> 0 | C28: =IF(Room01!C66=TRUE,Room01!$I$64,0) -> 0 | D28: =IF(Room01!D66=TRUE,Room01!$I$64,0) -> 0 | E28: =IF(Room01!E66=TRUE,Room01!$I$64,0) -> 0 | F28: =IF(Room05!B66=TRUE,Room05!$I$64,0) -> 0 | G28: =IF(Room06!B66=TRUE,Room06!$I$64,0) -> 0 | H28: =IF(Room07!B66=TRUE,Room07!$I$64,0) -> 0 | I28: =IF(Room08!B66=TRUE,Room08!$I$64,0) -> 0 | J28: =IF(Room09!B66=TRUE,Room09!$I$64,0) -> 0 | K28: =IF(Room10!B66=TRUE,Room10!$I$64,0) -> 0 | L28: 0
A29: celkem | B29: =B$28*(Ceník!$C$9+IF(B$5<3.8,Ceník!$C$42,IF(B$5<5,Ceník!$C$43,IF(B$5>5,Ceník!$C$44)))) -> 0 | C29: =C$28*(Ceník!$C$9+IF(C$5<3.8,Ceník!$C$42,IF(C$5<5,Ceník!$C$43,IF(C$5>5,Ceník!$C$44)))) -> 0 | D29: =D$28*(Ceník!$C$9+IF(D$5<3.8,Ceník!$C$42,IF(D$5<5,Ceník!$C$43,IF(D$5>5,Ceník!$C$44)))) -> 0 | E29: =E$28*(Ceník!$C$9+IF(E$5<3.8,Ceník!$C$42,IF(E$5<5,Ceník!$C$43,IF(E$5>5,Ceník!$C$44)))) -> 0 | F29: =F$28*(Ceník!$C$9+IF(F$5<3.8,Ceník!$C$42,IF(F$5<5,Ceník!$C$43,IF(F$5>5,Ceník!$C$44)))) -> 0 | G29: =G$28*(Ceník!$C$9+IF(G$5<3.8,Ceník!$C$42,IF(G$5<5,Ceník!$C$43,IF(G$5>5,Ceník!$C$44)))) -> 0 | H29: =H$28*(Ceník!$C$9+IF(H$5<3.8,Ceník!$C$42,IF(H$5<5,Ceník!$C$43,IF(H$5>5,Ceník!$C$44)))) -> 0 | I29: =I$28*(Ceník!$C$9+IF(I$5<3.8,Ceník!$C$42,IF(I$5<5,Ceník!$C$43,IF(I$5>5,Ceník!$C$44)))) -> 0 | J29: =J$28*(Ceník!$C$9+IF(J$5<3.8,Ceník!$C$42,IF(J$5<5,Ceník!$C$43,IF(J$5>5,Ceník!$C$44)))) -> 0 | K29: =K$28*(Ceník!$C$9+IF(K$5<3.8,Ceník!$C$42,IF(K$5<5,Ceník!$C$43,IF(K$5>5,Ceník!$C$44)))) -> 0 | L29: =SUM(B29:K29) -> 0 | N29: =IF(L29>0,Ceník!I42,0) -> 0
A30: materiál | B30: =B$28*(Ceník!$D$9+IF(B$5<3.8,Ceník!$D$42,IF(B$5<5,Ceník!$D$43,IF(B$5>5,Ceník!$D$44)))) -> 0 | C30: =C$28*Ceník!$D$9 -> 0 | D30: =D$28*Ceník!$D$9 -> 0 | E30: =E$28*Ceník!$D$9 -> 0 | F30: =F$28*Ceník!$D$9 -> 0 | G30: =G$28*Ceník!$D$9 -> 0 | H30: =H$28*Ceník!$D$9 -> 0 | I30: =I$28*Ceník!$D$9 -> 0 | J30: =J$28*Ceník!$D$9 -> 0 | K30: =K$28*Ceník!$D$9 -> 0 | L30: 0
A31: vyspravení omítky | B31: =IF(Room01!B67=TRUE,Room01!$I$64,0) -> 0 | C31: =IF(Room02!B67=TRUE,Room02!$I$64,0) -> 0 | D31: =IF(Room03!B67=TRUE,Room03!$I$64,0) -> 0 | E31: =IF(Room04!B67=TRUE,Room04!$I$64,0) -> 0 | F31: =IF(Room05!B67=TRUE,Room05!$I$64,0) -> 0 | G31: =IF(Room06!B67=TRUE,Room06!$I$64,0) -> 0 | H31: =IF(Room07!B67=TRUE,Room07!$I$64,0) -> 0 | I31: =IF(Room08!B67=TRUE,Room08!$I$64,0) -> 0 | J31: =IF(Room09!B67=TRUE,Room09!$I$64,0) -> 0 | K31: =IF(Room10!B67=TRUE,Room10!$I$64,0) -> 0 | L31: 0
A32: celkem | B32: =B$31*(IF(B$5<3.8,Ceník!$C$45,IF(B$5<5,Ceník!$C$46,IF(B$5>5,Ceník!$C$47)))) -> 0 | C32: =C$31*(IF(C$5<3.8,Ceník!$C$45,IF(C$5<5,Ceník!$C$46,IF(C$5>5,Ceník!$C$47)))) -> 0 | D32: =D$31*(IF(D$5<3.8,Ceník!$C$45,IF(D$5<5,Ceník!$C$46,IF(D$5>5,Ceník!$C$47)))) -> 0 | E32: =E$31*(IF(E$5<3.8,Ceník!$C$45,IF(E$5<5,Ceník!$C$46,IF(E$5>5,Ceník!$C$47)))) -> 0 | F32: =F$31*(IF(F$5<3.8,Ceník!$C$45,IF(F$5<5,Ceník!$C$46,IF(F$5>5,Ceník!$C$47)))) -> 0 | G32: =G$31*(IF(G$5<3.8,Ceník!$C$45,IF(G$5<5,Ceník!$C$46,IF(G$5>5,Ceník!$C$47)))) -> 0 | H32: =H$31*(IF(H$5<3.8,Ceník!$C$45,IF(H$5<5,Ceník!$C$46,IF(H$5>5,Ceník!$C$47)))) -> 0 | I32: =I$31*(IF(I$5<3.8,Ceník!$C$45,IF(I$5<5,Ceník!$C$46,IF(I$5>5,Ceník!$C$47)))) -> 0 | J32: =J$31*(IF(J$5<3.8,Ceník!$C$45,IF(J$5<5,Ceník!$C$46,IF(J$5>5,Ceník!$C$47)))) -> 0 | K32: =K$31*(IF(K$5<3.8,Ceník!$C$45,IF(K$5<5,Ceník!$C$46,IF(K$5>5,Ceník!$C$47)))) -> 0 | L32: =L$31*(IF(L$5<3.8,Ceník!$C$45,IF(L$5<5,Ceník!$C$46,IF(L$5>5,Ceník!$C$47)))) -> 0 | N32: =IF(L32>0,Ceník!I45,0) -> 0
A33: materiál | B33: =B$31*(IF(B$5<3.8,Ceník!$D$45,IF(B$5<5,Ceník!$D$46,IF(B$5>5,Ceník!$D$47)))) -> 0 | C33: =C$31*(IF(C$5<3.8,Ceník!$D$45,IF(C$5<5,Ceník!$D$46,IF(C$5>5,Ceník!$D$47)))) -> 0 | D33: =D$31*(IF(D$5<3.8,Ceník!$D$45,IF(D$5<5,Ceník!$D$46,IF(D$5>5,Ceník!$D$47)))) -> 0 | E33: =E$31*(IF(E$5<3.8,Ceník!$D$45,IF(E$5<5,Ceník!$D$46,IF(E$5>5,Ceník!$D$47)))) -> 0 | F33: =F$31*(IF(F$5<3.8,Ceník!$D$45,IF(F$5<5,Ceník!$D$46,IF(F$5>5,Ceník!$D$47)))) -> 0 | G33: =G$31*(IF(G$5<3.8,Ceník!$D$45,IF(G$5<5,Ceník!$D$46,IF(G$5>5,Ceník!$D$47)))) -> 0 | H33: =H$31*(IF(H$5<3.8,Ceník!$D$45,IF(H$5<5,Ceník!$D$46,IF(H$5>5,Ceník!$D$47)))) -> 0 | I33: =I$31*(IF(I$5<3.8,Ceník!$D$45,IF(I$5<5,Ceník!$D$46,IF(I$5>5,Ceník!$D$47)))) -> 0 | J33: =J$31*(IF(J$5<3.8,Ceník!$D$45,IF(J$5<5,Ceník!$D$46,IF(J$5>5,Ceník!$D$47)))) -> 0 | K33: =K$31*(IF(K$5<3.8,Ceník!$D$45,IF(K$5<5,Ceník!$D$46,IF(K$5>5,Ceník!$D$47)))) -> 0 | L33: =L$31*(IF(L$5<3.8,Ceník!$D$45,IF(L$5<5,Ceník!$D$46,IF(L$5>5,Ceník!$D$47)))) -> 0
A34: nová omítka | B34: =IF(Room01!$B$71=TRUE,Room01!$I$69,0) -> 0 | C34: =IF(Room02!$B$71=TRUE,Room02!$I$69,0) -> 0 | D34: =IF(Room03!$B$71=TRUE,Room03!$I$69,0) -> 0 | E34: =IF(Room04!$B$71=TRUE,Room04!$I$69,0) -> 0 | F34: =IF(Room05!$B$71=TRUE,Room05!$I$69,0) -> 0 | G34: =IF(Room06!$B$71=TRUE,Room06!$I$69,0) -> 0 | H34: =IF(Room07!$B$71=TRUE,Room07!$I$69,0) -> 0 | I34: =IF(Room08!$B$71=TRUE,Room08!$I$69,0) -> 0 | J34: =IF(Room09!$B$71=TRUE,Room09!$I$69,0) -> 0 | K34: =IF(Room10!$B$71=TRUE,Room10!$I$69,0) -> 0 | L34: 0
A35: celkem | B35: =B$34*(Ceník!$C$9+IF(B$5<3.8,Ceník!$C$42,IF(B$5<5,Ceník!$C$43,IF(B$5>5,Ceník!$C$44)))) -> 0 | C35: =C$34*(Ceník!$C$9+IF(C$5<3.8,Ceník!$C$42,IF(C$5<5,Ceník!$C$43,IF(C$5>5,Ceník!$C$44)))) -> 0 | D35: =D$34*(Ceník!$C$9+IF(D$5<3.8,Ceník!$C$42,IF(D$5<5,Ceník!$C$43,IF(D$5>5,Ceník!$C$44)))) -> 0 | E35: =E$34*(Ceník!$C$9+IF(E$5<3.8,Ceník!$C$42,IF(E$5<5,Ceník!$C$43,IF(E$5>5,Ceník!$C$44)))) -> 0 | F35: =F$34*(Ceník!$C$9+IF(F$5<3.8,Ceník!$C$42,IF(F$5<5,Ceník!$C$43,IF(F$5>5,Ceník!$C$44)))) -> 0 | G35: =G$34*(Ceník!$C$9+IF(G$5<3.8,Ceník!$C$42,IF(G$5<5,Ceník!$C$43,IF(G$5>5,Ceník!$C$44)))) -> 0 | H35: =H$34*(Ceník!$C$9+IF(H$5<3.8,Ceník!$C$42,IF(H$5<5,Ceník!$C$43,IF(H$5>5,Ceník!$C$44)))) -> 0 | I35: =I$34*(Ceník!$C$9+IF(I$5<3.8,Ceník!$C$42,IF(I$5<5,Ceník!$C$43,IF(I$5>5,Ceník!$C$44)))) -> 0 | J35: =J$34*(Ceník!$C$9+IF(J$5<3.8,Ceník!$C$42,IF(J$5<5,Ceník!$C$43,IF(J$5>5,Ceník!$C$44)))) -> 0 | K35: =K$34*(Ceník!$C$9+IF(K$5<3.8,Ceník!$C$42,IF(K$5<5,Ceník!$C$43,IF(K$5>5,Ceník!$C$44)))) -> 0 | L35: 0 | N35: =IF(L35>0,Ceník!I42,0) -> 0
A36: materiál | B36: =B$34*(Ceník!$D$9+IF(B$5<3.8,Ceník!$D$42,IF(B$5<5,Ceník!$D$43,IF(B$5>5,Ceník!$D$44)))) -> 0 | C36: =C$34*(Ceník!$D$9+IF(C$5<3.8,Ceník!$D$42,IF(C$5<5,Ceník!$D$43,IF(C$5>5,Ceník!$D$44)))) -> 0 | D36: =D$34*(Ceník!$D$9+IF(D$5<3.8,Ceník!$D$42,IF(D$5<5,Ceník!$D$43,IF(D$5>5,Ceník!$D$44)))) -> 0 | E36: =E$34*(Ceník!$D$9+IF(E$5<3.8,Ceník!$D$42,IF(E$5<5,Ceník!$D$43,IF(E$5>5,Ceník!$D$44)))) -> 0 | F36: =F$34*(Ceník!$D$9+IF(F$5<3.8,Ceník!$D$42,IF(F$5<5,Ceník!$D$43,IF(F$5>5,Ceník!$D$44)))) -> 0 | G36: =G$34*(Ceník!$D$9+IF(G$5<3.8,Ceník!$D$42,IF(G$5<5,Ceník!$D$43,IF(G$5>5,Ceník!$D$44)))) -> 0 | H36: =H$34*(Ceník!$D$9+IF(H$5<3.8,Ceník!$D$42,IF(H$5<5,Ceník!$D$43,IF(H$5>5,Ceník!$D$44)))) -> 0 | I36: =I$34*(Ceník!$D$9+IF(I$5<3.8,Ceník!$D$42,IF(I$5<5,Ceník!$D$43,IF(I$5>5,Ceník!$D$44)))) -> 0 | J36: =J$34*(Ceník!$D$9+IF(J$5<3.8,Ceník!$D$42,IF(J$5<5,Ceník!$D$43,IF(J$5>5,Ceník!$D$44)))) -> 0 | K36: =K$34*(Ceník!$D$9+IF(K$5<3.8,Ceník!$D$42,IF(K$5<5,Ceník!$D$43,IF(K$5>5,Ceník!$D$44)))) -> 0 | L36: 0
A37: vyspravení omítky | B37: =IF(Room01!$B$72=TRUE,Room01!$I$69,0) -> 0 | C37: =IF(Room02!$B$72=TRUE,Room02!$I$69,0) -> 0 | D37: =IF(Room03!$B$72=TRUE,Room03!$I$69,0) -> 0 | E37: =IF(Room04!$B$72=TRUE,Room04!$I$69,0) -> 0 | F37: =IF(Room05!$B$72=TRUE,Room05!$I$69,0) -> 0 | G37: =IF(Room06!$B$72=TRUE,Room06!$I$69,0) -> 0 | H37: =IF(Room07!$B$72=TRUE,Room07!$I$69,0) -> 0 | I37: =IF(Room08!$B$72=TRUE,Room08!$I$69,0) -> 0 | J37: =IF(Room09!$B$72=TRUE,Room09!$I$69,0) -> 0 | K37: =IF(Room10!$B$72=TRUE,Room10!$I$69,0) -> 0 | L37: 0
A38: celkem | B38: =B$37*(IF(B$5<3.8,Ceník!$C$45,IF(B$5<5,Ceník!$C$46,IF(B$5>5,Ceník!$C$47)))) -> 0 | C38: =C$37*(IF(C$5<3.8,Ceník!$C$45,IF(C$5<5,Ceník!$C$46,IF(C$5>5,Ceník!$C$47)))) -> 0 | D38: =D$37*(IF(D$5<3.8,Ceník!$C$45,IF(D$5<5,Ceník!$C$46,IF(D$5>5,Ceník!$C$47)))) -> 0 | E38: =E$37*(IF(E$5<3.8,Ceník!$C$45,IF(E$5<5,Ceník!$C$46,IF(E$5>5,Ceník!$C$47)))) -> 0 | F38: =F$37*(IF(F$5<3.8,Ceník!$C$45,IF(F$5<5,Ceník!$C$46,IF(F$5>5,Ceník!$C$47)))) -> 0 | G38: =G$37*(IF(G$5<3.8,Ceník!$C$45,IF(G$5<5,Ceník!$C$46,IF(G$5>5,Ceník!$C$47)))) -> 0 | H38: =H$37*(IF(H$5<3.8,Ceník!$C$45,IF(H$5<5,Ceník!$C$46,IF(H$5>5,Ceník!$C$47)))) -> 0 | I38: =I$37*(IF(I$5<3.8,Ceník!$C$45,IF(I$5<5,Ceník!$C$46,IF(I$5>5,Ceník!$C$47)))) -> 0 | J38: =J$37*(IF(J$5<3.8,Ceník!$C$45,IF(J$5<5,Ceník!$C$46,IF(J$5>5,Ceník!$C$47)))) -> 0 | K38: =K$37*(IF(K$5<3.8,Ceník!$C$45,IF(K$5<5,Ceník!$C$46,IF(K$5>5,Ceník!$C$47)))) -> 0 | L38: 0 | N38: =IF(L38>0,Ceník!I45,0) -> 0
A39: materiál | B39: =B$37*(IF(B$5<3.8,Ceník!$D$45,IF(B$5<5,Ceník!$D$46,IF(B$5>5,Ceník!$D$47)))) -> 0 | C39: =C$37*(IF(C$5<3.8,Ceník!$D$45,IF(C$5<5,Ceník!$D$46,IF(C$5>5,Ceník!$D$47)))) -> 0 | D39: =D$37*(IF(D$5<3.8,Ceník!$D$45,IF(D$5<5,Ceník!$D$46,IF(D$5>5,Ceník!$D$47)))) -> 0 | E39: =E$37*(IF(E$5<3.8,Ceník!$D$45,IF(E$5<5,Ceník!$D$46,IF(E$5>5,Ceník!$D$47)))) -> 0 | F39: =F$37*(IF(F$5<3.8,Ceník!$D$45,IF(F$5<5,Ceník!$D$46,IF(F$5>5,Ceník!$D$47)))) -> 0 | G39: =G$37*(IF(G$5<3.8,Ceník!$D$45,IF(G$5<5,Ceník!$D$46,IF(G$5>5,Ceník!$D$47)))) -> 0 | H39: =H$37*(IF(H$5<3.8,Ceník!$D$45,IF(H$5<5,Ceník!$D$46,IF(H$5>5,Ceník!$D$47)))) -> 0 | I39: =I$37*(IF(I$5<3.8,Ceník!$D$45,IF(I$5<5,Ceník!$D$46,IF(I$5>5,Ceník!$D$47)))) -> 0 | J39: =J$37*(IF(J$5<3.8,Ceník!$D$45,IF(J$5<5,Ceník!$D$46,IF(J$5>5,Ceník!$D$47)))) -> 0 | K39: =K$37*(IF(K$5<3.8,Ceník!$D$45,IF(K$5<5,Ceník!$D$46,IF(K$5>5,Ceník!$D$47)))) -> 0 | L39: 0
A40: obroušení omítky | B40: =(B$28+B$34+B$9+B$22)*(IF(B$5<3.8,Ceník!$C$39,IF(B$5<5,Ceník!$C$40,IF(B$5>5,Ceník!$C$41)))) -> 0 | C40: =(C$28+C$34+C$9+C$22)*(IF(C$5<3.8,Ceník!$C$39,IF(C$5<5,Ceník!$C$40,IF(C$5>5,Ceník!$C$41)))) -> 0 | D40: =(D$28+D$34+D$9+D$22)*(IF(D$5<3.8,Ceník!$C$39,IF(D$5<5,Ceník!$C$40,IF(D$5>5,Ceník!$C$41)))) -> 0 | E40: =(E$28+E$34+E$9+E$22)*(IF(E$5<3.8,Ceník!$C$39,IF(E$5<5,Ceník!$C$40,IF(E$5>5,Ceník!$C$41)))) -> 0 | F40: =(F$28+F$34+F$9+F$22)*(IF(F$5<3.8,Ceník!$C$39,IF(F$5<5,Ceník!$C$40,IF(F$5>5,Ceník!$C$41)))) -> 0 | G40: =(G$28+G$34+G$9+G$22)*(IF(G$5<3.8,Ceník!$C$39,IF(G$5<5,Ceník!$C$40,IF(G$5>5,Ceník!$C$41)))) -> 0 | H40: =(H$28+H$34+H$9+H$22)*(IF(H$5<3.8,Ceník!$C$39,IF(H$5<5,Ceník!$C$40,IF(H$5>5,Ceník!$C$41)))) -> 0 | I40: =(I$28+I$34+I$9+I$22)*(IF(I$5<3.8,Ceník!$C$39,IF(I$5<5,Ceník!$C$40,IF(I$5>5,Ceník!$C$41)))) -> 0 | J40: =(J$28+J$34+J$9+J$22)*(IF(J$5<3.8,Ceník!$C$39,IF(J$5<5,Ceník!$C$40,IF(J$5>5,Ceník!$C$41)))) -> 0 | K40: =(K$28+K$34+K$9+K$22)*(IF(K$5<3.8,Ceník!$C$39,IF(K$5<5,Ceník!$C$40,IF(K$5>5,Ceník!$C$41)))) -> 0 | L40: 0 | N40: =IF(L40>0,Ceník!I39,0) -> 0
A41: materiál | B41: =(B$28+B$34+B$9+B$22)*(IF(B$5<3.8,Ceník!$D$39,IF(B$5<5,Ceník!$D$40,IF(B$5>5,Ceník!$D$41)))) -> 0 | C41: =(C$28+C$34+C$9+C$22)*(IF(C$5<3.8,Ceník!$D$39,IF(C$5<5,Ceník!$D$40,IF(C$5>5,Ceník!$D$41)))) -> 0 | D41: =(D$28+D$34+D$9+D$22)*(IF(D$5<3.8,Ceník!$D$39,IF(D$5<5,Ceník!$D$40,IF(D$5>5,Ceník!$D$41)))) -> 0 | E41: =(E$28+E$34+E$9+E$22)*(IF(E$5<3.8,Ceník!$D$39,IF(E$5<5,Ceník!$D$40,IF(E$5>5,Ceník!$D$41)))) -> 0 | F41: =(F$28+F$34+F$9+F$22)*(IF(F$5<3.8,Ceník!$D$39,IF(F$5<5,Ceník!$D$40,IF(F$5>5,Ceník!$D$41)))) -> 0 | G41: =(G$28+G$34+G$9+G$22)*(IF(G$5<3.8,Ceník!$D$39,IF(G$5<5,Ceník!$D$40,IF(G$5>5,Ceník!$D$41)))) -> 0 | H41: =(H$28+H$34+H$9+H$22)*(IF(H$5<3.8,Ceník!$D$39,IF(H$5<5,Ceník!$D$40,IF(H$5>5,Ceník!$D$41)))) -> 0 | I41: =(I$28+I$34+I$9+I$22)*(IF(I$5<3.8,Ceník!$D$39,IF(I$5<5,Ceník!$D$40,IF(I$5>5,Ceník!$D$41)))) -> 0 | J41: =(J$28+J$34+J$9+J$22)*(IF(J$5<3.8,Ceník!$D$39,IF(J$5<5,Ceník!$D$40,IF(J$5>5,Ceník!$D$41)))) -> 0 | K41: =(K$28+K$34+K$9+K$22)*(IF(K$5<3.8,Ceník!$D$39,IF(K$5<5,Ceník!$D$40,IF(K$5>5,Ceník!$D$41)))) -> 0 | L41: 0
A42: obroušení sádry | B42: =(B$31+B$37)*(IF(B$5<3.8,Ceník!$C$48,IF(B$5<5,Ceník!$C$49,IF(B$5>5,Ceník!$C$50)))) -> 0 | C42: =(C$31+C$37)*(IF(C$5<3.8,Ceník!$C$48,IF(C$5<5,Ceník!$C$49,IF(C$5>5,Ceník!$C$50)))) -> 0 | D42: =(D$31+D$37)*(IF(D$5<3.8,Ceník!$C$48,IF(D$5<5,Ceník!$C$49,IF(D$5>5,Ceník!$C$50)))) -> 0 | E42: =(E$31+E$37)*(IF(E$5<3.8,Ceník!$C$48,IF(E$5<5,Ceník!$C$49,IF(E$5>5,Ceník!$C$50)))) -> 0 | F42: =(F$31+F$37)*(IF(F$5<3.8,Ceník!$C$48,IF(F$5<5,Ceník!$C$49,IF(F$5>5,Ceník!$C$50)))) -> 0 | G42: =(G$31+G$37)*(IF(G$5<3.8,Ceník!$C$48,IF(G$5<5,Ceník!$C$49,IF(G$5>5,Ceník!$C$50)))) -> 0 | H42: =(H$31+H$37)*(IF(H$5<3.8,Ceník!$C$48,IF(H$5<5,Ceník!$C$49,IF(H$5>5,Ceník!$C$50)))) -> 0 | I42: =(I$31+I$37)*(IF(I$5<3.8,Ceník!$C$48,IF(I$5<5,Ceník!$C$49,IF(I$5>5,Ceník!$C$50)))) -> 0 | J42: =(J$31+J$37)*(IF(J$5<3.8,Ceník!$C$48,IF(J$5<5,Ceník!$C$49,IF(J$5>5,Ceník!$C$50)))) -> 0 | K42: =(K$31+K$37)*(IF(K$5<3.8,Ceník!$C$48,IF(K$5<5,Ceník!$C$49,IF(K$5>5,Ceník!$C$50)))) -> 0 | L42: 0 | N42: =IF(L42>0,Ceník!I48,0) -> 0
A43: materiál | B43: =(B$31+B$37)*(IF(B$5<3.8,Ceník!$D$48,IF(B$5<5,Ceník!$D$49,IF(B$5>5,Ceník!$D$50)))) -> 0 | C43: =(C$31+C$37)*(IF(C$5<3.8,Ceník!$D$48,IF(C$5<5,Ceník!$D$49,IF(C$5>5,Ceník!$D$50)))) -> 0 | D43: =(D$31+D$37)*(IF(D$5<3.8,Ceník!$D$48,IF(D$5<5,Ceník!$D$49,IF(D$5>5,Ceník!$D$50)))) -> 0 | E43: =(E$31+E$37)*(IF(E$5<3.8,Ceník!$D$48,IF(E$5<5,Ceník!$D$49,IF(E$5>5,Ceník!$D$50)))) -> 0 | F43: =(F$31+F$37)*(IF(F$5<3.8,Ceník!$D$48,IF(F$5<5,Ceník!$D$49,IF(F$5>5,Ceník!$D$50)))) -> 0 | G43: =(G$31+G$37)*(IF(G$5<3.8,Ceník!$D$48,IF(G$5<5,Ceník!$D$49,IF(G$5>5,Ceník!$D$50)))) -> 0 | H43: =(H$31+H$37)*(IF(H$5<3.8,Ceník!$D$48,IF(H$5<5,Ceník!$D$49,IF(H$5>5,Ceník!$D$50)))) -> 0 | I43: =(I$31+I$37)*(IF(I$5<3.8,Ceník!$D$48,IF(I$5<5,Ceník!$D$49,IF(I$5>5,Ceník!$D$50)))) -> 0 | J43: =(J$31+J$37)*(IF(J$5<3.8,Ceník!$D$48,IF(J$5<5,Ceník!$D$49,IF(J$5>5,Ceník!$D$50)))) -> 0 | K43: =(K$31+K$37)*(IF(K$5<3.8,Ceník!$D$48,IF(K$5<5,Ceník!$D$49,IF(K$5>5,Ceník!$D$50)))) -> 0 | L43: 0
A44: oprášení | B44: =(B$31+B$37+B$28+B$34+B$9+B$22)*(IF(B$5<3.8,Ceník!$C$21,IF(B$5<5,Ceník!$C$22,IF(B$5>5,Ceník!$C$23)))) -> 0 | C44: =(C$31+C$37+C$28+C$34+C$9+C$22)*(IF(C$5<3.8,Ceník!$C$21,IF(C$5<5,Ceník!$C$22,IF(C$5>5,Ceník!$C$23)))) -> 0 | D44: =(D$31+D$37+D$28+D$34+D$9+D$22)*(IF(D$5<3.8,Ceník!$C$21,IF(D$5<5,Ceník!$C$22,IF(D$5>5,Ceník!$C$23)))) -> 0 | E44: =(E$31+E$37+E$28+E$34+E$9+E$22)*(IF(E$5<3.8,Ceník!$C$21,IF(E$5<5,Ceník!$C$22,IF(E$5>5,Ceník!$C$23)))) -> 0 | F44: =(F$31+F$37+F$28+F$34+F$9+F$22)*(IF(F$5<3.8,Ceník!$C$21,IF(F$5<5,Ceník!$C$22,IF(F$5>5,Ceník!$C$23)))) -> 0 | G44: =(G$31+G$37+G$28+G$34+G$9+G$22)*(IF(G$5<3.8,Ceník!$C$21,IF(G$5<5,Ceník!$C$22,IF(G$5>5,Ceník!$C$23)))) -> 0 | H44: =(H$31+H$37+H$28+H$34+H$9+H$22)*(IF(H$5<3.8,Ceník!$C$21,IF(H$5<5,Ceník!$C$22,IF(H$5>5,Ceník!$C$23)))) -> 0 | I44: =(I$31+I$37+I$28+I$34+I$9+I$22)*(IF(I$5<3.8,Ceník!$C$21,IF(I$5<5,Ceník!$C$22,IF(I$5>5,Ceník!$C$23)))) -> 0 | J44: =(J$31+J$37+J$28+J$34+J$9+J$22)*(IF(J$5<3.8,Ceník!$C$21,IF(J$5<5,Ceník!$C$22,IF(J$5>5,Ceník!$C$23)))) -> 0 | K44: =(K$31+K$37+K$28+K$34+K$9+K$22)*(IF(K$5<3.8,Ceník!$C$21,IF(K$5<5,Ceník!$C$22,IF(K$5>5,Ceník!$C$23)))) -> 0 | L44: =SUM(B44:K44) -> 0 | N44: =IF(L44>0,Ceník!I21,0) -> 0
A45: materiál | B45: =(B$31+B$37+B$28+B$34+B$9+B$22)*(IF(B$5<3.8,Ceník!$D$21,IF(B$5<5,Ceník!$D$22,IF(B$5>5,Ceník!$D$23)))) -> 0 | C45: =(C$31+C$37+C$28+C$34+C$9+C$22)*(IF(C$5<3.8,Ceník!$D$21,IF(C$5<5,Ceník!$D$22,IF(C$5>5,Ceník!$D$23)))) -> 0 | D45: =(D$31+D$37+D$28+D$34+D$9+D$22)*(IF(D$5<3.8,Ceník!$D$21,IF(D$5<5,Ceník!$D$22,IF(D$5>5,Ceník!$D$23)))) -> 0 | E45: =(E$31+E$37+E$28+E$34+E$9+E$22)*(IF(E$5<3.8,Ceník!$D$21,IF(E$5<5,Ceník!$D$22,IF(E$5>5,Ceník!$D$23)))) -> 0 | F45: =(F$31+F$37+F$28+F$34+F$9+F$22)*(IF(F$5<3.8,Ceník!$D$21,IF(F$5<5,Ceník!$D$22,IF(F$5>5,Ceník!$D$23)))) -> 0 | G45: =(G$31+G$37+G$28+G$34+G$9+G$22)*(IF(G$5<3.8,Ceník!$D$21,IF(G$5<5,Ceník!$D$22,IF(G$5>5,Ceník!$D$23)))) -> 0 | H45: =(H$31+H$37+H$28+H$34+H$9+H$22)*(IF(H$5<3.8,Ceník!$D$21,IF(H$5<5,Ceník!$D$22,IF(H$5>5,Ceník!$D$23)))) -> 0 | I45: =(I$31+I$37+I$28+I$34+I$9+I$22)*(IF(I$5<3.8,Ceník!$D$21,IF(I$5<5,Ceník!$D$22,IF(I$5>5,Ceník!$D$23)))) -> 0 | J45: =(J$31+J$37+J$28+J$34+J$9+J$22)*(IF(J$5<3.8,Ceník!$D$21,IF(J$5<5,Ceník!$D$22,IF(J$5>5,Ceník!$D$23)))) -> 0 | K45: =(K$31+K$37+K$28+K$34+K$9+K$22)*(IF(K$5<3.8,Ceník!$D$21,IF(K$5<5,Ceník!$D$22,IF(K$5>5,Ceník!$D$23)))) -> 0 | L45: 0
A46: plísně | B46: =IF(Room01!$A$76=TRUE,Room01!$H$76,0) -> 0 | C46: =IF(Room02!$A$76=TRUE,Room02!$H$76,0) -> 0 | D46: =IF(Room03!$A$76=TRUE,Room03!$H$76,0) -> 0 | E46: =IF(Room04!$A$76=TRUE,Room04!$H$76,0) -> 0 | F46: =IF(Room05!$A$76=TRUE,Room05!$H$76,0) -> 0 | G46: =IF(Room06!$A$76=TRUE,Room06!$H$76,0) -> 0 | H46: =IF(Room07!$A$76=TRUE,Room07!$H$76,0) -> 0 | I46: =IF(Room08!$A$76=TRUE,Room08!$H$76,0) -> 0 | J46: =IF(Room09!$A$76=TRUE,Room09!$H$76,0) -> 0 | K46: =IF(Room10!$A$76=TRUE,Room10!$H$76,0) -> 0 | L46: =SUM(C46:K46) -> 0
A47: celkem | B47: =IF(B$5<3.8,Ceník!$C$51,IF(B$5<5,Ceník!$C$52,IF(B$5>5,Ceník!$C$53)))*B$46 -> 0 | C47: =IF(C$5<3.8,Ceník!$C$51,IF(C$5<5,Ceník!$C$52,IF(C$5>5,Ceník!$C$53)))*C$46 -> 0 | D47: =IF(D$5<3.8,Ceník!$C$51,IF(D$5<5,Ceník!$C$52,IF(D$5>5,Ceník!$C$53)))*D$46 -> 0 | E47: =IF(E$5<3.8,Ceník!$C$51,IF(E$5<5,Ceník!$C$52,IF(E$5>5,Ceník!$C$53)))*E$46 -> 0 | F47: =IF(F$5<3.8,Ceník!$C$51,IF(F$5<5,Ceník!$C$52,IF(F$5>5,Ceník!$C$53)))*F$46 -> 0 | G47: =IF(G$5<3.8,Ceník!$C$51,IF(G$5<5,Ceník!$C$52,IF(G$5>5,Ceník!$C$53)))*G$46 -> 0 | H47: =IF(H$5<3.8,Ceník!$C$51,IF(H$5<5,Ceník!$C$52,IF(H$5>5,Ceník!$C$53)))*H$46 -> 0 | I47: =IF(I$5<3.8,Ceník!$C$51,IF(I$5<5,Ceník!$C$52,IF(I$5>5,Ceník!$C$53)))*I$46 -> 0 | J47: =IF(J$5<3.8,Ceník!$C$51,IF(J$5<5,Ceník!$C$52,IF(J$5>5,Ceník!$C$53)))*J$46 -> 0 | K47: =IF(K$5<3.8,Ceník!$C$51,IF(K$5<5,Ceník!$C$52,IF(K$5>5,Ceník!$C$53)))*K$46 -> 0 | L47: 0 | N47: =IF(L47>0,Ceník!I51,0) -> 0
A48: materiál | B48: =IF(B$5<3.8,Ceník!$D$51,IF(B$5<5,Ceník!$D$52,IF(B$5>5,Ceník!$D$53)))*B$46 -> 0 | C48: =IF(C$5<3.8,Ceník!$D$51,IF(C$5<5,Ceník!$D$52,IF(C$5>5,Ceník!$D$53)))*C$46 -> 0 | D48: =IF(D$5<3.8,Ceník!$D$51,IF(D$5<5,Ceník!$D$52,IF(D$5>5,Ceník!$D$53)))*D$46 -> 0 | E48: =IF(E$5<3.8,Ceník!$D$51,IF(E$5<5,Ceník!$D$52,IF(E$5>5,Ceník!$D$53)))*E$46 -> 0 | F48: =IF(F$5<3.8,Ceník!$D$51,IF(F$5<5,Ceník!$D$52,IF(F$5>5,Ceník!$D$53)))*F$46 -> 0 | G48: =IF(G$5<3.8,Ceník!$D$51,IF(G$5<5,Ceník!$D$52,IF(G$5>5,Ceník!$D$53)))*G$46 -> 0 | H48: =IF(H$5<3.8,Ceník!$D$51,IF(H$5<5,Ceník!$D$52,IF(H$5>5,Ceník!$D$53)))*H$46 -> 0 | I48: =IF(I$5<3.8,Ceník!$D$51,IF(I$5<5,Ceník!$D$52,IF(I$5>5,Ceník!$D$53)))*I$46 -> 0 | J48: =IF(J$5<3.8,Ceník!$D$51,IF(J$5<5,Ceník!$D$52,IF(J$5>5,Ceník!$D$53)))*J$46 -> 0 | K48: =IF(K$5<3.8,Ceník!$D$51,IF(K$5<5,Ceník!$D$52,IF(K$5>5,Ceník!$D$53)))*K$46 -> 0 | L48: 0
A50: penetrace hloubková | B50: =IF(B$5<3.8,Ceník!$C$55,IF(B$5<5,Ceník!$C$56,IF(B$5>5,Ceník!$C$57)))*(B$9+B$22+B$28+B$31+B$34+B$37) -> 0 | C50: =IF(C$5<3.8,Ceník!$C$55,IF(C$5<5,Ceník!$C$56,IF(C$5>5,Ceník!$C$57)))*(C$9+C$22+C$28+C$31+C$34+C$37) -> 0 | D50: =IF(D$5<3.8,Ceník!$C$55,IF(D$5<5,Ceník!$C$56,IF(D$5>5,Ceník!$C$57)))*(D$9+D$22+D$28+D$31+D$34+D$37) -> 0 | E50: =IF(E$5<3.8,Ceník!$C$55,IF(E$5<5,Ceník!$C$56,IF(E$5>5,Ceník!$C$57)))*(E$9+E$22+E$28+E$31+E$34+E$37) -> 0 | F50: =IF(F$5<3.8,Ceník!$C$55,IF(F$5<5,Ceník!$C$56,IF(F$5>5,Ceník!$C$57)))*(F$9+F$22+F$28+F$31+F$34+F$37) -> 0 | G50: =IF(G$5<3.8,Ceník!$C$55,IF(G$5<5,Ceník!$C$56,IF(G$5>5,Ceník!$C$57)))*(G$9+G$22+G$28+G$31+G$34+G$37) -> 0 | H50: =IF(H$5<3.8,Ceník!$C$55,IF(H$5<5,Ceník!$C$56,IF(H$5>5,Ceník!$C$57)))*(H$9+H$22+H$28+H$31+H$34+H$37) -> 0 | I50: =IF(I$5<3.8,Ceník!$C$55,IF(I$5<5,Ceník!$C$56,IF(I$5>5,Ceník!$C$57)))*(I$9+I$22+I$28+I$31+I$34+I$37) -> 0 | J50: =IF(J$5<3.8,Ceník!$C$55,IF(J$5<5,Ceník!$C$56,IF(J$5>5,Ceník!$C$57)))*(J$9+J$22+J$28+J$31+J$34+J$37) -> 0 | K50: =IF(K$5<3.8,Ceník!$C$55,IF(K$5<5,Ceník!$C$56,IF(K$5>5,Ceník!$C$57)))*(K$9+K$22+K$28+K$31+K$34+K$37) -> 0 | L50: 0 | N50: =IF(L50>0,Ceník!I54,0) -> 0
A51: materiál | B51: =IF(B$5<3.8,Ceník!$D$55,IF(B$5<5,Ceník!$D$56,IF(B$5>5,Ceník!$D$57)))*(B$9+B$22+B$28+B$31+B$34+B$37) -> 0 | C51: =IF(C$5<3.8,Ceník!$D$55,IF(C$5<5,Ceník!$D$56,IF(C$5>5,Ceník!$D$57)))*(C$9+C$22+C$28+C$31+C$34+C$37) -> 0 | D51: =IF(D$5<3.8,Ceník!$D$55,IF(D$5<5,Ceník!$D$56,IF(D$5>5,Ceník!$D$57)))*(D$9+D$22+D$28+D$31+D$34+D$37) -> 0 | E51: =IF(E$5<3.8,Ceník!$D$55,IF(E$5<5,Ceník!$D$56,IF(E$5>5,Ceník!$D$57)))*(E$9+E$22+E$28+E$31+E$34+E$37) -> 0 | F51: =IF(F$5<3.8,Ceník!$D$55,IF(F$5<5,Ceník!$D$56,IF(F$5>5,Ceník!$D$57)))*(F$9+F$22+F$28+F$31+F$34+F$37) -> 0 | G51: =IF(G$5<3.8,Ceník!$D$55,IF(G$5<5,Ceník!$D$56,IF(G$5>5,Ceník!$D$57)))*(G$9+G$22+G$28+G$31+G$34+G$37) -> 0 | H51: =IF(H$5<3.8,Ceník!$D$55,IF(H$5<5,Ceník!$D$56,IF(H$5>5,Ceník!$D$57)))*(H$9+H$22+H$28+H$31+H$34+H$37) -> 0 | I51: =IF(I$5<3.8,Ceník!$D$55,IF(I$5<5,Ceník!$D$56,IF(I$5>5,Ceník!$D$57)))*(I$9+I$22+I$28+I$31+I$34+I$37) -> 0 | J51: =IF(J$5<3.8,Ceník!$D$55,IF(J$5<5,Ceník!$D$56,IF(J$5>5,Ceník!$D$57)))*(J$9+J$22+J$28+J$31+J$34+J$37) -> 0 | K51: =IF(K$5<3.8,Ceník!$D$55,IF(K$5<5,Ceník!$D$56,IF(K$5>5,Ceník!$D$57)))*(K$9+K$22+K$28+K$31+K$34+K$37) -> 0 | L51: 0
A52: penetrace SDK | B52: =B$13*Ceník!$C$54 -> 0 | C52: =C$13*Ceník!$C$54 -> 0 | D52: =D$13*Ceník!$C$54 -> 0 | E52: =E$13*Ceník!$C$54 -> 0 | F52: =F$13*Ceník!$C$54 -> 0 | G52: =G$13*Ceník!$C$54 -> 0 | H52: =H$13*Ceník!$C$54 -> 0 | I52: =I$13*Ceník!$C$54 -> 0 | J52: =J$13*Ceník!$C$54 -> 0 | K52: =K$13*Ceník!$C$54 -> 0 | L52: 0 | N52: =IF(L52>0,Ceník!I54,0) -> 0
A53: materiál | B53: =B$13*Ceník!$D$54 -> 0 | C53: =C$13*Ceník!$D$54 -> 0 | D53: =D$13*Ceník!$D$54 -> 0 | E53: =E$13*Ceník!$D$54 -> 0 | F53: =F$13*Ceník!$D$54 -> 0 | G53: =G$13*Ceník!$D$54 -> 0 | H53: =H$13*Ceník!$D$54 -> 0 | I53: =I$13*Ceník!$D$54 -> 0 | J53: =J$13*Ceník!$D$54 -> 0 | K53: =K$13*Ceník!$D$54 -> 0 | L53: 0
A55: nová tapeta stěny
A56: celkem | B56: =IF(B$5<3,Ceník!$C$62,IF(B$5>3,Ceník!$C$62+Ceník!$C$65))*B55 -> 0 | C56: =IF(C$5<3,Ceník!$C$62,IF(C$5>3,Ceník!$C$62+Ceník!$C$65))*C55 -> 0 | D56: =IF(D$5<3,Ceník!$C$62,IF(D$5>3,Ceník!$C$62+Ceník!$C$65))*D55 -> 0 | E56: =IF(E$5<3,Ceník!$C$62,IF(E$5>3,Ceník!$C$62+Ceník!$C$65))*E55 -> 0 | F56: =IF(F$5<3,Ceník!$C$62,IF(F$5>3,Ceník!$C$62+Ceník!$C$65))*F55 -> 0 | G56: =IF(G$5<3,Ceník!$C$62,IF(G$5>3,Ceník!$C$62+Ceník!$C$65))*G55 -> 0 | H56: =IF(H$5<3,Ceník!$C$62,IF(H$5>3,Ceník!$C$62+Ceník!$C$65))*H55 -> 0 | I56: =IF(I$5<3,Ceník!$C$62,IF(I$5>3,Ceník!$C$62+Ceník!$C$65))*I55 -> 0 | J56: =IF(J$5<3,Ceník!$C$62,IF(J$5>3,Ceník!$C$62+Ceník!$C$65))*J55 -> 0 | K56: =IF(K$5<3,Ceník!$C$62,IF(K$5>3,Ceník!$C$62+Ceník!$C$65))*K55 -> 0 | L56: 0 | N56: =IF(L56>0,Ceník!I62,0) -> 0
A57: materiál | B57: =IF(B$5<3,Ceník!$D$62,IF(B$5>3,Ceník!$D$62+Ceník!$D$65))*B55 -> 0 | C57: =IF(C$5<3,Ceník!$D$62,IF(C$5>3,Ceník!$D$62+Ceník!$D$65))*C55 -> 0 | D57: =IF(D$5<3,Ceník!$D$62,IF(D$5>3,Ceník!$D$62+Ceník!$D$65))*D55 -> 0 | E57: =IF(E$5<3,Ceník!$D$62,IF(E$5>3,Ceník!$D$62+Ceník!$D$65))*E55 -> 0 | F57: =IF(F$5<3,Ceník!$D$62,IF(F$5>3,Ceník!$D$62+Ceník!$D$65))*F55 -> 0 | G57: =IF(G$5<3,Ceník!$D$62,IF(G$5>3,Ceník!$D$62+Ceník!$D$65))*G55 -> 0 | H57: =IF(H$5<3,Ceník!$D$62,IF(H$5>3,Ceník!$D$62+Ceník!$D$65))*H55 -> 0 | I57: =IF(I$5<3,Ceník!$D$62,IF(I$5>3,Ceník!$D$62+Ceník!$D$65))*I55 -> 0 | J57: =IF(J$5<3,Ceník!$D$62,IF(J$5>3,Ceník!$D$62+Ceník!$D$65))*J55 -> 0 | K57: =IF(K$5<3,Ceník!$D$62,IF(K$5>3,Ceník!$D$62+Ceník!$D$65))*K55 -> 0 | L57: =SUM(B57:K57) -> 0
A58: nová tapeta stěny + stropy | B58: =IF(Room01!$A$83=TRUE,Room01!$D85,0) -> 0 | C58: =IF(Room02!$A$83=TRUE,Room02!$D85,0) -> 0 | D58: =IF(Room03!$A$83=TRUE,Room03!$D85,0) -> 0 | E58: =IF(Room04!$A$83=TRUE,Room04!$D85,0) -> 0 | F58: =IF(Room05!$A$83=TRUE,Room05!$D85,0) -> 0 | G58: =IF(Room06!$A$83=TRUE,Room06!$D85,0) -> 0 | H58: =IF(Room07!$A$83=TRUE,Room07!$D85,0) -> 0 | I58: =IF(Room08!$A$83=TRUE,Room08!$D85,0) -> 0 | J58: =IF(Room09!$A$83=TRUE,Room09!$D85,0) -> 0 | K58: =IF(Room10!$A$83=TRUE,Room10!$D85,0) -> 0 | L58: 0
A59: celkem | B59: =IF(B$5<3,Ceník!$C$62,IF(B$5>3,Ceník!$C$62+Ceník!$C$66))*B58 -> 0 | C59: =IF(C$5<3,Ceník!$C$62,IF(C$5>3,Ceník!$C$62+Ceník!$C$66))*C58 -> 0 | D59: =IF(D$5<3,Ceník!$C$62,IF(D$5>3,Ceník!$C$62+Ceník!$C$66))*D58 -> 0 | E59: =IF(E$5<3,Ceník!$C$62,IF(E$5>3,Ceník!$C$62+Ceník!$C$66))*E58 -> 0 | F59: =IF(F$5<3,Ceník!$C$62,IF(F$5>3,Ceník!$C$62+Ceník!$C$66))*F58 -> 0 | G59: =IF(G$5<3,Ceník!$C$62,IF(G$5>3,Ceník!$C$62+Ceník!$C$66))*G58 -> 0 | H59: =IF(H$5<3,Ceník!$C$62,IF(H$5>3,Ceník!$C$62+Ceník!$C$66))*H58 -> 0 | I59: =IF(I$5<3,Ceník!$C$62,IF(I$5>3,Ceník!$C$62+Ceník!$C$66))*I58 -> 0 | J59: =IF(J$5<3,Ceník!$C$62,IF(J$5>3,Ceník!$C$62+Ceník!$C$66))*J58 -> 0 | K59: =IF(K$5<3,Ceník!$C$62,IF(K$5>3,Ceník!$C$62+Ceník!$C$66))*K58 -> 0 | L59: 0 | N59: =IF(L59>0,Ceník!I62,0) -> 0
A60: materiál | B60: =IF(B$5<3,Ceník!$D$62,IF(B$5>3,Ceník!$D$62+Ceník!$D$66))*B58 -> 0 | C60: =IF(C$5<3,Ceník!$D$62,IF(C$5>3,Ceník!$D$62+Ceník!$D$66))*C58 -> 0 | D60: =IF(D$5<3,Ceník!$D$62,IF(D$5>3,Ceník!$D$62+Ceník!$D$66))*D58 -> 0 | E60: =IF(E$5<3,Ceník!$D$62,IF(E$5>3,Ceník!$D$62+Ceník!$D$66))*E58 -> 0 | F60: =IF(F$5<3,Ceník!$D$62,IF(F$5>3,Ceník!$D$62+Ceník!$D$66))*F58 -> 0 | G60: =IF(G$5<3,Ceník!$D$62,IF(G$5>3,Ceník!$D$62+Ceník!$D$66))*G58 -> 0 | H60: =IF(H$5<3,Ceník!$D$62,IF(H$5>3,Ceník!$D$62+Ceník!$D$66))*H58 -> 0 | I60: =IF(I$5<3,Ceník!$D$62,IF(I$5>3,Ceník!$D$62+Ceník!$D$66))*I58 -> 0 | J60: =IF(J$5<3,Ceník!$D$62,IF(J$5>3,Ceník!$D$62+Ceník!$D$66))*J58 -> 0 | K60: =IF(K$5<3,Ceník!$D$62,IF(K$5>3,Ceník!$D$62+Ceník!$D$66))*K58 -> 0 | L60: 0
A62: běžná bílá | B62: =IF(Room01!$A88=TRUE,IF(Room01!$B90=TRUE,Room01!$D90,0),0) -> 0 | C62: =IF(Room02!$A88=TRUE,IF(Room02!$B90=TRUE,Room02!$D90,0),0) -> 0 | D62: =IF(Room03!$A88=TRUE,IF(Room03!$B90=TRUE,Room03!$D90,0),0) -> 0 | E62: =IF(Room04!$A88=TRUE,IF(Room04!$B90=TRUE,Room04!$D90,0),0) -> 0 | F62: =IF(Room05!$A88=TRUE,IF(Room05!$B90=TRUE,Room05!$D90,0),0) -> 0 | G62: =IF(Room06!$A88=TRUE,IF(Room06!$B90=TRUE,Room06!$D90,0),0) -> 0 | H62: =IF(Room07!$A88=TRUE,IF(Room07!$B90=TRUE,Room07!$D90,0),0) -> 0 | I62: =IF(Room08!$A88=TRUE,IF(Room08!$B90=TRUE,Room08!$D90,0),0) -> 0 | J62: =IF(Room09!$A88=TRUE,IF(Room09!$B90=TRUE,Room09!$D90,0),0) -> 0 | K62: =IF(Room10!$A88=TRUE,IF(Room10!$B90=TRUE,Room10!$D90,0),0) -> 0 | L62: 0
A63: celkem | B63: =IF(B$5<3.8,Ceník!$C$67,IF(Výpočty!B$5<5,Ceník!$C$68,IF(B$5>5,Ceník!$C$69)))*B62 -> 0 | C63: =IF(C$5<3.8,Ceník!$C$67,IF(Výpočty!C$5<5,Ceník!$C$68,IF(C$5>5,Ceník!$C$69)))*C62 -> 0 | D63: =IF(D$5<3.8,Ceník!$C$67,IF(Výpočty!D$5<5,Ceník!$C$68,IF(D$5>5,Ceník!$C$69)))*D62 -> 0 | E63: =IF(E$5<3.8,Ceník!$C$67,IF(Výpočty!E$5<5,Ceník!$C$68,IF(E$5>5,Ceník!$C$69)))*E62 -> 0 | F63: =IF(F$5<3.8,Ceník!$C$67,IF(Výpočty!F$5<5,Ceník!$C$68,IF(F$5>5,Ceník!$C$69)))*F62 -> 0 | G63: =IF(G$5<3.8,Ceník!$C$67,IF(Výpočty!G$5<5,Ceník!$C$68,IF(G$5>5,Ceník!$C$69)))*G62 -> 0 | H63: =IF(H$5<3.8,Ceník!$C$67,IF(Výpočty!H$5<5,Ceník!$C$68,IF(H$5>5,Ceník!$C$69)))*H62 -> 0 | I63: =IF(I$5<3.8,Ceník!$C$67,IF(Výpočty!I$5<5,Ceník!$C$68,IF(I$5>5,Ceník!$C$69)))*I62 -> 0 | J63: =IF(J$5<3.8,Ceník!$C$67,IF(Výpočty!J$5<5,Ceník!$C$68,IF(J$5>5,Ceník!$C$69)))*J62 -> 0 | K63: =IF(K$5<3.8,Ceník!$C$67,IF(Výpočty!K$5<5,Ceník!$C$68,IF(K$5>5,Ceník!$C$69)))*K62 -> 0 | L63: 0 | N63: =IF(L63>0,Ceník!I67,0) -> 0
A64: materiál | B64: =IF(B$5<3.8,Ceník!$D$67,IF(Výpočty!B$5<5,Ceník!$D$68,IF(B$5>5,Ceník!$D$69)))*B62 -> 0 | C64: =IF(C$5<3.8,Ceník!$D$67,IF(Výpočty!C$5<5,Ceník!$D$68,IF(C$5>5,Ceník!$D$69)))*C62 -> 0 | D64: =IF(D$5<3.8,Ceník!$D$67,IF(Výpočty!D$5<5,Ceník!$D$68,IF(D$5>5,Ceník!$D$69)))*D62 -> 0 | E64: =IF(E$5<3.8,Ceník!$D$67,IF(Výpočty!E$5<5,Ceník!$D$68,IF(E$5>5,Ceník!$D$69)))*E62 -> 0 | F64: =IF(F$5<3.8,Ceník!$D$67,IF(Výpočty!F$5<5,Ceník!$D$68,IF(F$5>5,Ceník!$D$69)))*F62 -> 0 | G64: =IF(G$5<3.8,Ceník!$D$67,IF(Výpočty!G$5<5,Ceník!$D$68,IF(G$5>5,Ceník!$D$69)))*G62 -> 0 | H64: =IF(H$5<3.8,Ceník!$D$67,IF(Výpočty!H$5<5,Ceník!$D$68,IF(H$5>5,Ceník!$D$69)))*H62 -> 0 | I64: =IF(I$5<3.8,Ceník!$D$67,IF(Výpočty!I$5<5,Ceník!$D$68,IF(I$5>5,Ceník!$D$69)))*I62 -> 0 | J64: =IF(J$5<3.8,Ceník!$D$67,IF(Výpočty!J$5<5,Ceník!$D$68,IF(J$5>5,Ceník!$D$69)))*J62 -> 0 | K64: =IF(K$5<3.8,Ceník!$D$67,IF(Výpočty!K$5<5,Ceník!$D$68,IF(K$5>5,Ceník!$D$69)))*K62 -> 0 | L64: 0
A65: běžná barevná | B65: =IF(Room01!$A88=TRUE,IF(Room01!$B91=TRUE,Room01!$D91,0),0) -> 0 | C65: =IF(Room02!$A88=TRUE,IF(Room02!$B91=TRUE,Room02!$D91,0),0) -> 0 | D65: =IF(Room03!$A88=TRUE,IF(Room03!$B91=TRUE,Room03!$D91,0),0) -> 0 | E65: =IF(Room04!$A88=TRUE,IF(Room04!$B91=TRUE,Room04!$D91,0),0) -> 0 | F65: =IF(Room05!$A88=TRUE,IF(Room05!$B91=TRUE,Room05!$D91,0),0) -> 0 | G65: =IF(Room06!$A88=TRUE,IF(Room06!$B91=TRUE,Room06!$D91,0),0) -> 0 | H65: =IF(Room07!$A88=TRUE,IF(Room07!$B91=TRUE,Room07!$D91,0),0) -> 0 | I65: =IF(Room08!$A88=TRUE,IF(Room08!$B91=TRUE,Room08!$D91,0),0) -> 0 | J65: =IF(Room09!$A88=TRUE,IF(Room09!$B91=TRUE,Room09!$D91,0),0) -> 0 | K65: =IF(Room10!$A88=TRUE,IF(Room10!$B91=TRUE,Room10!$D91,0),0) -> 0 | L65: 0
A66: celkem | B66: =(IF(B$5<3.8,Ceník!$C$67,IF(Výpočty!B$5<5,Ceník!$C$68,IF(B$5>5,Ceník!$C$69)))+Ceník!$C$70)*B65 -> 0 | C66: =(IF(C$5<3.8,Ceník!$C$67,IF(Výpočty!C$5<5,Ceník!$C$68,IF(C$5>5,Ceník!$C$69)))+Ceník!$C$70)*C65 -> 0 | D66: =(IF(D$5<3.8,Ceník!$C$67,IF(Výpočty!D$5<5,Ceník!$C$68,IF(D$5>5,Ceník!$C$69)))+Ceník!$C$70)*D65 -> 0 | E66: =(IF(E$5<3.8,Ceník!$C$67,IF(Výpočty!E$5<5,Ceník!$C$68,IF(E$5>5,Ceník!$C$69)))+Ceník!$C$70)*E65 -> 0 | F66: =(IF(F$5<3.8,Ceník!$C$67,IF(Výpočty!F$5<5,Ceník!$C$68,IF(F$5>5,Ceník!$C$69)))+Ceník!$C$70)*F65 -> 0 | G66: =(IF(G$5<3.8,Ceník!$C$67,IF(Výpočty!G$5<5,Ceník!$C$68,IF(G$5>5,Ceník!$C$69)))+Ceník!$C$70)*G65 -> 0 | H66: =(IF(H$5<3.8,Ceník!$C$67,IF(Výpočty!H$5<5,Ceník!$C$68,IF(H$5>5,Ceník!$C$69)))+Ceník!$C$70)*H65 -> 0 | I66: =(IF(I$5<3.8,Ceník!$C$67,IF(Výpočty!I$5<5,Ceník!$C$68,IF(I$5>5,Ceník!$C$69)))+Ceník!$C$70)*I65 -> 0 | J66: =(IF(J$5<3.8,Ceník!$C$67,IF(Výpočty!J$5<5,Ceník!$C$68,IF(J$5>5,Ceník!$C$69)))+Ceník!$C$70)*J65 -> 0 | K66: =(IF(K$5<3.8,Ceník!$C$67,IF(Výpočty!K$5<5,Ceník!$C$68,IF(K$5>5,Ceník!$C$69)))+Ceník!$C$70)*K65 -> 0 | L66: 0 | N66: =IF(L66>0,Ceník!I67,0) -> 0
A67: materiál | B67: =(IF(B$5<3.8,Ceník!$D$67,IF(Výpočty!B$5<5,Ceník!$D$68,IF(B$5>5,Ceník!$D$69)))+Ceník!$D$70)*B65 -> 0 | C67: =(IF(C$5<3.8,Ceník!$D$67,IF(Výpočty!C$5<5,Ceník!$D$68,IF(C$5>5,Ceník!$D$69)))+Ceník!$D$70)*C65 -> 0 | D67: =(IF(D$5<3.8,Ceník!$D$67,IF(Výpočty!D$5<5,Ceník!$D$68,IF(D$5>5,Ceník!$D$69)))+Ceník!$D$70)*D65 -> 0 | E67: =(IF(E$5<3.8,Ceník!$D$67,IF(Výpočty!E$5<5,Ceník!$D$68,IF(E$5>5,Ceník!$D$69)))+Ceník!$D$70)*E65 -> 0 | F67: =(IF(F$5<3.8,Ceník!$D$67,IF(Výpočty!F$5<5,Ceník!$D$68,IF(F$5>5,Ceník!$D$69)))+Ceník!$D$70)*F65 -> 0 | G67: =(IF(G$5<3.8,Ceník!$D$67,IF(Výpočty!G$5<5,Ceník!$D$68,IF(G$5>5,Ceník!$D$69)))+Ceník!$D$70)*G65 -> 0 | H67: =(IF(H$5<3.8,Ceník!$D$67,IF(Výpočty!H$5<5,Ceník!$D$68,IF(H$5>5,Ceník!$D$69)))+Ceník!$D$70)*H65 -> 0 | I67: =(IF(I$5<3.8,Ceník!$D$67,IF(Výpočty!I$5<5,Ceník!$D$68,IF(I$5>5,Ceník!$D$69)))+Ceník!$D$70)*I65 -> 0 | J67: =(IF(J$5<3.8,Ceník!$D$67,IF(Výpočty!J$5<5,Ceník!$D$68,IF(J$5>5,Ceník!$D$69)))+Ceník!$D$70)*J65 -> 0 | K67: =(IF(K$5<3.8,Ceník!$D$67,IF(Výpočty!K$5<5,Ceník!$D$68,IF(K$5>5,Ceník!$D$69)))+Ceník!$D$70)*K65 -> 0 | L67: 0
A68: omyvatelná bílá | B68: =IF(Room01!$A93=TRUE,IF(Room01!$B95=TRUE,Room01!$D95,0),0) -> 0 | C68: =IF(Room02!$A93=TRUE,IF(Room02!$B95=TRUE,Room02!$D95,0),0) -> 0 | D68: =IF(Room03!$A93=TRUE,IF(Room03!$B95=TRUE,Room03!$D95,0),0) -> 0 | E68: =IF(Room04!$A93=TRUE,IF(Room04!$B95=TRUE,Room04!$D95,0),0) -> 0 | F68: =IF(Room05!$A93=TRUE,IF(Room05!$B95=TRUE,Room05!$D95,0),0) -> 0 | G68: =IF(Room06!$A93=TRUE,IF(Room06!$B95=TRUE,Room06!$D95,0),0) -> 0 | H68: =IF(Room07!$A93=TRUE,IF(Room07!$B95=TRUE,Room07!$D95,0),0) -> 0 | I68: =IF(Room08!$A93=TRUE,IF(Room08!$B95=TRUE,Room08!$D95,0),0) -> 0 | J68: =IF(Room09!$A93=TRUE,IF(Room09!$B95=TRUE,Room09!$D95,0),0) -> 0 | K68: =IF(Room10!$A93=TRUE,IF(Room10!$B95=TRUE,Room10!$D95,0),0) -> 0 | L68: 0
A69: celkem | B69: =IF(B$5<3.8,Ceník!$C$71,IF(B$5<5,Ceník!$C$72,IF(B$5>5,Ceník!$C$73)))*B68 -> 0 | C69: =IF(C$5<3.8,Ceník!$C$71,IF(C$5<5,Ceník!$C$72,IF(C$5>5,Ceník!$C$73)))*C68 -> 0 | D69: =IF(D$5<3.8,Ceník!$C$71,IF(D$5<5,Ceník!$C$72,IF(D$5>5,Ceník!$C$73)))*D68 -> 0 | E69: =IF(E$5<3.8,Ceník!$C$71,IF(E$5<5,Ceník!$C$72,IF(E$5>5,Ceník!$C$73)))*E68 -> 0 | F69: =IF(F$5<3.8,Ceník!$C$71,IF(F$5<5,Ceník!$C$72,IF(F$5>5,Ceník!$C$73)))*F68 -> 0 | G69: =IF(G$5<3.8,Ceník!$C$71,IF(G$5<5,Ceník!$C$72,IF(G$5>5,Ceník!$C$73)))*G68 -> 0 | H69: =IF(H$5<3.8,Ceník!$C$71,IF(H$5<5,Ceník!$C$72,IF(H$5>5,Ceník!$C$73)))*H68 -> 0 | I69: =IF(I$5<3.8,Ceník!$C$71,IF(I$5<5,Ceník!$C$72,IF(I$5>5,Ceník!$C$73)))*I68 -> 0 | J69: =IF(J$5<3.8,Ceník!$C$71,IF(J$5<5,Ceník!$C$72,IF(J$5>5,Ceník!$C$73)))*J68 -> 0 | K69: =IF(K$5<3.8,Ceník!$C$71,IF(K$5<5,Ceník!$C$72,IF(K$5>5,Ceník!$C$73)))*K68 -> 0 | L69: 0 | N69: =IF(L69>0,Ceník!I67,0) -> 0
A70: materiál | B70: =IF(B$5<3.8,Ceník!$D$71,IF(B$5<5,Ceník!$D$72,IF(B$5>5,Ceník!$D$73)))*B68 -> 0 | C70: =IF(C$5<3.8,Ceník!$D$71,IF(C$5<5,Ceník!$D$72,IF(C$5>5,Ceník!$D$73)))*C68 -> 0 | D70: =IF(D$5<3.8,Ceník!$D$71,IF(D$5<5,Ceník!$D$72,IF(D$5>5,Ceník!$D$73)))*D68 -> 0 | E70: =IF(E$5<3.8,Ceník!$D$71,IF(E$5<5,Ceník!$D$72,IF(E$5>5,Ceník!$D$73)))*E68 -> 0 | F70: =IF(F$5<3.8,Ceník!$D$71,IF(F$5<5,Ceník!$D$72,IF(F$5>5,Ceník!$D$73)))*F68 -> 0 | G70: =IF(G$5<3.8,Ceník!$D$71,IF(G$5<5,Ceník!$D$72,IF(G$5>5,Ceník!$D$73)))*G68 -> 0 | H70: =IF(H$5<3.8,Ceník!$D$71,IF(H$5<5,Ceník!$D$72,IF(H$5>5,Ceník!$D$73)))*H68 -> 0 | I70: =IF(I$5<3.8,Ceník!$D$71,IF(I$5<5,Ceník!$D$72,IF(I$5>5,Ceník!$D$73)))*I68 -> 0 | J70: =IF(J$5<3.8,Ceník!$D$71,IF(J$5<5,Ceník!$D$72,IF(J$5>5,Ceník!$D$73)))*J68 -> 0 | K70: =IF(K$5<3.8,Ceník!$D$71,IF(K$5<5,Ceník!$D$72,IF(K$5>5,Ceník!$D$73)))*K68 -> 0 | L70: 0
A71: omyvatelná barevná | B71: =IF(Room01!$A93=TRUE,IF(Room01!$B96=TRUE,Room01!$D96,0),0) -> 0 | C71: =IF(Room02!$A93=TRUE,IF(Room02!$B96=TRUE,Room02!$D96,0),0) -> 0 | D71: =IF(Room03!$A93=TRUE,IF(Room03!$B96=TRUE,Room03!$D96,0),0) -> 0 | E71: =IF(Room04!$A93=TRUE,IF(Room04!$B96=TRUE,Room04!$D96,0),0) -> 0 | F71: =IF(Room05!$A93=TRUE,IF(Room05!$B96=TRUE,Room05!$D96,0),0) -> 0 | G71: =IF(Room06!$A93=TRUE,IF(Room06!$B96=TRUE,Room06!$D96,0),0) -> 0 | H71: =IF(Room07!$A93=TRUE,IF(Room07!$B96=TRUE,Room07!$D96,0),0) -> 0 | I71: =IF(Room08!$A93=TRUE,IF(Room08!$B96=TRUE,Room08!$D96,0),0) -> 0 | J71: =IF(Room09!$A93=TRUE,IF(Room09!$B96=TRUE,Room09!$D96,0),0) -> 0 | K71: =IF(Room10!$A93=TRUE,IF(Room10!$B96=TRUE,Room10!$D96,0),0) -> 0 | L71: 0
A72: celkem | B72: =(IF(B$5<3.8,Ceník!$C$71,IF(B$5<5,Ceník!$C$72,IF(B$5>5,Ceník!$C$73)))+Ceník!$C$74)*B71 -> 0 | C72: =(IF(C$5<3.8,Ceník!$C$71,IF(C$5<5,Ceník!$C$72,IF(C$5>5,Ceník!$C$73)))+Ceník!$C$74)*C71 -> 0 | D72: =(IF(D$5<3.8,Ceník!$C$71,IF(D$5<5,Ceník!$C$72,IF(D$5>5,Ceník!$C$73)))+Ceník!$C$74)*D71 -> 0 | E72: =(IF(E$5<3.8,Ceník!$C$71,IF(E$5<5,Ceník!$C$72,IF(E$5>5,Ceník!$C$73)))+Ceník!$C$74)*E71 -> 0 | F72: =(IF(F$5<3.8,Ceník!$C$71,IF(F$5<5,Ceník!$C$72,IF(F$5>5,Ceník!$C$73)))+Ceník!$C$74)*F71 -> 0 | G72: =(IF(G$5<3.8,Ceník!$C$71,IF(G$5<5,Ceník!$C$72,IF(G$5>5,Ceník!$C$73)))+Ceník!$C$74)*G71 -> 0 | H72: =(IF(H$5<3.8,Ceník!$C$71,IF(H$5<5,Ceník!$C$72,IF(H$5>5,Ceník!$C$73)))+Ceník!$C$74)*H71 -> 0 | I72: =(IF(I$5<3.8,Ceník!$C$71,IF(I$5<5,Ceník!$C$72,IF(I$5>5,Ceník!$C$73)))+Ceník!$C$74)*I71 -> 0 | J72: =(IF(J$5<3.8,Ceník!$C$71,IF(J$5<5,Ceník!$C$72,IF(J$5>5,Ceník!$C$73)))+Ceník!$C$74)*J71 -> 0 | K72: =(IF(K$5<3.8,Ceník!$C$71,IF(K$5<5,Ceník!$C$72,IF(K$5>5,Ceník!$C$73)))+Ceník!$C$74)*K71 -> 0 | L72: 0 | N72: =IF(L72>0,Ceník!I67,0) -> 0
A73: materiál | B73: =(IF(B$5<3.8,Ceník!$D$71,IF(B$5<5,Ceník!$D$72,IF(B$5>5,Ceník!$D$73)))+Ceník!$D$74)*B71 -> 0 | C73: =(IF(C$5<3.8,Ceník!$D$71,IF(C$5<5,Ceník!$D$72,IF(C$5>5,Ceník!$D$73)))+Ceník!$D$74)*C71 -> 0 | D73: =(IF(D$5<3.8,Ceník!$D$71,IF(D$5<5,Ceník!$D$72,IF(D$5>5,Ceník!$D$73)))+Ceník!$D$74)*D71 -> 0 | E73: =(IF(E$5<3.8,Ceník!$D$71,IF(E$5<5,Ceník!$D$72,IF(E$5>5,Ceník!$D$73)))+Ceník!$D$74)*E71 -> 0 | F73: =(IF(F$5<3.8,Ceník!$D$71,IF(F$5<5,Ceník!$D$72,IF(F$5>5,Ceník!$D$73)))+Ceník!$D$74)*F71 -> 0 | G73: =(IF(G$5<3.8,Ceník!$D$71,IF(G$5<5,Ceník!$D$72,IF(G$5>5,Ceník!$D$73)))+Ceník!$D$74)*G71 -> 0 | H73: =(IF(H$5<3.8,Ceník!$D$71,IF(H$5<5,Ceník!$D$72,IF(H$5>5,Ceník!$D$73)))+Ceník!$D$74)*H71 -> 0 | I73: =(IF(I$5<3.8,Ceník!$D$71,IF(I$5<5,Ceník!$D$72,IF(I$5>5,Ceník!$D$73)))+Ceník!$D$74)*I71 -> 0 | J73: =(IF(J$5<3.8,Ceník!$D$71,IF(J$5<5,Ceník!$D$72,IF(J$5>5,Ceník!$D$73)))+Ceník!$D$74)*J71 -> 0 | K73: =(IF(K$5<3.8,Ceník!$D$71,IF(K$5<5,Ceník!$D$72,IF(K$5>5,Ceník!$D$73)))+Ceník!$D$74)*K71 -> 0 | L73: 0
A76: zakrytí podlah a oken | B76: =B$3*Ceník!$C$14+IF(B$5<3.8,Ceník!$C$15,IF(B$5<5,Ceník!$C$16,IF(B$5>5,Ceník!$C$17)))*B$4 -> 0 | C76: =C$3*Ceník!$C$14+IF(C$5<3.8,Ceník!$C$15,IF(C$5<5,Ceník!$C$16,IF(C$5>5,Ceník!$C$17)))*C$4 -> 0 | D76: =D$3*Ceník!$C$14+IF(D$5<3.8,Ceník!$C$15,IF(D$5<5,Ceník!$C$16,IF(D$5>5,Ceník!$C$17)))*D$4 -> 0 | E76: =E$3*Ceník!$C$14+IF(E$5<3.8,Ceník!$C$15,IF(E$5<5,Ceník!$C$16,IF(E$5>5,Ceník!$C$17)))*E$4 -> 0 | F76: =F$3*Ceník!$C$14+IF(F$5<3.8,Ceník!$C$15,IF(F$5<5,Ceník!$C$16,IF(F$5>5,Ceník!$C$17)))*F$4 -> 0 | G76: =G$3*Ceník!$C$14+IF(G$5<3.8,Ceník!$C$15,IF(G$5<5,Ceník!$C$16,IF(G$5>5,Ceník!$C$17)))*G$4 -> 0 | H76: =H$3*Ceník!$C$14+IF(H$5<3.8,Ceník!$C$15,IF(H$5<5,Ceník!$C$16,IF(H$5>5,Ceník!$C$17)))*H$4 -> 0 | I76: =I$3*Ceník!$C$14+IF(I$5<3.8,Ceník!$C$15,IF(I$5<5,Ceník!$C$16,IF(I$5>5,Ceník!$C$17)))*I$4 -> 0 | J76: =J$3*Ceník!$C$14+IF(J$5<3.8,Ceník!$C$15,IF(J$5<5,Ceník!$C$16,IF(J$5>5,Ceník!$C$17)))*J$4 -> 0 | K76: =K$3*Ceník!$C$14+IF(K$5<3.8,Ceník!$C$15,IF(K$5<5,Ceník!$C$16,IF(K$5>5,Ceník!$C$17)))*K$4 -> 0 | L76: =SUM(B76:K76) -> 0
A77: materiál | B77: =B$3*Ceník!$D$14+IF(B$5<3.8,Ceník!$D$15,IF(B$5<5,Ceník!$D$16,IF(B$5>5,Ceník!$D$17)))*B$4 -> 0 | C77: =C$3*Ceník!$D$14+IF(C$5<3.8,Ceník!$D$15,IF(C$5<5,Ceník!$D$16,IF(C$5>5,Ceník!$D$17)))*C$4 -> 0 | D77: =D$3*Ceník!$D$14+IF(D$5<3.8,Ceník!$D$15,IF(D$5<5,Ceník!$D$16,IF(D$5>5,Ceník!$D$17)))*D$4 -> 0 | E77: =E$3*Ceník!$D$14+IF(E$5<3.8,Ceník!$D$15,IF(E$5<5,Ceník!$D$16,IF(E$5>5,Ceník!$D$17)))*E$4 -> 0 | F77: =F$3*Ceník!$D$14+IF(F$5<3.8,Ceník!$D$15,IF(F$5<5,Ceník!$D$16,IF(F$5>5,Ceník!$D$17)))*F$4 -> 0 | G77: =G$3*Ceník!$D$14+IF(G$5<3.8,Ceník!$D$15,IF(G$5<5,Ceník!$D$16,IF(G$5>5,Ceník!$D$17)))*G$4 -> 0 | H77: =H$3*Ceník!$D$14+IF(H$5<3.8,Ceník!$D$15,IF(H$5<5,Ceník!$D$16,IF(H$5>5,Ceník!$D$17)))*H$4 -> 0 | I77: =I$3*Ceník!$D$14+IF(I$5<3.8,Ceník!$D$15,IF(I$5<5,Ceník!$D$16,IF(I$5>5,Ceník!$D$17)))*I$4 -> 0 | J77: =J$3*Ceník!$D$14+IF(J$5<3.8,Ceník!$D$15,IF(J$5<5,Ceník!$D$16,IF(J$5>5,Ceník!$D$17)))*J$4 -> 0 | K77: =K$3*Ceník!$D$14+IF(K$5<3.8,Ceník!$D$15,IF(K$5<5,Ceník!$D$16,IF(K$5>5,Ceník!$D$17)))*K$4 -> 0 | L77: =SUM(B77:K77) -> 0
A79: olepování páskou | B79: =IF(B$5<3.8,Ceník!$C$18,IF(B$5<5,Ceník!$C$19,IF(B$5>5,Ceník!$C$20)))*(B$6+B$5*4+B$4/1.5) -> 0 | C79: =IF(C$5<3.8,Ceník!$C$18,IF(C$5<5,Ceník!$C$19,IF(C$5>5,Ceník!$C$20)))*(C$6+C$5*4+C$4/1.5) -> 0 | D79: =IF(D$5<3.8,Ceník!$C$18,IF(D$5<5,Ceník!$C$19,IF(D$5>5,Ceník!$C$20)))*(D$6+D$5*4+D$4/1.5) -> 0 | E79: =IF(E$5<3.8,Ceník!$C$18,IF(E$5<5,Ceník!$C$19,IF(E$5>5,Ceník!$C$20)))*(E$6+E$5*4+E$4/1.5) -> 0 | F79: =IF(F$5<3.8,Ceník!$C$18,IF(F$5<5,Ceník!$C$19,IF(F$5>5,Ceník!$C$20)))*(F$6+F$5*4+F$4/1.5) -> 0 | G79: =IF(G$5<3.8,Ceník!$C$18,IF(G$5<5,Ceník!$C$19,IF(G$5>5,Ceník!$C$20)))*(G$6+G$5*4+G$4/1.5) -> 0 | H79: =IF(H$5<3.8,Ceník!$C$18,IF(H$5<5,Ceník!$C$19,IF(H$5>5,Ceník!$C$20)))*(H$6+H$5*4+H$4/1.5) -> 0 | I79: =IF(I$5<3.8,Ceník!$C$18,IF(I$5<5,Ceník!$C$19,IF(I$5>5,Ceník!$C$20)))*(I$6+I$5*4+I$4/1.5) -> 0 | J79: =IF(J$5<3.8,Ceník!$C$18,IF(J$5<5,Ceník!$C$19,IF(J$5>5,Ceník!$C$20)))*(J$6+J$5*4+J$4/1.5) -> 0 | K79: =IF(K$5<3.8,Ceník!$C$18,IF(K$5<5,Ceník!$C$19,IF(K$5>5,Ceník!$C$20)))*(K$6+K$5*4+K$4/1.5) -> 0 | L79: =SUM(B79:K79) -> 0
A80: materiál | B80: =IF(B$5<3.8,Ceník!$D$18,IF(B$5<5,Ceník!$D$19,IF(B$5>5,Ceník!$D$20)))*(B$6+B$5*4+B$4/1.5) -> 0 | C80: =IF(C$5<3.8,Ceník!$D$18,IF(C$5<5,Ceník!$D$19,IF(C$5>5,Ceník!$D$20)))*(C$6+C$5*4+C$4/1.5) -> 0 | D80: =IF(D$5<3.8,Ceník!$D$18,IF(D$5<5,Ceník!$D$19,IF(D$5>5,Ceník!$D$20)))*(D$6+D$5*4+D$4/1.5) -> 0 | E80: =IF(E$5<3.8,Ceník!$D$18,IF(E$5<5,Ceník!$D$19,IF(E$5>5,Ceník!$D$20)))*(E$6+E$5*4+E$4/1.5) -> 0 | F80: =IF(F$5<3.8,Ceník!$D$18,IF(F$5<5,Ceník!$D$19,IF(F$5>5,Ceník!$D$20)))*(F$6+F$5*4+F$4/1.5) -> 0 | G80: =IF(G$5<3.8,Ceník!$D$18,IF(G$5<5,Ceník!$D$19,IF(G$5>5,Ceník!$D$20)))*(G$6+G$5*4+G$4/1.5) -> 0 | H80: =IF(H$5<3.8,Ceník!$D$18,IF(H$5<5,Ceník!$D$19,IF(H$5>5,Ceník!$D$20)))*(H$6+H$5*4+H$4/1.5) -> 0 | I80: =IF(I$5<3.8,Ceník!$D$18,IF(I$5<5,Ceník!$D$19,IF(I$5>5,Ceník!$D$20)))*(I$6+I$5*4+I$4/1.5) -> 0 | J80: =IF(J$5<3.8,Ceník!$D$18,IF(J$5<5,Ceník!$D$19,IF(J$5>5,Ceník!$D$20)))*(J$6+J$5*4+J$4/1.5) -> 0 | K80: =IF(K$5<3.8,Ceník!$D$18,IF(K$5<5,Ceník!$D$19,IF(K$5>5,Ceník!$D$20)))*(K$6+K$5*4+K$4/1.5) -> 0 | L80: =SUM(B80:K80) -> 0
A82: tmelení | B82: =IF(B$5<3.8,Ceník!$C$58,IF(B$5<5,Ceník!$C$59,IF(B$5>5,Ceník!$C$60)))*B$6 -> 0 | C82: =IF(C$5<3.8,Ceník!$C$58,IF(C$5<5,Ceník!$C$59,IF(C$5>5,Ceník!$C$60)))*C$6 -> 0 | D82: =IF(D$5<3.8,Ceník!$C$58,IF(D$5<5,Ceník!$C$59,IF(D$5>5,Ceník!$C$60)))*D$6 -> 0 | E82: =IF(E$5<3.8,Ceník!$C$58,IF(E$5<5,Ceník!$C$59,IF(E$5>5,Ceník!$C$60)))*E$6 -> 0 | F82: =IF(F$5<3.8,Ceník!$C$58,IF(F$5<5,Ceník!$C$59,IF(F$5>5,Ceník!$C$60)))*F$6 -> 0 | G82: =IF(G$5<3.8,Ceník!$C$58,IF(G$5<5,Ceník!$C$59,IF(G$5>5,Ceník!$C$60)))*G$6 -> 0 | H82: =IF(H$5<3.8,Ceník!$C$58,IF(H$5<5,Ceník!$C$59,IF(H$5>5,Ceník!$C$60)))*H$6 -> 0 | I82: =IF(I$5<3.8,Ceník!$C$58,IF(I$5<5,Ceník!$C$59,IF(I$5>5,Ceník!$C$60)))*I$6 -> 0 | J82: =IF(J$5<3.8,Ceník!$C$58,IF(J$5<5,Ceník!$C$59,IF(J$5>5,Ceník!$C$60)))*J$6 -> 0 | K82: =IF(K$5<3.8,Ceník!$C$58,IF(K$5<5,Ceník!$C$59,IF(K$5>5,Ceník!$C$60)))*K$6 -> 0 | L82: =SUM(B82:K82) -> 0 | N82: =IF(L82>0,Ceník!I58,0) -> 0
A83: materiál | B83: =IF(B$5<3.8,Ceník!$D$58,IF(B$5<5,Ceník!$D$59,IF(B$5>5,Ceník!$D$60)))*B$6 -> 0 | C83: =IF(C$5<3.8,Ceník!$D$58,IF(C$5<5,Ceník!$D$59,IF(C$5>5,Ceník!$D$60)))*C$6 -> 0 | D83: =IF(D$5<3.8,Ceník!$D$58,IF(D$5<5,Ceník!$D$59,IF(D$5>5,Ceník!$D$60)))*D$6 -> 0 | E83: =IF(E$5<3.8,Ceník!$D$58,IF(E$5<5,Ceník!$D$59,IF(E$5>5,Ceník!$D$60)))*E$6 -> 0 | F83: =IF(F$5<3.8,Ceník!$D$58,IF(F$5<5,Ceník!$D$59,IF(F$5>5,Ceník!$D$60)))*F$6 -> 0 | G83: =IF(G$5<3.8,Ceník!$D$58,IF(G$5<5,Ceník!$D$59,IF(G$5>5,Ceník!$D$60)))*G$6 -> 0 | H83: =IF(H$5<3.8,Ceník!$D$58,IF(H$5<5,Ceník!$D$59,IF(H$5>5,Ceník!$D$60)))*H$6 -> 0 | I83: =IF(I$5<3.8,Ceník!$D$58,IF(I$5<5,Ceník!$D$59,IF(I$5>5,Ceník!$D$60)))*I$6 -> 0 | J83: =IF(J$5<3.8,Ceník!$D$58,IF(J$5<5,Ceník!$D$59,IF(J$5>5,Ceník!$D$60)))*J$6 -> 0 | K83: =IF(K$5<3.8,Ceník!$D$58,IF(K$5<5,Ceník!$D$59,IF(K$5>5,Ceník!$D$60)))*K$6 -> 0 | L83: =SUM(B83:K83) -> 0
A85: úklid | B85: =B3*Ceník!$C$75+B4*Ceník!$C$76 -> 0 | C85: =C3*Ceník!$C$75+C4*Ceník!$C$76 -> 0 | D85: =D3*Ceník!$C$75+D4*Ceník!$C$76 -> 0 | E85: =E3*Ceník!$C$75+E4*Ceník!$C$76 -> 0 | F85: =F3*Ceník!$C$75+F4*Ceník!$C$76 -> 0 | G85: =G3*Ceník!$C$75+G4*Ceník!$C$76 -> 0 | H85: =H3*Ceník!$C$75+H4*Ceník!$C$76 -> 0 | I85: =I3*Ceník!$C$75+I4*Ceník!$C$76 -> 0 | J85: =J3*Ceník!$C$75+J4*Ceník!$C$76 -> 0 | K85: =K3*Ceník!$C$75+K4*Ceník!$C$76 -> 0 | L85: =SUM(B85:K85) -> 0 | N85: =IF(L85>0,Ceník!I75,0) -> 0
A86: materiál | B86: =B3*Ceník!$D$75+B4*Ceník!$D$76 -> 0 | C86: =C3*Ceník!$D$75+C4*Ceník!$D$76 -> 0 | D86: =D3*Ceník!$D$75+D4*Ceník!$D$76 -> 0 | E86: =E3*Ceník!$D$75+E4*Ceník!$D$76 -> 0 | F86: =F3*Ceník!$D$75+F4*Ceník!$D$76 -> 0 | G86: =G3*Ceník!$D$75+G4*Ceník!$D$76 -> 0 | H86: =H3*Ceník!$D$75+H4*Ceník!$D$76 -> 0 | I86: =I3*Ceník!$D$75+I4*Ceník!$D$76 -> 0 | J86: =J3*Ceník!$D$75+J4*Ceník!$D$76 -> 0 | K86: =K3*Ceník!$D$75+K4*Ceník!$D$76 -> 0 | L86: 0
A89: materiál nezávislý na konkrétní činnosti | L89: =SUM(L90:L105) -> 0
A90: štafle do v 3,0 m | L90: =IF(OR(AND(B5<3,B5>0),AND(C5<3,C5>0),AND(D5<3,D5>0),AND(E5<3,E5>0),AND(F5<3,F5>0),AND(G5<3,G5>0),AND(H5<3,H5>0),AND(I5<3,I5>0),AND(J5<3,J5>0),AND(K5<3,K5>0)),Svépomocí!B42,0) -> 0
A91: štafle nad v 3,0 m | L91: =IF(OR(B5>3,C5>3,D5>3,E5>3,F5>3,G5>3,H5>3,I5>3,J5>3,K5>3),Svépomocí!B43,0) -> 0
A92: míchadlo | L92: =IF(OR(L17>0,L24>0,L29>0,L32>0,L35>0,L38>0),Svépomocí!B44,0) -> 0
A93: hřídel do míchadla | L93: =IF(L92>0,Svépomocí!B45,0) -> 0

Sheet Settings (hidden)
A1: Úvod:
A2: Chápeme, že ne všechny práce chcete svěřit profesionálům, ať už kvůli ceně nebo z jiných důvodů, přesto vše vyplňte. Řekneme Vám, kolik by Vás práce stála od profesionálů a Vy sami se potom můžete na základě ceny rozhodnout, zda si zvolíte práci profesionála či si některou činnost zkusíte sami. Rádi bychom Vás také informovali o tom, že výsledky této kalkulace předpokládají běžné bytové (i rodinné domy) podmínky, tedy pokud plánujete výmalbu atypických, sklepních, vlhkých či jinak nestandardních prostor, doporučujeme návštěvu profesionála ke konzultaci. | J2: Jak kalkulačku ovládat? Kalkulačka umožňuje počítat až 10 místností zároveň a ve výsledném protokolu Vám je všechny sečte. Místnosti ovládáte tak, že si vždy zde v záložce "Úvod" pomocí roletky zvolíte číslo místnosti a stisknete "Nahrát". Od této chvíle se Vám do všech ostatních záložek nahrála zvolená místnost. Pokud chcete editovat již vyplněnou místnost, opět pouze v roletce zvolíte číslo místnosti, pro kterou jste již údaje vyplnili, a po kliknutí na tlačítko "Nahrát" se Vám do ostatních záložek nahrají znovu již zapsané údaje. Tip pro další ovládání U některých otázek najdete symbol i, když na tento symbol najedete myší, zobrazí se Vám nápověda k této otázce.
A4: Kolik místností plánujete malovat? | F4: Maximum: | G4: 10 | J4: (tolikrát zobrazit formulář)
A6: Základní rozměry:
A7: Název místnosti:
A9: Jelikož malování je věc rozměrová, potřebujeme znát několik málo čísel. | J9: Spočtěte tak, že změříte obvod místnosti a vynásobíte jej výškou místností.
A10: Jakou plochu stěn plánujete malovat (vč. otvorů)? | G10: m2 | J10: Neodečítejte plochy otvorů jako jsou např. okna a dveře. Pozor!, ať sem nezapočtete místa, která malovat nechcete nebo nemůžete, např. za vestavěným nábytkem nebo v místě, kde máte keramické či jiné obklady a chcete je tam ponechat.
A11: Jaká je podlahová plocha místnosti? | G11: m2 | J11: Tip: Pokud má místnost složitější tvar, zkuste si jej rozdělit na pomyslné obdélníky a ty vzájemně odečtěte či přičtěte.
A12: Jaká je plocha otvorů a jiných nemalovaných ploch? | G12: m2 | J12: Okna, dveře, dvířka k revizní šachtě apod. plochy.
A13: Jaká je výška místnosti? | G13: m | J13: Ostatní potřebné míry dopočteme za Vás.
A15: Podklad:
A16: Místnost: (1) …. | J16: (Název a číslo místnosti)
A17: Abychom Vám mohli poradit s postupem, potřebujeme vědět, jaký je stávající podklad v místě plánované malby.
A18: V místě plánované malby se právě nachází:
A19: x | B19: keramický nebo jiný obklad | F19: m2
A20: x | B20: stará malba | F20: m2
A21: x | B21: tapety | F21: m2
A22: x | B22: nová omítka | F22: m2
A23: x | B23: nová SDK deska | F23: m2
A24: x | B24: hrubá konstrukce | F24: m2 | J24: Stěna je holá, je vidět zdivo, panel…
B26: Malba
A27: O | B27: Chci malbu oškrábat. (Nebo vím, že stávající malba je vápenná/latexová/klihová, a tudíž se musí oškrábat.) | J27: Vypsané barvy nejsou jako podklad pro novou barvu vhodné, později by docházelo k oprýskání a loupání nové malby.
A28: O | B28: Pokud možno chci ji jen přetřít novou malbou. | J28: Pokud se malba nachází ve vhodném stavu, je možné provést novou malbu jen jako další vrstvu bez nutnosti škrábání. Poradíme Vám, zda je to u Vás možné.
B30: O | C30: Na stěně se nachází nerovnosti, které mi vadí (praskliny, prohlubně, vypoukliny, stěna je "vlnitá", ...).
B31: O | C31: Stěna je krásně rovná nebo mi drobné nerovnosti nevadí.
D33: V jakém je stávající malba stavu?
C34: O | D34: Malba se loupe, je oprýskaná nebo tvoří boule.
C35: O | D35: Malba se jeví na pohled v pořádku.
E37: Test: Vyzkoušejte následující testy a zaškrtněte pravdivé.
D38: x | E38: Pokud po stěně přejedu silnějším tlakem rukou, barva se mi na ruku otře.
D39: x | E39: Když malbu více namočím, ztmavne a vytvoří mazlavou skvrnu, po stírání palcem krouživými pohyby na palci ulpí mazlavá hmota.
D40: x | E40: Po přilepení kusu lepící pásky pevně na stěnu a následném strhnutí na pásce ulpí větší částice.
D41: x | E41: Po provedení testů se nestalo nic z výše uvedeného.
B43: Tapety
A44: O | B44: Tapety chci strhnout.
A45: O | B45: Pokud možno, chci je jen přetřít novou malbou.
B47: O | C47: Na stěně se nachází nerovnosti, které mi vadí (praskliny, prohlubně, vypoukliny, stěna je "vlnitá", ...).
B48: O | C48: Stěna je krásně rovná nebo mi drobné nerovnosti nevadí.
D50: V jakém je stávající tapeta stavu?
C51: O | D51: Tapety se odlupují a/nebo tvoří boule.
C52: O | D52: Tapety jsou naprosto v pořádku, nikde se neodlupují, netvoří boule, pevně drží na svém podkladu.
D54: O | E54: Na tapetách se žádná malba nenachází.
D55: O | E55: Na tapetách se nachází malba.
F57: Test: Vyzkoušejte následující testy a zaškrtněte pravdivé.
E58: x | F58: Pokud po stěně přejedu silnějším tlakem rukou, barva se mi na ruku otře.
E59: x | F59: Když malbu více namočím, ztmavne a vytvoří mazlavou skvrnu, po stírání palcem krouživými pohyby na palci ulpí mazlavá hmota.
E60: x | F60: Po přilepení kusu lepící pásky pevně na stěnu a následném strhnutí na pásce ulpí větší částice.
E61: x | F61: Po provedení testů se nestalo nic z výše uvedeného.
B63: Nová omítka
A64: O | B64: Chci opravit omítku. | J64: m2
B66: O | C66: Stávající omítka je v nepoužitelném stavu, drolí se a opadává.
B67: O | C67: Omítka má jen drobné nerovnosti (praskliny, prohlubně, vypoukliny, stěna je "vlnitá", ...).
A69: O | B69: Chci malovat na již hotovou novou omítku. | J69: m2
B71: O | C71: Omítka je oprýskaná, odlupuje se, opadává.
B72: O | C72: Omítka má jen drobné nerovnosti, které mi vadí (drobné vypoukliny, či prohlubně, drobné rýhy).
B73: O | C73: Omítka je naprosto v pořádku, nikde se neodlupuje, neopadává, pevně drží na svém podkladu a nemá žádné nerovnosti, popř. mi nevadí.
A75: Vyskytují se v místě nové malby plísně?
A76: O | B76: Ano, vyskytují v přibližné ploše. | F76: V přibližné ploše | I76: m2
A77: O | B77: Ne, nevyskytují.
A79: Nová malba:
A80: Místnost: (1) …. | J80: (Název a číslo místnosti)
A81: Jakou bude mít malba podobu?
A82: O | B82: Chci, aby výsledný vzhled byl hladký bez jakýchkoli vzorů.
A83: O | B83: Chci, aby výsledný vzhled byl strukturovaný (se vzorem) a proto bude pod malbou tapeta. | J83: Tyto tapety se později dají přemalovat hned několikrát, tedy v několika vrstvách, a vydrží Vám po mnoho let. Příklad můžete vidět na obrázku.
C84: bez | E84: m2
C85: tapeta | E85: m2
A87: Jakou barvu? | J87: Tím nemyslíme růžovou nebo zelenou, ale typ barvy.
A88: O | B88: Nemám žádné nároky, stačí mi běžná interiérová barva. | J88: V tomto případě se užívá běžná disperzní barva.
B90: x | C90: bílá | E90: m2
B91: x | C91: barevná | E91: m2
A93: O | B93: Mám vyšší nároky na otěruodolný nebo omyvatelný povrch. | J93: V tomto případě se užívá dražší vinylová barva. Vhodná do dětských pokojů, kde děti nežádoucně malují na stěny, nebo např. do předsíně, kde se oklepává špinavý pes. Tato barva má několik dalších výhod - vynikající přilnavost a díky své velmi tenké vrstvě se následně nemusí tak často škrábat, stačí přetřít novou barvou. Je sice dražší, ale zato se nanáší v menší vrstvě, tím se cena téměř vyrovná.
B95: x | C95: bílá | E95: m2
B96: x | C96: barevná | E96: m2
A99: Závěr:
A100: Na závěr už bychom Vás jen rádi požádali o e-mail, abychom Vám mohli zaslat celou kalkulaci v digitální podobě.
A101: e-mail: | B101: @
A106: Nová povrchová úprava Na základě Vámi uvedené odpovědi doporučujeme vyhotovit novou povrchovou úpravu hrubé konstrukce. Jelikož se zde nachází mnoho možností, jak tuto úpravu provést (omítka vápenná, sádrová, jiná, nebo SDK zákryt či jiné desky), rádi Vám poradíme v našem dalším modulu kalkulací, a to Kalkulačka povrchů hrubé konstrukce.

Sheet Room01 (hidden)
A1: =Settings!A1 -> Úvod:
A2: =Settings!A2 -> Chápeme, že ne všechny práce chcete svěřit profesionálům, ať už kvůli ceně nebo z jiných důvodů, přesto vše vyplňte. Řekneme Vám, kolik by Vás práce stála od profesionálů a Vy sami se potom můžete na základě ceny rozhodnout, zda si zvolíte práci profesionála či si některou činnost zkusíte sami. Rádi bychom Vás také informovali o tom, že výsledky této kalkulace předpokládají běžné bytové (i rodinné domy) podmínky, tedy pokud plánujete výmalbu atypických, sklepních, vlhkých či jinak nestandardních prostor, doporučujeme návštěvu profesionála ke konzultaci.
A4: =Settings!A4 -> Kolik místností plánujete malovat?
A6: =Settings!A6 -> Základní rozměry:
A7: =Settings!A7 -> Název místnosti:
A9: =Settings!A9 -> Jelikož malování je věc rozměrová, potřebujeme znát několik málo čísel.
A10: =Settings!A10 -> Jakou plochu stěn plánujete malovat (vč. otvorů)? | G10: =Settings!G10 -> m2 | J10: =Settings!J10 -> Neodečítejte plochy otvorů jako jsou např. okna a dveře. Pozor!, ať sem nezapočtete místa, která malovat nechcete nebo nemůžete, např. za vestavěným nábytkem nebo v místě, kde máte keramické či jiné obklady a chcete je tam ponechat.
A11: =Settings!A11 -> Jaká je podlahová plocha místnosti? | G11: =Settings!G11 -> m2 | J11: =Settings!J11 -> Tip: Pokud má místnost složitější tvar, zkuste si jej rozdělit na pomyslné obdélníky a ty vzájemně odečtěte či přičtěte.
A12: =Settings!A12 -> Jaká je plocha otvorů a jiných nemalovaných ploch? | G12: =Settings!G12 -> m2 | J12: =Settings!J12 -> Okna, dveře, dvířka k revizní šachtě apod. plochy.
A13: =Settings!A13 -> Jaká je výška místnosti? | G13: =Settings!G13 -> m | J13: =Settings!J13 -> Ostatní potřebné míry dopočteme za Vás.
A15: =Settings!A15 -> Podklad:
A16: =Settings!A16 -> Místnost: (1) ….
A17: =Settings!A17 -> Abychom Vám mohli poradit s postupem, potřebujeme vědět, jaký je stávající podklad v místě plánované malby.
A18: =Settings!A18 -> V místě plánované malby se právě nachází:
B19: =Settings!B19 -> keramický nebo jiný obklad | F19: =Settings!F19 -> m2
B20: =Settings!B20 -> stará malba | F20: =Settings!F20 -> m2
B21: =Settings!B21 -> tapety | F21: =Settings!F21 -> m2
B22: =Settings!B22 -> nová omítka | F22: =Settings!F22 -> m2
B23: =Settings!B23 -> nová SDK deska | F23: m2
B24: =Settings!B24 -> hrubá konstrukce | F24: =Settings!F24 -> m2
B26: =Settings!B26 -> Malba
B27: =Settings!B27 -> Chci malbu oškrábat. (Nebo vím, že stávající malba je vápenná/latexová/klihová, a tudíž se musí oškrábat.) | J27: =Settings!J27 -> Vypsané barvy nejsou jako podklad pro novou barvu vhodné, později by docházelo k oprýskání a loupání nové malby.
B28: =Settings!B28 -> Pokud možno chci ji jen přetřít novou malbou. | J28: =Settings!J28 -> Pokud se malba nachází ve vhodném stavu, je možné provést novou malbu jen jako další vrstvu bez nutnosti škrábání. Poradíme Vám, zda je to u Vás možné.
C30: =Settings!C30 -> Na stěně se nachází nerovnosti, které mi vadí (praskliny, prohlubně, vypoukliny, stěna je "vlnitá", ...).
C31: =Settings!C31 -> Stěna je krásně rovná nebo mi drobné nerovnosti nevadí.
D33: =Settings!D33 -> V jakém je stávající malba stavu?
D34: =Settings!D34 -> Malba se loupe, je oprýskaná nebo tvoří boule.
D35: =Settings!D35 -> Malba se jeví na pohled v pořádku.
E37: =Settings!E37 -> Test: Vyzkoušejte následující testy a zaškrtněte pravdivé.
E38: =Settings!E38 -> Pokud po stěně přejedu silnějším tlakem rukou, barva se mi na ruku otře.
E39: =Settings!E39 -> Když malbu více namočím, ztmavne a vytvoří mazlavou skvrnu, po stírání palcem krouživými pohyby na palci ulpí mazlavá hmota.
E40: =Settings!E40 -> Po přilepení kusu lepící pásky pevně na stěnu a následném strhnutí na pásce ulpí větší částice.
E41: =Settings!E41 -> Po provedení testů se nestalo nic z výše uvedeného.
B43: =Settings!B43 -> Tapety
B44: =Settings!B44 -> Tapety chci strhnout.
B45: =Settings!B45 -> Pokud možno, chci je jen přetřít novou malbou.
C47: =Settings!C47 -> Na stěně se nachází nerovnosti, které mi vadí (praskliny, prohlubně, vypoukliny, stěna je "vlnitá", ...).
C48: =Settings!C48 -> Stěna je krásně rovná nebo mi drobné nerovnosti nevadí.
D50: =Settings!D50 -> V jakém je stávající tapeta stavu?
D51: =Settings!D51 -> Tapety se odlupují a/nebo tvoří boule.
D52: =Settings!D52 -> Tapety jsou naprosto v pořádku, nikde se neodlupují, netvoří boule, pevně drží na svém podkladu.
E54: =Settings!E54 -> Na tapetách se žádná malba nenachází.
E55: =Settings!E55 -> Na tapetách se nachází malba.
F57: =Settings!F57 -> Test: Vyzkoušejte následující testy a zaškrtněte pravdivé.
F58: =Settings!F58 -> Pokud po stěně přejedu silnějším tlakem rukou, barva se mi na ruku otře.
F59: =Settings!F59 -> Když malbu více namočím, ztmavne a vytvoří mazlavou skvrnu, po stírání palcem krouživými pohyby na palci ulpí mazlavá hmota.
F60: =Settings!F60 -> Po přilepení kusu lepící pásky pevně na stěnu a následném strhnutí na pásce ulpí větší částice.
F61: =Settings!F61 -> Po provedení testů se nestalo nic z výše uvedeného.
B63: =Settings!B63 -> Nová omítka
B64: =Settings!B64 -> Chci opravit omítku. | J64: =Settings!J64 -> m2
C66: =Settings!C66 -> Stávající omítka je v nepoužitelném stavu, drolí se a opadává.
C67: =Settings!C67 -> Omítka má jen drobné nerovnosti (praskliny, prohlubně, vypoukliny, stěna je "vlnitá", ...).
B69: =Settings!B69 -> Chci malovat na již hotovou novou omítku. | J69: =Settings!J69 -> m2
C71: =Settings!C71 -> Omítka je oprýskaná, odlupuje se, opadává.
C72: =Settings!C72 -> Omítka má jen drobné nerovnosti, které mi vadí (drobné vypoukliny, či prohlubně, drobné rýhy).
C73: =Settings!C73 -> Omítka je naprosto v pořádku, nikde se neodlupuje, neopadává, pevně drží na svém podkladu a nemá žádné nerovnosti, popř. mi nevadí.
A75: =Settings!A75 -> Vyskytují se v místě nové malby plísně?
B76: =Settings!B76 -> Ano, vyskytují v přibližné ploše. | F76: =Settings!F76 -> V přibližné ploše | I76: =Settings!I76 -> m2
B77: =Settings!B77 -> Ne, nevyskytují.
A79: =Settings!A79 -> Nová malba:
A80: =Settings!A80 -> Místnost: (1) ….
A81: =Settings!A81 -> Jakou bude mít malba podobu?
B82: =Settings!B82 -> Chci, aby výsledný vzhled byl hladký bez jakýchkoli vzorů.
B83: =Settings!B83 -> Chci, aby výsledný vzhled byl strukturovaný (se vzorem) a proto bude pod malbou tapeta.
C84: =Settings!C84 -> bez | E84: =Settings!E84 -> m2
C85: =Settings!C85 -> tapeta | E85: =Settings!E85 -> m2
A87: =Settings!A87 -> Jakou barvu?
B88: =Settings!B88 -> Nemám žádné nároky, stačí mi běžná interiérová barva.
C90: =Settings!C90 -> bílá | E90: =Settings!E90 -> m2
C91: =Settings!C91 -> barevná | E91: =Settings!E91 -> m2
B93: =Settings!B93 -> Mám vyšší nároky na otěruodolný nebo omyvatelný povrch.
C95: =Settings!C95 -> bílá | E95: =Settings!E95 -> m2
C96: =Settings!C96 -> barevná | E96: =Settings!E96 -> m2
A99: =Settings!A99 -> Závěr:
A100: =Settings!A100 -> Na závěr už bychom Vás jen rádi požádali o e-mail, abychom Vám mohli zaslat celou kalkulaci v digitální podobě.
A101: =Settings!A101 -> e-mail:

Sheet Room02 (hidden)
A1: =Settings!A1 -> Úvod:
A2: =Settings!A2 -> Chápeme, že ne všechny práce chcete svěřit profesionálům, ať už kvůli ceně nebo z jiných důvodů, přesto vše vyplňte. Řekneme Vám, kolik by Vás práce stála od profesionálů a Vy sami se potom můžete na základě ceny rozhodnout, zda si zvolíte práci profesionála či si některou činnost zkusíte sami. Rádi bychom Vás také informovali o tom, že výsledky této kalkulace předpokládají běžné bytové (i rodinné domy) podmínky, tedy pokud plánujete výmalbu atypických, sklepních, vlhkých či jinak nestandardních prostor, doporučujeme návštěvu profesionála ke konzultaci.
A4: =Settings!A4 -> Kolik místností plánujete malovat?
A6: =Settings!A6 -> Základní rozměry:
A7: =Settings!A7 -> Název místnosti:
A9: =Settings!A9 -> Jelikož malování je věc rozměrová, potřebujeme znát několik málo čísel.
A10: =Settings!A10 -> Jakou plochu stěn plánujete malovat (vč. otvorů)? | G10: =Settings!G10 -> m2 | J10: =Settings!J10 -> Neodečítejte plochy otvorů jako jsou např. okna a dveře. Pozor!, ať sem nezapočtete místa, která malovat nechcete nebo nemůžete, např. za vestavěným nábytkem nebo v místě, kde máte keramické či jiné obklady a chcete je tam ponechat.
A11: =Settings!A11 -> Jaká je podlahová plocha místnosti? | G11: =Settings!G11 -> m2 | J11: =Settings!J11 -> Tip: Pokud má místnost složitější tvar, zkuste si jej rozdělit na pomyslné obdélníky a ty vzájemně odečtěte či přičtěte.
A12: =Settings!A12 -> Jaká je plocha otvorů a jiných nemalovaných ploch? | G12: =Settings!G12 -> m2 | J12: =Settings!J12 -> Okna, dveře, dvířka k revizní šachtě apod. plochy.
A13: =Settings!A13 -> Jaká je výška místnosti? | G13: =Settings!G13 -> m | J13: =Settings!J13 -> Ostatní potřebné míry dopočteme za Vás.
A15: =Settings!A15 -> Podklad:
A16: =Settings!A16 -> Místnost: (1) ….
A17: =Settings!A17 -> Abychom Vám mohli poradit s postupem, potřebujeme vědět, jaký je stávající podklad v místě plánované malby.
A18: =Settings!A18 -> V místě plánované malby se právě nachází:
B19: =Settings!B19 -> keramický nebo jiný obklad | F19: =Settings!F19 -> m2
B20: =Settings!B20 -> stará malba | F20: =Settings!F20 -> m2
B21: =Settings!B21 -> tapety | F21: =Settings!F21 -> m2
B22: =Settings!B22 -> nová omítka | F22: =Settings!F22 -> m2
B23: =Settings!B23 -> nová SDK deska | F23: m2
B24: =Settings!B24 -> hrubá konstrukce | F24: =Settings!F24 -> m2
B26: =Settings!B26 -> Malba
B27: =Settings!B27 -> Chci malbu oškrábat. (Nebo vím, že stávající malba je vápenná/latexová/klihová, a tudíž se musí oškrábat.) | J27: =Settings!J27 -> Vypsané barvy nejsou jako podklad pro novou barvu vhodné, později by docházelo k oprýskání a loupání nové malby.
B28: =Settings!B28 -> Pokud možno chci ji jen přetřít novou malbou. | J28: =Settings!J28 -> Pokud se malba nachází ve vhodném stavu, je možné provést novou malbu jen jako další vrstvu bez nutnosti škrábání. Poradíme Vám, zda je to u Vás možné.
C30: =Settings!C30 -> Na stěně se nachází nerovnosti, které mi vadí (praskliny, prohlubně, vypoukliny, stěna je "vlnitá", ...).
C31: =Settings!C31 -> Stěna je krásně rovná nebo mi drobné nerovnosti nevadí.
D33: =Settings!D33 -> V jakém je stávající malba stavu?
D34: =Settings!D34 -> Malba se loupe, je oprýskaná nebo tvoří boule.
D35: =Settings!D35 -> Malba se jeví na pohled v pořádku.
E37: =Settings!E37 -> Test: Vyzkoušejte následující testy a zaškrtněte pravdivé.
E38: =Settings!E38 -> Pokud po stěně přejedu silnějším tlakem rukou, barva se mi na ruku otře.
E39: =Settings!E39 -> Když malbu více namočím, ztmavne a vytvoří mazlavou skvrnu, po stírání palcem krouživými pohyby na palci ulpí mazlavá hmota.
E40: =Settings!E40 -> Po přilepení kusu lepící pásky pevně na stěnu a následném strhnutí na pásce ulpí větší částice.
E41: =Settings!E41 -> Po provedení testů se nestalo nic z výše uvedeného.
B43: =Settings!B43 -> Tapety
B44: =Settings!B44 -> Tapety chci strhnout.
B45: =Settings!B45 -> Pokud možno, chci je jen přetřít novou malbou.
C47: =Settings!C47 -> Na stěně se nachází nerovnosti, které mi vadí (praskliny, prohlubně, vypoukliny, stěna je "vlnitá", ...).
C48: =Settings!C48 -> Stěna je krásně rovná nebo mi drobné nerovnosti nevadí.
D50: =Settings!D50 -> V jakém je stávající tapeta stavu?
D51: =Settings!D51 -> Tapety se odlupují a/nebo tvoří boule.
D52: =Settings!D52 -> Tapety jsou naprosto v pořádku, nikde se neodlupují, netvoří boule, pevně drží na svém podkladu.
E54: =Settings!E54 -> Na tapetách se žádná malba nenachází.
E55: =Settings!E55 -> Na tapetách se nachází malba.
F57: =Settings!F57 -> Test: Vyzkoušejte následující testy a zaškrtněte pravdivé.
F58: =Settings!F58 -> Pokud po stěně přejedu silnějším tlakem rukou, barva se mi na ruku otře.
F59: =Settings!F59 -> Když malbu více namočím, ztmavne a vytvoří mazlavou skvrnu, po stírání palcem krouživými pohyby na palci ulpí mazlavá hmota.
F60: =Settings!F60 -> Po přilepení kusu lepící pásky pevně na stěnu a následném strhnutí na pásce ulpí větší částice.
F61: =Settings!F61 -> Po provedení testů se nestalo nic z výše uvedeného.
B63: =Settings!B63 -> Nová omítka
B64: =Settings!B64 -> Chci opravit omítku. | J64: =Settings!J64 -> m2
C66: =Settings!C66 -> Stávající omítka je v nepoužitelném stavu, drolí se a opadává.
C67: =Settings!C67 -> Omítka má jen drobné nerovnosti (praskliny, prohlubně, vypoukliny, stěna je "vlnitá", ...).
B69: =Settings!B69 -> Chci malovat na již hotovou novou omítku. | J69: =Settings!J69 -> m2
C71: =Settings!C71 -> Omítka je oprýskaná, odlupuje se, opadává.
C72: =Settings!C72 -> Omítka má jen drobné nerovnosti, které mi vadí (drobné vypoukliny, či prohlubně, drobné rýhy).
C73: =Settings!C73 -> Omítka je naprosto v pořádku, nikde se neodlupuje, neopadává, pevně drží na svém podkladu a nemá žádné nerovnosti, popř. mi nevadí.
A75: =Settings!A75 -> Vyskytují se v místě nové malby plísně?
B76: =Settings!B76 -> Ano, vyskytují v přibližné ploše. | F76: =Settings!F76 -> V přibližné ploše | I76: =Settings!I76 -> m2
B77: =Settings!B77 -> Ne, nevyskytují.
A79: =Settings!A79 -> Nová malba:
A80: =Settings!A80 -> Místnost: (1) ….
A81: =Settings!A81 -> Jakou bude mít malba podobu?
B82: =Settings!B82 -> Chci, aby výsledný vzhled byl hladký bez jakýchkoli vzorů.
B83: =Settings!B83 -> Chci, aby výsledný vzhled byl strukturovaný (se vzorem) a proto bude pod malbou tapeta.
C84: =Settings!C84 -> bez | E84: =Settings!E84 -> m2
C85: =Settings!C85 -> tapeta | E85: =Settings!E85 -> m2
A87: =Settings!A87 -> Jakou barvu?
B88: =Settings!B88 -> Nemám žádné nároky, stačí mi běžná interiérová barva.
C90: =Settings!C90 -> bílá | E90: =Settings!E90 -> m2
C91: =Settings!C91 -> barevná | E91: =Settings!E91 -> m2
B93: =Settings!B93 -> Mám vyšší nároky na otěruodolný nebo omyvatelný povrch.
C95: =Settings!C95 -> bílá | E95: =Settings!E95 -> m2
C96: =Settings!C96 -> barevná | E96: =Settings!E96 -> m2
A99: =Settings!A99 -> Závěr:
A100: =Settings!A100 -> Na závěr už bychom Vás jen rádi požádali o e-mail, abychom Vám mohli zaslat celou kalkulaci v digitální podobě.
A101: =Settings!A101 -> e-mail:

Sheet Room03 (hidden)
A1: =Settings!A1 -> Úvod:
A2: =Settings!A2 -> Chápeme, že ne všechny práce chcete svěřit profesionálům, ať už kvůli ceně nebo z jiných důvodů, přesto vše vyplňte. Řekneme Vám, kolik by Vás práce stála od profesionálů a Vy sami se potom můžete na základě ceny rozhodnout, zda si zvolíte práci profesionála či si některou činnost zkusíte sami. Rádi bychom Vás také informovali o tom, že výsledky této kalkulace předpokládají běžné bytové (i rodinné domy) podmínky, tedy pokud plánujete výmalbu atypických, sklepních, vlhkých či jinak nestandardních prostor, doporučujeme návštěvu profesionála ke konzultaci.
A4: =Settings!A4 -> Kolik místností plánujete malovat?
A6: =Settings!A6 -> Základní rozměry:
A7: =Settings!A7 -> Název místnosti:
A9: =Settings!A9 -> Jelikož malování je věc rozměrová, potřebujeme znát několik málo čísel.
A10: =Settings!A10 -> Jakou plochu stěn plánujete malovat (vč. otvorů)? | G10: =Settings!G10 -> m2 | J10: =Settings!J10 -> Neodečítejte plochy otvorů jako jsou např. okna a dveře. Pozor!, ať sem nezapočtete místa, která malovat nechcete nebo nemůžete, např. za vestavěným nábytkem nebo v místě, kde máte keramické či jiné obklady a chcete je tam ponechat.
A11: =Settings!A11 -> Jaká je podlahová plocha místnosti? | G11: =Settings!G11 -> m2 | J11: =Settings!J11 -> Tip: Pokud má místnost složitější tvar, zkuste si jej rozdělit na pomyslné obdélníky a ty vzájemně odečtěte či přičtěte.
A12: =Settings!A12 -> Jaká je plocha otvorů a jiných nemalovaných ploch? | G12: =Settings!G12 -> m2 | J12: =Settings!J12 -> Okna, dveře, dvířka k revizní šachtě apod. plochy.
A13: =Settings!A13 -> Jaká je výška místnosti? | G13: =Settings!G13 -> m | J13: =Settings!J13 -> Ostatní potřebné míry dopočteme za Vás.
A15: =Settings!A15 -> Podklad:
A16: =Settings!A16 -> Místnost: (1) ….
A17: =Settings!A17 -> Abychom Vám mohli poradit s postupem, potřebujeme vědět, jaký je stávající podklad v místě plánované malby.
A18: =Settings!A18 -> V místě plánované malby se právě nachází:
B19: =Settings!B19 -> keramický nebo jiný obklad | F19: =Settings!F19 -> m2
B20: =Settings!B20 -> stará malba | F20: =Settings!F20 -> m2
B21: =Settings!B21 -> tapety | F21: =Settings!F21 -> m2
B22: =Settings!B22 -> nová omítka | F22: =Settings!F22 -> m2
B23: =Settings!B23 -> nová SDK deska | F23: m2
B24: =Settings!B24 -> hrubá konstrukce | F24: =Settings!F24 -> m2
B26: =Settings!B26 -> Malba
B27: =Settings!B27 -> Chci malbu oškrábat. (Nebo vím, že stávající malba je vápenná/latexová/klihová, a tudíž se musí oškrábat.) | J27: =Settings!J27 -> Vypsané barvy nejsou jako podklad pro novou barvu vhodné, později by docházelo k oprýskání a loupání nové malby.
B28: =Settings!B28 -> Pokud možno chci ji jen přetřít novou malbou. | J28: =Settings!J28 -> Pokud se malba nachází ve vhodném stavu, je možné provést novou malbu jen jako další vrstvu bez nutnosti škrábání. Poradíme Vám, zda je to u Vás možné.
C30: =Settings!C30 -> Na stěně se nachází nerovnosti, které mi vadí (praskliny, prohlubně, vypoukliny, stěna je "vlnitá", ...).
C31: =Settings!C31 -> Stěna je krásně rovná nebo mi drobné nerovnosti nevadí.
D33: =Settings!D33 -> V jakém je stávající malba stavu?
D34: =Settings!D34 -> Malba se loupe, je oprýskaná nebo tvoří boule.
D35: =Settings!D35 -> Malba se jeví na pohled v pořádku.
E37: =Settings!E37 -> Test: Vyzkoušejte následující testy a zaškrtněte pravdivé.
E38: =Settings!E38 -> Pokud po stěně přejedu silnějším tlakem rukou, barva se mi na ruku otře.
E39: =Settings!E39 -> Když malbu více namočím, ztmavne a vytvoří mazlavou skvrnu, po stírání palcem krouživými pohyby na palci ulpí mazlavá hmota.
E40: =Settings!E40 -> Po přilepení kusu lepící pásky pevně na stěnu a následném strhnutí na pásce ulpí větší částice.
E41: =Settings!E41 -> Po provedení testů se nestalo nic z výše uvedeného.
B43: =Settings!B43 -> Tapety
B44: =Settings!B44 -> Tapety chci strhnout.
B45: =Settings!B45 -> Pokud možno, chci je jen přetřít novou malbou.
C47: =Settings!C47 -> Na stěně se nachází nerovnosti, které mi vadí (praskliny, prohlubně, vypoukliny, stěna je "vlnitá", ...).
C48: =Settings!C48 -> Stěna je krásně rovná nebo mi drobné nerovnosti nevadí.
D50: =Settings!D50 -> V jakém je stávající tapeta stavu?
D51: =Settings!D51 -> Tapety se odlupují a/nebo tvoří boule.
D52: =Settings!D52 -> Tapety jsou naprosto v pořádku, nikde se neodlupují, netvoří boule, pevně drží na svém podkladu.
E54: =Settings!E54 -> Na tapetách se žádná malba nenachází.
E55: =Settings!E55 -> Na tapetách se nachází malba.
F57: =Settings!F57 -> Test: Vyzkoušejte následující testy a zaškrtněte pravdivé.
F58: =Settings!F58 -> Pokud po stěně přejedu silnějším tlakem rukou, barva se mi na ruku otře.
F59: =Settings!F59 -> Když malbu více namočím, ztmavne a vytvoří mazlavou skvrnu, po stírání palcem krouživými pohyby na palci ulpí mazlavá hmota.
F60: =Settings!F60 -> Po přilepení kusu lepící pásky pevně na stěnu a následném strhnutí na pásce ulpí větší částice.
F61: =Settings!F61 -> Po provedení testů se nestalo nic z výše uvedeného.
B63: =Settings!B63 -> Nová omítka
B64: =Settings!B64 -> Chci opravit omítku. | J64: =Settings!J64 -> m2
C66: =Settings!C66 -> Stávající omítka je v nepoužitelném stavu, drolí se a opadává.
C67: =Settings!C67 -> Omítka má jen drobné nerovnosti (praskliny, prohlubně, vypoukliny, stěna je "vlnitá", ...).
B69: =Settings!B69 -> Chci malovat na již hotovou novou omítku. | J69: =Settings!J69 -> m2
C71: =Settings!C71 -> Omítka je oprýskaná, odlupuje se, opadává.
C72: =Settings!C72 -> Omítka má jen drobné nerovnosti, které mi vadí (drobné vypoukliny, či prohlubně, drobné rýhy).
C73: =Settings!C73 -> Omítka je naprosto v pořádku, nikde se neodlupuje, neopadává, pevně drží na svém podkladu a nemá žádné nerovnosti, popř. mi nevadí.
A75: =Settings!A75 -> Vyskytují se v místě nové malby plísně?
B76: =Settings!B76 -> Ano, vyskytují v přibližné ploše. | F76: =Settings!F76 -> V přibližné ploše | I76: =Settings!I76 -> m2
B77: =Settings!B77 -> Ne, nevyskytují.
A79: =Settings!A79 -> Nová malba:
A80: =Settings!A80 -> Místnost: (1) ….
A81: =Settings!A81 -> Jakou bude mít malba podobu?
B82: =Settings!B82 -> Chci, aby výsledný vzhled byl hladký bez jakýchkoli vzorů.
B83: =Settings!B83 -> Chci, aby výsledný vzhled byl strukturovaný (se vzorem) a proto bude pod malbou tapeta.
C84: =Settings!C84 -> bez | E84: =Settings!E84 -> m2
C85: =Settings!C85 -> tapeta | E85: =Settings!E85 -> m2
A87: =Settings!A87 -> Jakou barvu?
B88: =Settings!B88 -> Nemám žádné nároky, stačí mi běžná interiérová barva.
C90: =Settings!C90 -> bílá | E90: =Settings!E90 -> m2
C91: =Settings!C91 -> barevná | E91: =Settings!E91 -> m2
B93: =Settings!B93 -> Mám vyšší nároky na otěruodolný nebo omyvatelný povrch.
C95: =Settings!C95 -> bílá | E95: =Settings!E95 -> m2
C96: =Settings!C96 -> barevná | E96: =Settings!E96 -> m2
A99: =Settings!A99 -> Závěr:
A100: =Settings!A100 -> Na závěr už bychom Vás jen rádi požádali o e-mail, abychom Vám mohli zaslat celou kalkulaci v digitální podobě.
A101: =Settings!A101 -> e-mail:

Sheet Room04 (hidden)
A1: =Settings!A1 -> Úvod:
A2: =Settings!A2 -> Chápeme, že ne všechny práce chcete svěřit profesionálům, ať už kvůli ceně nebo z jiných důvodů, přesto vše vyplňte. Řekneme Vám, kolik by Vás práce stála od profesionálů a Vy sami se potom můžete na základě ceny rozhodnout, zda si zvolíte práci profesionála či si některou činnost zkusíte sami. Rádi bychom Vás také informovali o tom, že výsledky této kalkulace předpokládají běžné bytové (i rodinné domy) podmínky, tedy pokud plánujete výmalbu atypických, sklepních, vlhkých či jinak nestandardních prostor, doporučujeme návštěvu profesionála ke konzultaci.
A4: =Settings!A4 -> Kolik místností plánujete malovat?
A6: =Settings!A6 -> Základní rozměry:
A7: =Settings!A7 -> Název místnosti:
A9: =Settings!A9 -> Jelikož malování je věc rozměrová, potřebujeme znát několik málo čísel.
A10: =Settings!A10 -> Jakou plochu stěn plánujete malovat (vč. otvorů)? | G10: =Settings!G10 -> m2 | J10: =Settings!J10 -> Neodečítejte plochy otvorů jako jsou např. okna a dveře. Pozor!, ať sem nezapočtete místa, která malovat nechcete nebo nemůžete, např. za vestavěným nábytkem nebo v místě, kde máte keramické či jiné obklady a chcete je tam ponechat.
A11: =Settings!A11 -> Jaká je podlahová plocha místnosti? | G11: =Settings!G11 -> m2 | J11: =Settings!J11 -> Tip: Pokud má místnost složitější tvar, zkuste si jej rozdělit na pomyslné obdélníky a ty vzájemně odečtěte či přičtěte.
A12: =Settings!A12 -> Jaká je plocha otvorů a jiných nemalovaných ploch? | G12: =Settings!G12 -> m2 | J12: =Settings!J12 -> Okna, dveře, dvířka k revizní šachtě apod. plochy.
A13: =Settings!A13 -> Jaká je výška místnosti? | G13: =Settings!G13 -> m | J13: =Settings!J13 -> Ostatní potřebné míry dopočteme za Vás.
A15: =Settings!A15 -> Podklad:
A16: =Settings!A16 -> Místnost: (1) ….
A17: =Settings!A17 -> Abychom Vám mohli poradit s postupem, potřebujeme vědět, jaký je stávající podklad v místě plánované malby.
A18: =Settings!A18 -> V místě plánované malby se právě nachází:
B19: =Settings!B19 -> keramický nebo jiný obklad | F19: =Settings!F19 -> m2
B20: =Settings!B20 -> stará malba | F20: =Settings!F20 -> m2
B21: =Settings!B21 -> tapety | F21: =Settings!F21 -> m2
B22: =Settings!B22 -> nová omítka | F22: =Settings!F22 -> m2
B23: =Settings!B23 -> nová SDK deska | F23: m2
B24: =Settings!B24 -> hrubá konstrukce | F24: =Settings!F24 -> m2
B26: =Settings!B26 -> Malba
B27: =Settings!B27 -> Chci malbu oškrábat. (Nebo vím, že stávající malba je vápenná/latexová/klihová, a tudíž se musí oškrábat.) | J27: =Settings!J27 -> Vypsané barvy nejsou jako podklad pro novou barvu vhodné, později by docházelo k oprýskání a loupání nové malby.
B28: =Settings!B28 -> Pokud možno chci ji jen přetřít novou malbou. | J28: =Settings!J28 -> Pokud se malba nachází ve vhodném stavu, je možné provést novou malbu jen jako další vrstvu bez nutnosti škrábání. Poradíme Vám, zda je to u Vás možné.
C30: =Settings!C30 -> Na stěně se nachází nerovnosti, které mi vadí (praskliny, prohlubně, vypoukliny, stěna je "vlnitá", ...).
C31: =Settings!C31 -> Stěna je krásně rovná nebo mi drobné nerovnosti nevadí.
D33: =Settings!D33 -> V jakém je stávající malba stavu?
D34: =Settings!D34 -> Malba se loupe, je oprýskaná nebo tvoří boule.
D35: =Settings!D35 -> Malba se jeví na pohled v pořádku.
E37: =Settings!E37 -> Test: Vyzkoušejte následující testy a zaškrtněte pravdivé.
E38: =Settings!E38 -> Pokud po stěně přejedu silnějším tlakem rukou, barva se mi na ruku otře.
E39: =Settings!E39 -> Když malbu více namočím, ztmavne a vytvoří mazlavou skvrnu, po stírání palcem krouživými pohyby na palci ulpí mazlavá hmota.
E40: =Settings!E40 -> Po přilepení kusu lepící pásky pevně na stěnu a následném strhnutí na pásce ulpí větší částice.
E41: =Settings!E41 -> Po provedení testů se nestalo nic z výše uvedeného.
B43: =Settings!B43 -> Tapety
B44: =Settings!B44 -> Tapety chci strhnout.
B45: =Settings!B45 -> Pokud možno, chci je jen přetřít novou malbou.
C47: =Settings!C47 -> Na stěně se nachází nerovnosti, které mi vadí (praskliny, prohlubně, vypoukliny, stěna je "vlnitá", ...).
C48: =Settings!C48 -> Stěna je krásně rovná nebo mi drobné nerovnosti nevadí.
D50: =Settings!D50 -> V jakém je stávající tapeta stavu?
D51: =Settings!D51 -> Tapety se odlupují a/nebo tvoří boule.
D52: =Settings!D52 -> Tapety jsou naprosto v pořádku, nikde se neodlupují, netvoří boule, pevně drží na svém podkladu.
E54: =Settings!E54 -> Na tapetách se žádná malba nenachází.
E55: =Settings!E55 -> Na tapetách se nachází malba.
F57: =Settings!F57 -> Test: Vyzkoušejte následující testy a zaškrtněte pravdivé.
F58: =Settings!F58 -> Pokud po stěně přejedu silnějším tlakem rukou, barva se mi na ruku otře.
F59: =Settings!F59 -> Když malbu více namočím, ztmavne a vytvoří mazlavou skvrnu, po stírání palcem krouživými pohyby na palci ulpí mazlavá hmota.
F60: =Settings!F60 -> Po přilepení kusu lepící pásky pevně na stěnu a následném strhnutí na pásce ulpí větší částice.
F61: =Settings!F61 -> Po provedení testů se nestalo nic z výše uvedeného.
B63: =Settings!B63 -> Nová omítka
B64: =Settings!B64 -> Chci opravit omítku. | J64: =Settings!J64 -> m2
C66: =Settings!C66 -> Stávající omítka je v nepoužitelném stavu, drolí se a opadává.
C67: =Settings!C67 -> Omítka má jen drobné nerovnosti (praskliny, prohlubně, vypoukliny, stěna je "vlnitá", ...).
B69: =Settings!B69 -> Chci malovat na již hotovou novou omítku. | J69: =Settings!J69 -> m2
C71: =Settings!C71 -> Omítka je oprýskaná, odlupuje se, opadává.
C72: =Settings!C72 -> Omítka má jen drobné nerovnosti, které mi vadí (drobné vypoukliny, či prohlubně, drobné rýhy).
C73: =Settings!C73 -> Omítka je naprosto v pořádku, nikde se neodlupuje, neopadává, pevně drží na svém podkladu a nemá žádné nerovnosti, popř. mi nevadí.
A75: =Settings!A75 -> Vyskytují se v místě nové malby plísně?
B76: =Settings!B76 -> Ano, vyskytují v přibližné ploše. | F76: =Settings!F76 -> V přibližné ploše | I76: =Settings!I76 -> m2
B77: =Settings!B77 -> Ne, nevyskytují.
A79: =Settings!A79 -> Nová malba:
A80: =Settings!A80 -> Místnost: (1) ….
A81: =Settings!A81 -> Jakou bude mít malba podobu?
B82: =Settings!B82 -> Chci, aby výsledný vzhled byl hladký bez jakýchkoli vzorů.
B83: =Settings!B83 -> Chci, aby výsledný vzhled byl strukturovaný (se vzorem) a proto bude pod malbou tapeta.
C84: =Settings!C84 -> bez | E84: =Settings!E84 -> m2
C85: =Settings!C85 -> tapeta | E85: =Settings!E85 -> m2
A87: =Settings!A87 -> Jakou barvu?
B88: =Settings!B88 -> Nemám žádné nároky, stačí mi běžná interiérová barva.
C90: =Settings!C90 -> bílá | E90: =Settings!E90 -> m2
C91: =Settings!C91 -> barevná | E91: =Settings!E91 -> m2
B93: =Settings!B93 -> Mám vyšší nároky na otěruodolný nebo omyvatelný povrch.
C95: =Settings!C95 -> bílá | E95: =Settings!E95 -> m2
C96: =Settings!C96 -> barevná | E96: =Settings!E96 -> m2
A99: =Settings!A99 -> Závěr:
A100: =Settings!A100 -> Na závěr už bychom Vás jen rádi požádali o e-mail, abychom Vám mohli zaslat celou kalkulaci v digitální podobě.
A101: =Settings!A101 -> e-mail:

Sheet Room05 (hidden)
A1: =Settings!A1 -> Úvod:
A2: =Settings!A2 -> Chápeme, že ne všechny práce chcete svěřit profesionálům, ať už kvůli ceně nebo z jiných důvodů, přesto vše vyplňte. Řekneme Vám, kolik by Vás práce stála od profesionálů a Vy sami se potom můžete na základě ceny rozhodnout, zda si zvolíte práci profesionála či si některou činnost zkusíte sami. Rádi bychom Vás také informovali o tom, že výsledky této kalkulace předpokládají běžné bytové (i rodinné domy) podmínky, tedy pokud plánujete výmalbu atypických, sklepních, vlhkých či jinak nestandardních prostor, doporučujeme návštěvu profesionála ke konzultaci.
A4: =Settings!A4 -> Kolik místností plánujete malovat?
A6: =Settings!A6 -> Základní rozměry:
A7: =Settings!A7 -> Název místnosti:
A9: =Settings!A9 -> Jelikož malování je věc rozměrová, potřebujeme znát několik málo čísel.
A10: =Settings!A10 -> Jakou plochu stěn plánujete malovat (vč. otvorů)? | G10: =Settings!G10 -> m2 | J10: =Settings!J10 -> Neodečítejte plochy otvorů jako jsou např. okna a dveře. Pozor!, ať sem nezapočtete místa, která malovat nechcete nebo nemůžete, např. za vestavěným nábytkem nebo v místě, kde máte keramické či jiné obklady a chcete je tam ponechat.
A11: =Settings!A11 -> Jaká je podlahová plocha místnosti? | G11: =Settings!G11 -> m2 | J11: =Settings!J11 -> Tip: Pokud má místnost složitější tvar, zkuste si jej rozdělit na pomyslné obdélníky a ty vzájemně odečtěte či přičtěte.
A12: =Settings!A12 -> Jaká je plocha otvorů a jiných nemalovaných ploch? | G12: =Settings!G12 -> m2 | J12: =Settings!J12 -> Okna, dveře, dvířka k revizní šachtě apod. plochy.
A13: =Settings!A13 -> Jaká je výška místnosti? | G13: =Settings!G13 -> m | J13: =Settings!J13 -> Ostatní potřebné míry dopočteme za Vás.
A15: =Settings!A15 -> Podklad:
A16: =Settings!A16 -> Místnost: (1) ….
A17: =Settings!A17 -> Abychom Vám mohli poradit s postupem, potřebujeme vědět, jaký je stávající podklad v místě plánované malby.
A18: =Settings!A18 -> V místě plánované malby se právě nachází:
B19: =Settings!B19 -> keramický nebo jiný obklad | F19: =Settings!F19 -> m2
B20: =Settings!B20 -> stará malba | F20: =Settings!F20 -> m2
B21: =Settings!B21 -> tapety | F21: =Settings!F21 -> m2
B22: =Settings!B22 -> nová omítka | F22: =Settings!F22 -> m2
B23: =Settings!B23 -> nová SDK deska | F23: m2
B24: =Settings!B24 -> hrubá konstrukce | F24: =Settings!F24 -> m2
B26: =Settings!B26 -> Malba
B27: =Settings!B27 -> Chci malbu oškrábat. (Nebo vím, že stávající malba je vápenná/latexová/klihová, a tudíž se musí oškrábat.) | J27: =Settings!J27 -> Vypsané barvy nejsou jako podklad pro novou barvu vhodné, později by docházelo k oprýskání a loupání nové malby.
B28: =Settings!B28 -> Pokud možno chci ji jen přetřít novou malbou. | J28: =Settings!J28 -> Pokud se malba nachází ve vhodném stavu, je možné provést novou malbu jen jako další vrstvu bez nutnosti škrábání. Poradíme Vám, zda je to u Vás možné.
C30: =Settings!C30 -> Na stěně se nachází nerovnosti, které mi vadí (praskliny, prohlubně, vypoukliny, stěna je "vlnitá", ...).
C31: =Settings!C31 -> Stěna je krásně rovná nebo mi drobné nerovnosti nevadí.
D33: =Settings!D33 -> V jakém je stávající malba stavu?
D34: =Settings!D34 -> Malba se loupe, je oprýskaná nebo tvoří boule.
D35: =Settings!D35 -> Malba se jeví na pohled v pořádku.
E37: =Settings!E37 -> Test: Vyzkoušejte následující testy a zaškrtněte pravdivé.
E38: =Settings!E38 -> Pokud po stěně přejedu silnějším tlakem rukou, barva se mi na ruku otře.
E39: =Settings!E39 -> Když malbu více namočím, ztmavne a vytvoří mazlavou skvrnu, po stírání palcem krouživými pohyby na palci ulpí mazlavá hmota.
E40: =Settings!E40 -> Po přilepení kusu lepící pásky pevně na stěnu a následném strhnutí na pásce ulpí větší částice.
E41: =Settings!E41 -> Po provedení testů se nestalo nic z výše uvedeného.
B43: =Settings!B43 -> Tapety
B44: =Settings!B44 -> Tapety chci strhnout.
B45: =Settings!B45 -> Pokud možno, chci je jen přetřít novou malbou.
C47: =Settings!C47 -> Na stěně se nachází nerovnosti, které mi vadí (praskliny, prohlubně, vypoukliny, stěna je "vlnitá", ...).
C48: =Settings!C48 -> Stěna je krásně rovná nebo mi drobné nerovnosti nevadí.
D50: =Settings!D50 -> V jakém je stávající tapeta stavu?
D51: =Settings!D51 -> Tapety se odlupují a/nebo tvoří boule.
D52: =Settings!D52 -> Tapety jsou naprosto v pořádku, nikde se neodlupují, netvoří boule, pevně drží na svém podkladu.
E54: =Settings!E54 -> Na tapetách se žádná malba nenachází.
E55: =Settings!E55 -> Na tapetách se nachází malba.
F57: =Settings!F57 -> Test: Vyzkoušejte následující testy a zaškrtněte pravdivé.
F58: =Settings!F58 -> Pokud po stěně přejedu silnějším tlakem rukou, barva se mi na ruku otře.
F59: =Settings!F59 -> Když malbu více namočím, ztmavne a vytvoří mazlavou skvrnu, po stírání palcem krouživými pohyby na palci ulpí mazlavá hmota.
F60: =Settings!F60 -> Po přilepení kusu lepící pásky pevně na stěnu a následném strhnutí na pásce ulpí větší částice.
F61: =Settings!F61 -> Po provedení testů se nestalo nic z výše uvedeného.
B63: =Settings!B63 -> Nová omítka
B64: =Settings!B64 -> Chci opravit omítku. | J64: =Settings!J64 -> m2
C66: =Settings!C66 -> Stávající omítka je v nepoužitelném stavu, drolí se a opadává.
C67: =Settings!C67 -> Omítka má jen drobné nerovnosti (praskliny, prohlubně, vypoukliny, stěna je "vlnitá", ...).
B69: =Settings!B69 -> Chci malovat na již hotovou novou omítku. | J69: =Settings!J69 -> m2
C71: =Settings!C71 -> Omítka je oprýskaná, odlupuje se, opadává.
C72: =Settings!C72 -> Omítka má jen drobné nerovnosti, které mi vadí (drobné vypoukliny, či prohlubně, drobné rýhy).
C73: =Settings!C73 -> Omítka je naprosto v pořádku, nikde se neodlupuje, neopadává, pevně drží na svém podkladu a nemá žádné nerovnosti, popř. mi nevadí.
A75: =Settings!A75 -> Vyskytují se v místě nové malby plísně?
B76: =Settings!B76 -> Ano, vyskytují v přibližné ploše. | F76: =Settings!F76 -> V přibližné ploše | I76: =Settings!I76 -> m2
B77: =Settings!B77 -> Ne, nevyskytují.
A79: =Settings!A79 -> Nová malba:
A80: =Settings!A80 -> Místnost: (1) ….
A81: =Settings!A81 -> Jakou bude mít malba podobu?
B82: =Settings!B82 -> Chci, aby výsledný vzhled byl hladký bez jakýchkoli vzorů.
B83: =Settings!B83 -> Chci, aby výsledný vzhled byl strukturovaný (se vzorem) a proto bude pod malbou tapeta.
C84: =Settings!C84 -> bez | E84: =Settings!E84 -> m2
C85: =Settings!C85 -> tapeta | E85: =Settings!E85 -> m2
A87: =Settings!A87 -> Jakou barvu?
B88: =Settings!B88 -> Nemám žádné nároky, stačí mi běžná interiérová barva.
C90: =Settings!C90 -> bílá | E90: =Settings!E90 -> m2
C91: =Settings!C91 -> barevná | E91: =Settings!E91 -> m2
B93: =Settings!B93 -> Mám vyšší nároky na otěruodolný nebo omyvatelný povrch.
C95: =Settings!C95 -> bílá | E95: =Settings!E95 -> m2
C96: =Settings!C96 -> barevná | E96: =Settings!E96 -> m2
A99: =Settings!A99 -> Závěr:
A100: =Settings!A100 -> Na závěr už bychom Vás jen rádi požádali o e-mail, abychom Vám mohli zaslat celou kalkulaci v digitální podobě.
A101: =Settings!A101 -> e-mail:

Sheet Room06 (hidden)
A1: =Settings!A1 -> Úvod:
A2: =Settings!A2 -> Chápeme, že ne všechny práce chcete svěřit profesionálům, ať už kvůli ceně nebo z jiných důvodů, přesto vše vyplňte. Řekneme Vám, kolik by Vás práce stála od profesionálů a Vy sami se potom můžete na základě ceny rozhodnout, zda si zvolíte práci profesionála či si některou činnost zkusíte sami. Rádi bychom Vás také informovali o tom, že výsledky této kalkulace předpokládají běžné bytové (i rodinné domy) podmínky, tedy pokud plánujete výmalbu atypických, sklepních, vlhkých či jinak nestandardních prostor, doporučujeme návštěvu profesionála ke konzultaci.
A4: =Settings!A4 -> Kolik místností plánujete malovat?
A6: =Settings!A6 -> Základní rozměry:
A7: =Settings!A7 -> Název místnosti:
A9: =Settings!A9 -> Jelikož malování je věc rozměrová, potřebujeme znát několik málo čísel.
A10: =Settings!A10 -> Jakou plochu stěn plánujete malovat (vč. otvorů)? | G10: =Settings!G10 -> m2 | J10: =Settings!J10 -> Neodečítejte plochy otvorů jako jsou např. okna a dveře. Pozor!, ať sem nezapočtete místa, která malovat nechcete nebo nemůžete, např. za vestavěným nábytkem nebo v místě, kde máte keramické či jiné obklady a chcete je tam ponechat.
A11: =Settings!A11 -> Jaká je podlahová plocha místnosti? | G11: =Settings!G11 -> m2 | J11: =Settings!J11 -> Tip: Pokud má místnost složitější tvar, zkuste si jej rozdělit na pomyslné obdélníky a ty vzájemně odečtěte či přičtěte.
A12: =Settings!A12 -> Jaká je plocha otvorů a jiných nemalovaných ploch? | G12: =Settings!G12 -> m2 | J12: =Settings!J12 -> Okna, dveře, dvířka k revizní šachtě apod. plochy.
A13: =Settings!A13 -> Jaká je výška místnosti? | G13: =Settings!G13 -> m | J13: =Settings!J13 -> Ostatní potřebné míry dopočteme za Vás.
A15: =Settings!A15 -> Podklad:
A16: =Settings!A16 -> Místnost: (1) ….
A17: =Settings!A17 -> Abychom Vám mohli poradit s postupem, potřebujeme vědět, jaký je stávající podklad v místě plánované malby.
A18: =Settings!A18 -> V místě plánované malby se právě nachází:
B19: =Settings!B19 -> keramický nebo jiný obklad | F19: =Settings!F19 -> m2
B20: =Settings!B20 -> stará malba | F20: =Settings!F20 -> m2
B21: =Settings!B21 -> tapety | F21: =Settings!F21 -> m2
B22: =Settings!B22 -> nová omítka | F22: =Settings!F22 -> m2
B23: =Settings!B23 -> nová SDK deska | F23: m2
B24: =Settings!B24 -> hrubá konstrukce | F24: =Settings!F24 -> m2
B26: =Settings!B26 -> Malba
B27: =Settings!B27 -> Chci malbu oškrábat. (Nebo vím, že stávající malba je vápenná/latexová/klihová, a tudíž se musí oškrábat.) | J27: =Settings!J27 -> Vypsané barvy nejsou jako podklad pro novou barvu vhodné, později by docházelo k oprýskání a loupání nové malby.
B28: =Settings!B28 -> Pokud možno chci ji jen přetřít novou malbou. | J28: =Settings!J28 -> Pokud se malba nachází ve vhodném stavu, je možné provést novou malbu jen jako další vrstvu bez nutnosti škrábání. Poradíme Vám, zda je to u Vás možné.
C30: =Settings!C30 -> Na stěně se nachází nerovnosti, které mi vadí (praskliny, prohlubně, vypoukliny, stěna je "vlnitá", ...).
C31: =Settings!C31 -> Stěna je krásně rovná nebo mi drobné nerovnosti nevadí.
D33: =Settings!D33 -> V jakém je stávající malba stavu?
D34: =Settings!D34 -> Malba se loupe, je oprýskaná nebo tvoří boule.
D35: =Settings!D35 -> Malba se jeví na pohled v pořádku.
E37: =Settings!E37 -> Test: Vyzkoušejte následující testy a zaškrtněte pravdivé.
E38: =Settings!E38 -> Pokud po stěně přejedu silnějším tlakem rukou, barva se mi na ruku otře.
E39: =Settings!E39 -> Když malbu více namočím, ztmavne a vytvoří mazlavou skvrnu, po stírání palcem krouživými pohyby na palci ulpí mazlavá hmota.
E40: =Settings!E40 -> Po přilepení kusu lepící pásky pevně na stěnu a následném strhnutí na pásce ulpí větší částice.
E41: =Settings!E41 -> Po provedení testů se nestalo nic z výše uvedeného.
B43: =Settings!B43 -> Tapety
B44: =Settings!B44 -> Tapety chci strhnout.
B45: =Settings!B45 -> Pokud možno, chci je jen přetřít novou malbou.
C47: =Settings!C47 -> Na stěně se nachází nerovnosti, které mi vadí (praskliny, prohlubně, vypoukliny, stěna je "vlnitá", ...).
C48: =Settings!C48 -> Stěna je krásně rovná nebo mi drobné nerovnosti nevadí.
D50: =Settings!D50 -> V jakém je stávající tapeta stavu?
D51: =Settings!D51 -> Tapety se odlupují a/nebo tvoří boule.
D52: =Settings!D52 -> Tapety jsou naprosto v pořádku, nikde se neodlupují, netvoří boule, pevně drží na svém podkladu.
E54: =Settings!E54 -> Na tapetách se žádná malba nenachází.
E55: =Settings!E55 -> Na tapetách se nachází malba.
F57: =Settings!F57 -> Test: Vyzkoušejte následující testy a zaškrtněte pravdivé.
F58: =Settings!F58 -> Pokud po stěně přejedu silnějším tlakem rukou, barva se mi na ruku otře.
F59: =Settings!F59 -> Když malbu více namočím, ztmavne a vytvoří mazlavou skvrnu, po stírání palcem krouživými pohyby na palci ulpí mazlavá hmota.
F60: =Settings!F60 -> Po přilepení kusu lepící pásky pevně na stěnu a následném strhnutí na pásce ulpí větší částice.
F61: =Settings!F61 -> Po provedení testů se nestalo nic z výše uvedeného.
B63: =Settings!B63 -> Nová omítka
B64: =Settings!B64 -> Chci opravit omítku. | J64: =Settings!J64 -> m2
C66: =Settings!C66 -> Stávající omítka je v nepoužitelném stavu, drolí se a opadává.
C67: =Settings!C67 -> Omítka má jen drobné nerovnosti (praskliny, prohlubně, vypoukliny, stěna je "vlnitá", ...).
B69: =Settings!B69 -> Chci malovat na již hotovou novou omítku. | J69: =Settings!J69 -> m2
C71: =Settings!C71 -> Omítka je oprýskaná, odlupuje se, opadává.
C72: =Settings!C72 -> Omítka má jen drobné nerovnosti, které mi vadí (drobné vypoukliny, či prohlubně, drobné rýhy).
C73: =Settings!C73 -> Omítka je naprosto v pořádku, nikde se neodlupuje, neopadává, pevně drží na svém podkladu a nemá žádné nerovnosti, popř. mi nevadí.
A75: =Settings!A75 -> Vyskytují se v místě nové malby plísně?
B76: =Settings!B76 -> Ano, vyskytují v přibližné ploše. | F76: =Settings!F76 -> V přibližné ploše | I76: =Settings!I76 -> m2
B77: =Settings!B77 -> Ne, nevyskytují.
A79: =Settings!A79 -> Nová malba:
A80: =Settings!A80 -> Místnost: (1) ….
A81: =Settings!A81 -> Jakou bude mít malba podobu?
B82: =Settings!B82 -> Chci, aby výsledný vzhled byl hladký bez jakýchkoli vzorů.
B83: =Settings!B83 -> Chci, aby výsledný vzhled byl strukturovaný (se vzorem) a proto bude pod malbou tapeta.
C84: =Settings!C84 -> bez | E84: =Settings!E84 -> m2
C85: =Settings!C85 -> tapeta | E85: =Settings!E85 -> m2
A87: =Settings!A87 -> Jakou barvu?
B88: =Settings!B88 -> Nemám žádné nároky, stačí mi běžná interiérová barva.
C90: =Settings!C90 -> bílá | E90: =Settings!E90 -> m2
C91: =Settings!C91 -> barevná | E91: =Settings!E91 -> m2
B93: =Settings!B93 -> Mám vyšší nároky na otěruodolný nebo omyvatelný povrch.
C95: =Settings!C95 -> bílá | E95: =Settings!E95 -> m2
C96: =Settings!C96 -> barevná | E96: =Settings!E96 -> m2
A99: =Settings!A99 -> Závěr:
A100: =Settings!A100 -> Na závěr už bychom Vás jen rádi požádali o e-mail, abychom Vám mohli zaslat celou kalkulaci v digitální podobě.
A101: =Settings!A101 -> e-mail:

Sheet Room07 (hidden)
A1: =Settings!A1 -> Úvod:
A2: =Settings!A2 -> Chápeme, že ne všechny práce chcete svěřit profesionálům, ať už kvůli ceně nebo z jiných důvodů, přesto vše vyplňte. Řekneme Vám, kolik by Vás práce stála od profesionálů a Vy sami se potom můžete na základě ceny rozhodnout, zda si zvolíte práci profesionála či si některou činnost zkusíte sami. Rádi bychom Vás také informovali o tom, že výsledky této kalkulace předpokládají běžné bytové (i rodinné domy) podmínky, tedy pokud plánujete výmalbu atypických, sklepních, vlhkých či jinak nestandardních prostor, doporučujeme návštěvu profesionála ke konzultaci.
A4: =Settings!A4 -> Kolik místností plánujete malovat?
A6: =Settings!A6 -> Základní rozměry:
A7: =Settings!A7 -> Název místnosti:
A9: =Settings!A9 -> Jelikož malování je věc rozměrová, potřebujeme znát několik málo čísel.
A10: =Settings!A10 -> Jakou plochu stěn plánujete malovat (vč. otvorů)? | G10: =Settings!G10 -> m2 | J10: =Settings!J10 -> Neodečítejte plochy otvorů jako jsou např. okna a dveře. Pozor!, ať sem nezapočtete místa, která malovat nechcete nebo nemůžete, např. za vestavěným nábytkem nebo v místě, kde máte keramické či jiné obklady a chcete je tam ponechat.
A11: =Settings!A11 -> Jaká je podlahová plocha místnosti? | G11: =Settings!G11 -> m2 | J11: =Settings!J11 -> Tip: Pokud má místnost složitější tvar, zkuste si jej rozdělit na pomyslné obdélníky a ty vzájemně odečtěte či přičtěte.
A12: =Settings!A12 -> Jaká je plocha otvorů a jiných nemalovaných ploch? | G12: =Settings!G12 -> m2 | J12: =Settings!J12 -> Okna, dveře, dvířka k revizní šachtě apod. plochy.
A13: =Settings!A13 -> Jaká je výška místnosti? | G13: =Settings!G13 -> m | J13: =Settings!J13 -> Ostatní potřebné míry dopočteme za Vás.
A15: =Settings!A15 -> Podklad:
A16: =Settings!A16 -> Místnost: (1) ….
A17: =Settings!A17 -> Abychom Vám mohli poradit s postupem, potřebujeme vědět, jaký je stávající podklad v místě plánované malby.
A18: =Settings!A18 -> V místě plánované malby se právě nachází:
B19: =Settings!B19 -> keramický nebo jiný obklad | F19: =Settings!F19 -> m2
B20: =Settings!B20 -> stará malba | F20: =Settings!F20 -> m2
B21: =Settings!B21 -> tapety | F21: =Settings!F21 -> m2
B22: =Settings!B22 -> nová omítka | F22: =Settings!F22 -> m2
B23: =Settings!B23 -> nová SDK deska | F23: m2
B24: =Settings!B24 -> hrubá konstrukce | F24: =Settings!F24 -> m2
B26: =Settings!B26 -> Malba
B27: =Settings!B27 -> Chci malbu oškrábat. (Nebo vím, že stávající malba je vápenná/latexová/klihová, a tudíž se musí oškrábat.) | J27: =Settings!J27 -> Vypsané barvy nejsou jako podklad pro novou barvu vhodné, později by docházelo k oprýskání a loupání nové malby.
B28: =Settings!B28 -> Pokud možno chci ji jen přetřít novou malbou. | J28: =Settings!J28 -> Pokud se malba nachází ve vhodném stavu, je možné provést novou malbu jen jako další vrstvu bez nutnosti škrábání. Poradíme Vám, zda je to u Vás možné.
C30: =Settings!C30 -> Na stěně se nachází nerovnosti, které mi vadí (praskliny, prohlubně, vypoukliny, stěna je "vlnitá", ...).
C31: =Settings!C31 -> Stěna je krásně rovná nebo mi drobné nerovnosti nevadí.
D33: =Settings!D33 -> V jakém je stávající malba stavu?
D34: =Settings!D34 -> Malba se loupe, je oprýskaná nebo tvoří boule.
D35: =Settings!D35 -> Malba se jeví na pohled v pořádku.
E37: =Settings!E37 -> Test: Vyzkoušejte následující testy a zaškrtněte pravdivé.
E38: =Settings!E38 -> Pokud po stěně přejedu silnějším tlakem rukou, barva se mi na ruku otře.
E39: =Settings!E39 -> Když malbu více namočím, ztmavne a vytvoří mazlavou skvrnu, po stírání palcem krouživými pohyby na palci ulpí mazlavá hmota.
E40: =Settings!E40 -> Po přilepení kusu lepící pásky pevně na stěnu a následném strhnutí na pásce ulpí větší částice.
E41: =Settings!E41 -> Po provedení testů se nestalo nic z výše uvedeného.
B43: =Settings!B43 -> Tapety
B44: =Settings!B44 -> Tapety chci strhnout.
B45: =Settings!B45 -> Pokud možno, chci je jen přetřít novou malbou.
C47: =Settings!C47 -> Na stěně se nachází nerovnosti, které mi vadí (praskliny, prohlubně, vypoukliny, stěna je "vlnitá", ...).
C48: =Settings!C48 -> Stěna je krásně rovná nebo mi drobné nerovnosti nevadí.
D50: =Settings!D50 -> V jakém je stávající tapeta stavu?
D51: =Settings!D51 -> Tapety se odlupují a/nebo tvoří boule.
D52: =Settings!D52 -> Tapety jsou naprosto v pořádku, nikde se neodlupují, netvoří boule, pevně drží na svém podkladu.
E54: =Settings!E54 -> Na tapetách se žádná malba nenachází.
E55: =Settings!E55 -> Na tapetách se nachází malba.
F57: =Settings!F57 -> Test: Vyzkoušejte následující testy a zaškrtněte pravdivé.
F58: =Settings!F58 -> Pokud po stěně přejedu silnějším tlakem rukou, barva se mi na ruku otře.
F59: =Settings!F59 -> Když malbu více namočím, ztmavne a vytvoří mazlavou skvrnu, po stírání palcem krouživými pohyby na palci ulpí mazlavá hmota.
F60: =Settings!F60 -> Po přilepení kusu lepící pásky pevně na stěnu a následném strhnutí na pásce ulpí větší částice.
F61: =Settings!F61 -> Po provedení testů se nestalo nic z výše uvedeného.
B63: =Settings!B63 -> Nová omítka
B64: =Settings!B64 -> Chci opravit omítku. | J64: =Settings!J64 -> m2
C66: =Settings!C66 -> Stávající omítka je v nepoužitelném stavu, drolí se a opadává.
C67: =Settings!C67 -> Omítka má jen drobné nerovnosti (praskliny, prohlubně, vypoukliny, stěna je "vlnitá", ...).
B69: =Settings!B69 -> Chci malovat na již hotovou novou omítku. | J69: =Settings!J69 -> m2
C71: =Settings!C71 -> Omítka je oprýskaná, odlupuje se, opadává.
C72: =Settings!C72 -> Omítka má jen drobné nerovnosti, které mi vadí (drobné vypoukliny, či prohlubně, drobné rýhy).
C73: =Settings!C73 -> Omítka je naprosto v pořádku, nikde se neodlupuje, neopadává, pevně drží na svém podkladu a nemá žádné nerovnosti, popř. mi nevadí.
A75: =Settings!A75 -> Vyskytují se v místě nové malby plísně?
B76: =Settings!B76 -> Ano, vyskytují v přibližné ploše. | F76: =Settings!F76 -> V přibližné ploše | I76: =Settings!I76 -> m2
B77: =Settings!B77 -> Ne, nevyskytují.
A79: =Settings!A79 -> Nová malba:
A80: =Settings!A80 -> Místnost: (1) ….
A81: =Settings!A81 -> Jakou bude mít malba podobu?
B82: =Settings!B82 -> Chci, aby výsledný vzhled byl hladký bez jakýchkoli vzorů.
B83: =Settings!B83 -> Chci, aby výsledný vzhled byl strukturovaný (se vzorem) a proto bude pod malbou tapeta.
C84: =Settings!C84 -> bez | E84: =Settings!E84 -> m2
C85: =Settings!C85 -> tapeta | E85: =Settings!E85 -> m2
A87: =Settings!A87 -> Jakou barvu?
B88: =Settings!B88 -> Nemám žádné nároky, stačí mi běžná interiérová barva.
C90: =Settings!C90 -> bílá | E90: =Settings!E90 -> m2
C91: =Settings!C91 -> barevná | E91: =Settings!E91 -> m2
B93: =Settings!B93 -> Mám vyšší nároky na otěruodolný nebo omyvatelný povrch.
C95: =Settings!C95 -> bílá | E95: =Settings!E95 -> m2
C96: =Settings!C96 -> barevná | E96: =Settings!E96 -> m2
A99: =Settings!A99 -> Závěr:
A100: =Settings!A100 -> Na závěr už bychom Vás jen rádi požádali o e-mail, abychom Vám mohli zaslat celou kalkulaci v digitální podobě.
A101: =Settings!A101 -> e-mail:

Sheet Room08 (hidden)
A1: =Settings!A1 -> Úvod:
A2: =Settings!A2 -> Chápeme, že ne všechny práce chcete svěřit profesionálům, ať už kvůli ceně nebo z jiných důvodů, přesto vše vyplňte. Řekneme Vám, kolik by Vás práce stála od profesionálů a Vy sami se potom můžete na základě ceny rozhodnout, zda si zvolíte práci profesionála či si některou činnost zkusíte sami. Rádi bychom Vás také informovali o tom, že výsledky této kalkulace předpokládají běžné bytové (i rodinné domy) podmínky, tedy pokud plánujete výmalbu atypických, sklepních, vlhkých či jinak nestandardních prostor, doporučujeme návštěvu profesionála ke konzultaci.
A4: =Settings!A4 -> Kolik místností plánujete malovat?
A6: =Settings!A6 -> Základní rozměry:
A7: =Settings!A7 -> Název místnosti:
A9: =Settings!A9 -> Jelikož malování je věc rozměrová, potřebujeme znát několik málo čísel.
A10: =Settings!A10 -> Jakou plochu stěn plánujete malovat (vč. otvorů)? | G10: =Settings!G10 -> m2 | J10: =Settings!J10 -> Neodečítejte plochy otvorů jako jsou např. okna a dveře. Pozor!, ať sem nezapočtete místa, která malovat nechcete nebo nemůžete, např. za vestavěným nábytkem nebo v místě, kde máte keramické či jiné obklady a chcete je tam ponechat.
A11: =Settings!A11 -> Jaká je podlahová plocha místnosti? | G11: =Settings!G11 -> m2 | J11: =Settings!J11 -> Tip: Pokud má místnost složitější tvar, zkuste si jej rozdělit na pomyslné obdélníky a ty vzájemně odečtěte či přičtěte.
A12: =Settings!A12 -> Jaká je plocha otvorů a jiných nemalovaných ploch? | G12: =Settings!G12 -> m2 | J12: =Settings!J12 -> Okna, dveře, dvířka k revizní šachtě apod. plochy.
A13: =Settings!A13 -> Jaká je výška místnosti? | G13: =Settings!G13 -> m | J13: =Settings!J13 -> Ostatní potřebné míry dopočteme za Vás.
A15: =Settings!A15 -> Podklad:
A16: =Settings!A16 -> Místnost: (1) ….
A17: =Settings!A17 -> Abychom Vám mohli poradit s postupem, potřebujeme vědět, jaký je stávající podklad v místě plánované malby.
A18: =Settings!A18 -> V místě plánované malby se právě nachází:
B19: =Settings!B19 -> keramický nebo jiný obklad | F19: =Settings!F19 -> m2
B20: =Settings!B20 -> stará malba | F20: =Settings!F20 -> m2
B21: =Settings!B21 -> tapety | F21: =Settings!F21 -> m2
B22: =Settings!B22 -> nová omítka | F22: =Settings!F22 -> m2
B23: =Settings!B23 -> nová SDK deska | F23: m2
B24: =Settings!B24 -> hrubá konstrukce | F24: =Settings!F24 -> m2
B26: =Settings!B26 -> Malba
B27: =Settings!B27 -> Chci malbu oškrábat. (Nebo vím, že stávající malba je vápenná/latexová/klihová, a tudíž se musí oškrábat.) | J27: =Settings!J27 -> Vypsané barvy nejsou jako podklad pro novou barvu vhodné, později by docházelo k oprýskání a loupání nové malby.
B28: =Settings!B28 -> Pokud možno chci ji jen přetřít novou malbou. | J28: =Settings!J28 -> Pokud se malba nachází ve vhodném stavu, je možné provést novou malbu jen jako další vrstvu bez nutnosti škrábání. Poradíme Vám, zda je to u Vás možné.
C30: =Settings!C30 -> Na stěně se nachází nerovnosti, které mi vadí (praskliny, prohlubně, vypoukliny, stěna je "vlnitá", ...).
C31: =Settings!C31 -> Stěna je krásně rovná nebo mi drobné nerovnosti nevadí.
D33: =Settings!D33 -> V jakém je stávající malba stavu?
D34: =Settings!D34 -> Malba se loupe, je oprýskaná nebo tvoří boule.
D35: =Settings!D35 -> Malba se jeví na pohled v pořádku.
E37: =Settings!E37 -> Test: Vyzkoušejte následující testy a zaškrtněte pravdivé.
E38: =Settings!E38 -> Pokud po stěně přejedu silnějším tlakem rukou, barva se mi na ruku otře.
E39: =Settings!E39 -> Když malbu více namočím, ztmavne a vytvoří mazlavou skvrnu, po stírání palcem krouživými pohyby na palci ulpí mazlavá hmota.
E40: =Settings!E40 -> Po přilepení kusu lepící pásky pevně na stěnu a následném strhnutí na pásce ulpí větší částice.
E41: =Settings!E41 -> Po provedení testů se nestalo nic z výše uvedeného.
B43: =Settings!B43 -> Tapety
B44: =Settings!B44 -> Tapety chci strhnout.
B45: =Settings!B45 -> Pokud možno, chci je jen přetřít novou malbou.
C47: =Settings!C47 -> Na stěně se nachází nerovnosti, které mi vadí (praskliny, prohlubně, vypoukliny, stěna je "vlnitá", ...).
C48: =Settings!C48 -> Stěna je krásně rovná nebo mi drobné nerovnosti nevadí.
D50: =Settings!D50 -> V jakém je stávající tapeta stavu?
D51: =Settings!D51 -> Tapety se odlupují a/nebo tvoří boule.
D52: =Settings!D52 -> Tapety jsou naprosto v pořádku, nikde se neodlupují, netvoří boule, pevně drží na svém podkladu.
E54: =Settings!E54 -> Na tapetách se žádná malba nenachází.
E55: =Settings!E55 -> Na tapetách se nachází malba.
F57: =Settings!F57 -> Test: Vyzkoušejte následující testy a zaškrtněte pravdivé.
F58: =Settings!F58 -> Pokud po stěně přejedu silnějším tlakem rukou, barva se mi na ruku otře.
F59: =Settings!F59 -> Když malbu více namočím, ztmavne a vytvoří mazlavou skvrnu, po stírání palcem krouživými pohyby na palci ulpí mazlavá hmota.
F60: =Settings!F60 -> Po přilepení kusu lepící pásky pevně na stěnu a následném strhnutí na pásce ulpí větší částice.
F61: =Settings!F61 -> Po provedení testů se nestalo nic z výše uvedeného.
B63: =Settings!B63 -> Nová omítka
B64: =Settings!B64 -> Chci opravit omítku. | J64: =Settings!J64 -> m2
C66: =Settings!C66 -> Stávající omítka je v nepoužitelném stavu, drolí se a opadává.
C67: =Settings!C67 -> Omítka má jen drobné nerovnosti (praskliny, prohlubně, vypoukliny, stěna je "vlnitá", ...).
B69: =Settings!B69 -> Chci malovat na již hotovou novou omítku. | J69: =Settings!J69 -> m2
C71: =Settings!C71 -> Omítka je oprýskaná, odlupuje se, opadává.
C72: =Settings!C72 -> Omítka má jen drobné nerovnosti, které mi vadí (drobné vypoukliny, či prohlubně, drobné rýhy).
C73: =Settings!C73 -> Omítka je naprosto v pořádku, nikde se neodlupuje, neopadává, pevně drží na svém podkladu a nemá žádné nerovnosti, popř. mi nevadí.
A75: =Settings!A75 -> Vyskytují se v místě nové malby plísně?
B76: =Settings!B76 -> Ano, vyskytují v přibližné ploše. | F76: =Settings!F76 -> V přibližné ploše | I76: =Settings!I76 -> m2
B77: =Settings!B77 -> Ne, nevyskytují.
A79: =Settings!A79 -> Nová malba:
A80: =Settings!A80 -> Místnost: (1) ….
A81: =Settings!A81 -> Jakou bude mít malba podobu?
B82: =Settings!B82 -> Chci, aby výsledný vzhled byl hladký bez jakýchkoli vzorů.
B83: =Settings!B83 -> Chci, aby výsledný vzhled byl strukturovaný (se vzorem) a proto bude pod malbou tapeta.
C84: =Settings!C84 -> bez | E84: =Settings!E84 -> m2
C85: =Settings!C85 -> tapeta | E85: =Settings!E85 -> m2
A87: =Settings!A87 -> Jakou barvu?
B88: =Settings!B88 -> Nemám žádné nároky, stačí mi běžná interiérová barva.
C90: =Settings!C90 -> bílá | E90: =Settings!E90 -> m2
C91: =Settings!C91 -> barevná | E91: =Settings!E91 -> m2
B93: =Settings!B93 -> Mám vyšší nároky na otěruodolný nebo omyvatelný povrch.
C95: =Settings!C95 -> bílá | E95: =Settings!E95 -> m2
C96: =Settings!C96 -> barevná | E96: =Settings!E96 -> m2
A99: =Settings!A99 -> Závěr:
A100: =Settings!A100 -> Na závěr už bychom Vás jen rádi požádali o e-mail, abychom Vám mohli zaslat celou kalkulaci v digitální podobě.
A101: =Settings!A101 -> e-mail:

Sheet Room09 (hidden)
A1: =Settings!A1 -> Úvod:
A2: =Settings!A2 -> Chápeme, že ne všechny práce chcete svěřit profesionálům, ať už kvůli ceně nebo z jiných důvodů, přesto vše vyplňte. Řekneme Vám, kolik by Vás práce stála od profesionálů a Vy sami se potom můžete na základě ceny rozhodnout, zda si zvolíte práci profesionála či si některou činnost zkusíte sami. Rádi bychom Vás také informovali o tom, že výsledky této kalkulace předpokládají běžné bytové (i rodinné domy) podmínky, tedy pokud plánujete výmalbu atypických, sklepních, vlhkých či jinak nestandardních prostor, doporučujeme návštěvu profesionála ke konzultaci.
A4: =Settings!A4 -> Kolik místností plánujete malovat?
A6: =Settings!A6 -> Základní rozměry:
A7: =Settings!A7 -> Název místnosti:
A9: =Settings!A9 -> Jelikož malování je věc rozměrová, potřebujeme znát několik málo čísel.
A10: =Settings!A10 -> Jakou plochu stěn plánujete malovat (vč. otvorů)? | G10: =Settings!G10 -> m2 | J10: =Settings!J10 -> Neodečítejte plochy otvorů jako jsou např. okna a dveře. Pozor!, ať sem nezapočtete místa, která malovat nechcete nebo nemůžete, např. za vestavěným nábytkem nebo v místě, kde máte keramické či jiné obklady a chcete je tam ponechat.
A11: =Settings!A11 -> Jaká je podlahová plocha místnosti? | G11: =Settings!G11 -> m2 | J11: =Settings!J11 -> Tip: Pokud má místnost složitější tvar, zkuste si jej rozdělit na pomyslné obdélníky a ty vzájemně odečtěte či přičtěte.
A12: =Settings!A12 -> Jaká je plocha otvorů a jiných nemalovaných ploch? | G12: =Settings!G12 -> m2 | J12: =Settings!J12 -> Okna, dveře, dvířka k revizní šachtě apod. plochy.
A13: =Settings!A13 -> Jaká je výška místnosti? | G13: =Settings!G13 -> m | J13: =Settings!J13 -> Ostatní potřebné míry dopočteme za Vás.
A15: =Settings!A15 -> Podklad:
A16: =Settings!A16 -> Místnost: (1) ….
A17: =Settings!A17 -> Abychom Vám mohli poradit s postupem, potřebujeme vědět, jaký je stávající podklad v místě plánované malby.
A18: =Settings!A18 -> V místě plánované malby se právě nachází:
B19: =Settings!B19 -> keramický nebo jiný obklad | F19: =Settings!F19 -> m2
B20: =Settings!B20 -> stará malba | F20: =Settings!F20 -> m2
B21: =Settings!B21 -> tapety | F21: =Settings!F21 -> m2
B22: =Settings!B22 -> nová omítka | F22: =Settings!F22 -> m2
B23: =Settings!B23 -> nová SDK deska | F23: m2
B24: =Settings!B24 -> hrubá konstrukce | F24: =Settings!F24 -> m2
B26: =Settings!B26 -> Malba
B27: =Settings!B27 -> Chci malbu oškrábat. (Nebo vím, že stávající malba je vápenná/latexová/klihová, a tudíž se musí oškrábat.) | J27: =Settings!J27 -> Vypsané barvy nejsou jako podklad pro novou barvu vhodné, později by docházelo k oprýskání a loupání nové malby.
B28: =Settings!B28 -> Pokud možno chci ji jen přetřít novou malbou. | J28: =Settings!J28 -> Pokud se malba nachází ve vhodném stavu, je možné provést novou malbu jen jako další vrstvu bez nutnosti škrábání. Poradíme Vám, zda je to u Vás možné.
C30: =Settings!C30 -> Na stěně se nachází nerovnosti, které mi vadí (praskliny, prohlubně, vypoukliny, stěna je "vlnitá", ...).
C31: =Settings!C31 -> Stěna je krásně rovná nebo mi drobné nerovnosti nevadí.
D33: =Settings!D33 -> V jakém je stávající malba stavu?
D34: =Settings!D34 -> Malba se loupe, je oprýskaná nebo tvoří boule.
D35: =Settings!D35 -> Malba se jeví na pohled v pořádku.
E37: =Settings!E37 -> Test: Vyzkoušejte následující testy a zaškrtněte pravdivé.
E38: =Settings!E38 -> Pokud po stěně přejedu silnějším tlakem rukou, barva se mi na ruku otře.
E39: =Settings!E39 -> Když malbu více namočím, ztmavne a vytvoří mazlavou skvrnu, po stírání palcem krouživými pohyby na palci ulpí mazlavá hmota.
E40: =Settings!E40 -> Po přilepení kusu lepící pásky pevně na stěnu a následném strhnutí na pásce ulpí větší částice.
E41: =Settings!E41 -> Po provedení testů se nestalo nic z výše uvedeného.
B43: =Settings!B43 -> Tapety
B44: =Settings!B44 -> Tapety chci strhnout.
B45: =Settings!B45 -> Pokud možno, chci je jen přetřít novou malbou.
C47: =Settings!C47 -> Na stěně se nachází nerovnosti, které mi vadí (praskliny, prohlubně, vypoukliny, stěna je "vlnitá", ...).
C48: =Settings!C48 -> Stěna je krásně rovná nebo mi drobné nerovnosti nevadí.
D50: =Settings!D50 -> V jakém je stávající tapeta stavu?
D51: =Settings!D51 -> Tapety se odlupují a/nebo tvoří boule.
D52: =Settings!D52 -> Tapety jsou naprosto v pořádku, nikde se neodlupují, netvoří boule, pevně drží na svém podkladu.
E54: =Settings!E54 -> Na tapetách se žádná malba nenachází.
E55: =Settings!E55 -> Na tapetách se nachází malba.
F57: =Settings!F57 -> Test: Vyzkoušejte následující testy a zaškrtněte pravdivé.
F58: =Settings!F58 -> Pokud po stěně přejedu silnějším tlakem rukou, barva se mi na ruku otře.
F59: =Settings!F59 -> Když malbu více namočím, ztmavne a vytvoří mazlavou skvrnu, po stírání palcem krouživými pohyby na palci ulpí mazlavá hmota.
F60: =Settings!F60 -> Po přilepení kusu lepící pásky pevně na stěnu a následném strhnutí na pásce ulpí větší částice.
F61: =Settings!F61 -> Po provedení testů se nestalo nic z výše uvedeného.
B63: =Settings!B63 -> Nová omítka
B64: =Settings!B64 -> Chci opravit omítku. | J64: =Settings!J64 -> m2
C66: =Settings!C66 -> Stávající omítka je v nepoužitelném stavu, drolí se a opadává.
C67: =Settings!C67 -> Omítka má jen drobné nerovnosti (praskliny, prohlubně, vypoukliny, stěna je "vlnitá", ...).
B69: =Settings!B69 -> Chci malovat na již hotovou novou omítku. | J69: =Settings!J69 -> m2
C71: =Settings!C71 -> Omítka je oprýskaná, odlupuje se, opadává.
C72: =Settings!C72 -> Omítka má jen drobné nerovnosti, které mi vadí (drobné vypoukliny, či prohlubně, drobné rýhy).
C73: =Settings!C73 -> Omítka je naprosto v pořádku, nikde se neodlupuje, neopadává, pevně drží na svém podkladu a nemá žádné nerovnosti, popř. mi nevadí.
A75: =Settings!A75 -> Vyskytují se v místě nové malby plísně?
B76: =Settings!B76 -> Ano, vyskytují v přibližné ploše. | F76: =Settings!F76 -> V přibližné ploše | I76: =Settings!I76 -> m2
B77: =Settings!B77 -> Ne, nevyskytují.
A79: =Settings!A79 -> Nová malba:
A80: =Settings!A80 -> Místnost: (1) ….
A81: =Settings!A81 -> Jakou bude mít malba podobu?
B82: =Settings!B82 -> Chci, aby výsledný vzhled byl hladký bez jakýchkoli vzorů.
B83: =Settings!B83 -> Chci, aby výsledný vzhled byl strukturovaný (se vzorem) a proto bude pod malbou tapeta.
C84: =Settings!C84 -> bez | E84: =Settings!E84 -> m2
C85: =Settings!C85 -> tapeta | E85: =Settings!E85 -> m2
A87: =Settings!A87 -> Jakou barvu?
B88: =Settings!B88 -> Nemám žádné nároky, stačí mi běžná interiérová barva.
C90: =Settings!C90 -> bílá | E90: =Settings!E90 -> m2
C91: =Settings!C91 -> barevná | E91: =Settings!E91 -> m2
B93: =Settings!B93 -> Mám vyšší nároky na otěruodolný nebo omyvatelný povrch.
C95: =Settings!C95 -> bílá | E95: =Settings!E95 -> m2
C96: =Settings!C96 -> barevná | E96: =Settings!E96 -> m2
A99: =Settings!A99 -> Závěr:
A100: =Settings!A100 -> Na závěr už bychom Vás jen rádi požádali o e-mail, abychom Vám mohli zaslat celou kalkulaci v digitální podobě.
A101: =Settings!A101 -> e-mail:

Sheet Room10 (hidden)
A1: =Settings!A1 -> Úvod:
A2: =Settings!A2 -> Chápeme, že ne všechny práce chcete svěřit profesionálům, ať už kvůli ceně nebo z jiných důvodů, přesto vše vyplňte. Řekneme Vám, kolik by Vás práce stála od profesionálů a Vy sami se potom můžete na základě ceny rozhodnout, zda si zvolíte práci profesionála či si některou činnost zkusíte sami. Rádi bychom Vás také informovali o tom, že výsledky této kalkulace předpokládají běžné bytové (i rodinné domy) podmínky, tedy pokud plánujete výmalbu atypických, sklepních, vlhkých či jinak nestandardních prostor, doporučujeme návštěvu profesionála ke konzultaci.
A4: =Settings!A4 -> Kolik místností plánujete malovat?
A6: =Settings!A6 -> Základní rozměry:
A7: =Settings!A7 -> Název místnosti:
A9: =Settings!A9 -> Jelikož malování je věc rozměrová, potřebujeme znát několik málo čísel.
A10: =Settings!A10 -> Jakou plochu stěn plánujete malovat (vč. otvorů)? | G10: =Settings!G10 -> m2 | J10: =Settings!J10 -> Neodečítejte plochy otvorů jako jsou např. okna a dveře. Pozor!, ať sem nezapočtete místa, která malovat nechcete nebo nemůžete, např. za vestavěným nábytkem nebo v místě, kde máte keramické či jiné obklady a chcete je tam ponechat.
A11: =Settings!A11 -> Jaká je podlahová plocha místnosti? | G11: =Settings!G11 -> m2 | J11: =Settings!J11 -> Tip: Pokud má místnost složitější tvar, zkuste si jej rozdělit na pomyslné obdélníky a ty vzájemně odečtěte či přičtěte.
A12: =Settings!A12 -> Jaká je plocha otvorů a jiných nemalovaných ploch? | G12: =Settings!G12 -> m2 | J12: =Settings!J12 -> Okna, dveře, dvířka k revizní šachtě apod. plochy.
A13: =Settings!A13 -> Jaká je výška místnosti? | G13: =Settings!G13 -> m | J13: =Settings!J13 -> Ostatní potřebné míry dopočteme za Vás.
A15: =Settings!A15 -> Podklad:
A16: =Settings!A16 -> Místnost: (1) ….
A17: =Settings!A17 -> Abychom Vám mohli poradit s postupem, potřebujeme vědět, jaký je stávající podklad v místě plánované malby.
A18: =Settings!A18 -> V místě plánované malby se právě nachází:
B19: =Settings!B19 -> keramický nebo jiný obklad | F19: =Settings!F19 -> m2
B20: =Settings!B20 -> stará malba | F20: =Settings!F20 -> m2
B21: =Settings!B21 -> tapety | F21: =Settings!F21 -> m2
B22: =Settings!B22 -> nová omítka | F22: =Settings!F22 -> m2
B23: =Settings!B23 -> nová SDK deska | F23: m2
B24: =Settings!B24 -> hrubá konstrukce | F24: =Settings!F24 -> m2
B26: =Settings!B26 -> Malba
B27: =Settings!B27 -> Chci malbu oškrábat. (Nebo vím, že stávající malba je vápenná/latexová/klihová, a tudíž se musí oškrábat.) | J27: =Settings!J27 -> Vypsané barvy nejsou jako podklad pro novou barvu vhodné, později by docházelo k oprýskání a loupání nové malby.
B28: =Settings!B28 -> Pokud možno chci ji jen přetřít novou malbou. | J28: =Settings!J28 -> Pokud se malba nachází ve vhodném stavu, je možné provést novou malbu jen jako další vrstvu bez nutnosti škrábání. Poradíme Vám, zda je to u Vás možné.
C30: =Settings!C30 -> Na stěně se nachází nerovnosti, které mi vadí (praskliny, prohlubně, vypoukliny, stěna je "vlnitá", ...).
C31: =Settings!C31 -> Stěna je krásně rovná nebo mi drobné nerovnosti nevadí.
D33: =Settings!D33 -> V jakém je stávající malba stavu?
D34: =Settings!D34 -> Malba se loupe, je oprýskaná nebo tvoří boule.
D35: =Settings!D35 -> Malba se jeví na pohled v pořádku.
E37: =Settings!E37 -> Test: Vyzkoušejte následující testy a zaškrtněte pravdivé.
E38: =Settings!E38 -> Pokud po stěně přejedu silnějším tlakem rukou, barva se mi na ruku otře.
E39: =Settings!E39 -> Když malbu více namočím, ztmavne a vytvoří mazlavou skvrnu, po stírání palcem krouživými pohyby na palci ulpí mazlavá hmota.
E40: =Settings!E40 -> Po přilepení kusu lepící pásky pevně na stěnu a následném strhnutí na pásce ulpí větší částice.
E41: =Settings!E41 -> Po provedení testů se nestalo nic z výše uvedeného.
B43: =Settings!B43 -> Tapety
B44: =Settings!B44 -> Tapety chci strhnout.
B45: =Settings!B45 -> Pokud možno, chci je jen přetřít novou malbou.
C47: =Settings!C47 -> Na stěně se nachází nerovnosti, které mi vadí (praskliny, prohlubně, vypoukliny, stěna je "vlnitá", ...).
C48: =Settings!C48 -> Stěna je krásně rovná nebo mi drobné nerovnosti nevadí.
D50: =Settings!D50 -> V jakém je stávající tapeta stavu?
D51: =Settings!D51 -> Tapety se odlupují a/nebo tvoří boule.
D52: =Settings!D52 -> Tapety jsou naprosto v pořádku, nikde se neodlupují, netvoří boule, pevně drží na svém podkladu.
E54: =Settings!E54 -> Na tapetách se žádná malba nenachází.
E55: =Settings!E55 -> Na tapetách se nachází malba.
F57: =Settings!F57 -> Test: Vyzkoušejte následující testy a zaškrtněte pravdivé.
F58: =Settings!F58 -> Pokud po stěně přejedu silnějším tlakem rukou, barva se mi na ruku otře.
F59: =Settings!F59 -> Když malbu více namočím, ztmavne a vytvoří mazlavou skvrnu, po stírání palcem krouživými pohyby na palci ulpí mazlavá hmota.
F60: =Settings!F60 -> Po přilepení kusu lepící pásky pevně na stěnu a následném strhnutí na pásce ulpí větší částice.
F61: =Settings!F61 -> Po provedení testů se nestalo nic z výše uvedeného.
B63: =Settings!B63 -> Nová omítka
B64: =Settings!B64 -> Chci opravit omítku. | J64: =Settings!J64 -> m2
C66: =Settings!C66 -> Stávající omítka je v nepoužitelném stavu, drolí se a opadává.
C67: =Settings!C67 -> Omítka má jen drobné nerovnosti (praskliny, prohlubně, vypoukliny, stěna je "vlnitá", ...).
B69: =Settings!B69 -> Chci malovat na již hotovou novou omítku. | J69: =Settings!J69 -> m2
C71: =Settings!C71 -> Omítka je oprýskaná, odlupuje se, opadává.
C72: =Settings!C72 -> Omítka má jen drobné nerovnosti, které mi vadí (drobné vypoukliny, či prohlubně, drobné rýhy).
C73: =Settings!C73 -> Omítka je naprosto v pořádku, nikde se neodlupuje, neopadává, pevně drží na svém podkladu a nemá žádné nerovnosti, popř. mi nevadí.
A75: =Settings!A75 -> Vyskytují se v místě nové malby plísně?
B76: =Settings!B76 -> Ano, vyskytují v přibližné ploše. | F76: =Settings!F76 -> V přibližné ploše | I76: =Settings!I76 -> m2
B77: =Settings!B77 -> Ne, nevyskytují.
A79: =Settings!A79 -> Nová malba:
A80: =Settings!A80 -> Místnost: (1) ….
A81: =Settings!A81 -> Jakou bude mít malba podobu?
B82: =Settings!B82 -> Chci, aby výsledný vzhled byl hladký bez jakýchkoli vzorů.
B83: =Settings!B83 -> Chci, aby výsledný vzhled byl strukturovaný (se vzorem) a proto bude pod malbou tapeta.
C84: =Settings!C84 -> bez | E84: =Settings!E84 -> m2
C85: =Settings!C85 -> tapeta | E85: =Settings!E85 -> m2
A87: =Settings!A87 -> Jakou barvu?
B88: =Settings!B88 -> Nemám žádné nároky, stačí mi běžná interiérová barva.
C90: =Settings!C90 -> bílá | E90: =Settings!E90 -> m2
C91: =Settings!C91 -> barevná | E91: =Settings!E91 -> m2
B93: =Settings!B93 -> Mám vyšší nároky na otěruodolný nebo omyvatelný povrch.
C95: =Settings!C95 -> bílá | E95: =Settings!E95 -> m2
C96: =Settings!C96 -> barevná | E96: =Settings!E96 -> m2
A99: =Settings!A99 -> Závěr:
A100: =Settings!A100 -> Na závěr už bychom Vás jen rádi požádali o e-mail, abychom Vám mohli zaslat celou kalkulaci v digitální podobě.
A101: =Settings!A101 -> e-mail:
